Service Area,Service Division,Expense Type,Expense Code,Detailed Expense Type,Payment Date,Transaction Number,Amount Exc Vat,Supplier Name
Adult and Health Services,Public Health,Third Party Payments,460803,Contract Payments,03-Jan-2017,3225939-FJAV/00000070NRT,557.08,AR MCCONNELL LTD T/A THE VILLAGE PHARMACY.
Adult and Health Services,Public Health,Third Party Payments,460803,Contract Payments,03-Jan-2017,3225944-DTPB/00000072NRT,537.54,ASDA PHARMACY.*
Adult and Health Services,Public Health,Third Party Payments,460803,Contract Payments,03-Jan-2017,3225945-DPQX/00000082NRT,821.22,ASDA PHARMACY.*
Adult and Health Services,Public Health,Third Party Payments,460803,Contract Payments,03-Jan-2017,3225946-FPKW/00000075NRT,689.63,ASDA PHARMACY.*
Adult and Health Services,Public Health,Third Party Payments,460803,Contract Payments,03-Jan-2017,3225947-LJHY/00000045NRT,536.30,ASHCHEM LTD.
Adult and Health Services,Public Health,Third Party Payments,460803,Contract Payments,03-Jan-2017,3225960-DXGC/00000061NRT,"1,479.46",BEWICK PHARMACY.*
Adult and Health Services,Public Health,Third Party Payments,460803,Contract Payments,03-Jan-2017,3225970-DPWT/00000076NRT,"1,730.02",BOOTS THE CHEMISTS LTD.*
Adult and Health Services,Public Health,Third Party Payments,460803,Contract Payments,03-Jan-2017,3225978-FKAT/00000069NRT,740.98,BOOTS THE CHEMISTS LTD.*
Adult and Health Services,Public Health,Third Party Payments,460803,Contract Payments,03-Jan-2017,3225981-FMMG/00000037NRT,504.04,BOOTS THE CHEMISTS LTD.*
Adult and Health Services,Head of Adults,Third Party Payments,470101,Purchase of Care,03-Jan-2017,3225991-256/17,740.00,BUTTERWICK HOSPICE RETAIL LTD.
Adult and Health Services,Head of Adults,Supplies and Services,338367,Services,03-Jan-2017,3225995-36288,675.00,CARE ABILITY.
Adult and Health Services,Head of Adults,Supplies and Services,338367,Services,03-Jan-2017,3225995-36541,675.00,CARE ABILITY.
Adult and Health Services,Head of Adults,Supplies and Services,308011,Furniture,03-Jan-2017,3225997-C630,"3,580.00",CAREFREE MOBILITY SERVICES LTD.
Adult and Health Services,Public Health,Third Party Payments,460803,Contract Payments,03-Jan-2017,3226000-DYJV/00000070NRT,577.42,CHILTON CHEMISTS LTD.*
Adult and Health Services,Central/Other,Employees,080025,Agency Staff,03-Jan-2017,3226028-334996,"116,883.29",DE POEL MANAGED SERVICES LTD.
Adult and Health Services,Commissioning inc Supporting People,Third Party Payments,440051,Other Third Party Payments,03-Jan-2017,3226031-8THDECEMBER2016,"3,841.67",DERIC YOUTH BUS PROJECT.
Adult and Health Services,Commissioning inc Supporting People,Debtors,930138,Debtor IC+ Residential Care Voids - CCG,03-Jan-2017,3226046-SIN312453A,"1,970.92",EMBRACE ALL LTD.
Adult and Health Services,Commissioning inc Supporting People,Debtors,930138,Debtor IC+ Residential Care Voids - CCG,03-Jan-2017,3226046-SIN317829A,985.46,EMBRACE ALL LTD.
Adult and Health Services,Public Health,Third Party Payments,460803,Contract Payments,03-Jan-2017,3226068-FBFN/00000069NRT,596.51,GILL & SCHOFIELD PHARMACEUTICAL CHEMISTS LTD.
Adult and Health Services,Public Health,Third Party Payments,460803,Contract Payments,03-Jan-2017,3226076-FFFR/00000052NRT,532.14,HANCOCK & AINSLEY CHEMIST LTD.
Adult and Health Services,Public Health,Third Party Payments,460803,Contract Payments,03-Jan-2017,3226090-DTJG/00000054NRT,600.95,J & J PHARMACY.
Adult and Health Services,Public Health,Third Party Payments,460803,Contract Payments,03-Jan-2017,3226094-DWBT/00000039NRT,541.86,JF EILBECK CHEMIST LTD.
Adult and Health Services,Public Health,Third Party Payments,460803,Contract Payments,03-Jan-2017,3226095-FCAF/00000058NRT,563.55,JF EILBECK CHEMIST LTD.
Adult and Health Services,Public Health,Third Party Payments,460803,Contract Payments,03-Jan-2017,3226099-FAYZ/00000093NRT,723.69,JOHN LOW LTD T/A MOORSIDE PHARMACY.
Adult and Health Services,Commissioning inc Supporting People,Third Party Payments,470111,Purchase of Care,03-Jan-2017,3226112-RINVTP/00425242,"4,128.14",LEONARD CHESHIRE DISABILITY.
Adult and Health Services,Commissioning inc Supporting People,Third Party Payments,470111,Purchase of Care,03-Jan-2017,3226112-RINVTP/00425252,"4,128.14",LEONARD CHESHIRE DISABILITY.
Adult and Health Services,Public Health,Third Party Payments,460803,Contract Payments,03-Jan-2017,3226117-DZTR/00000075NRT,524.79,LLOYDS PHARMACY.
Adult and Health Services,Public Health,Third Party Payments,460803,Contract Payments,03-Jan-2017,3226122-DRKN/00000080NRT,"1,083.50",LYDON PHARMACY GROUP LTD.
Adult and Health Services,Public Health,Third Party Payments,460803,Contract Payments,03-Jan-2017,3226123-FPZD/00000062NRT,"3,670.06",LYDON PHARMACY GROUP LTD.
Adult and Health Services,Public Health,Third Party Payments,460803,Contract Payments,03-Jan-2017,3226124-LGFQ/00000083NRT,572.67,M & M PHARMACIES LTD.
Adult and Health Services,Public Health,Third Party Payments,460803,Contract Payments,03-Jan-2017,3226125-FFQC/00000063NRT,894.86,M & M PHARMACIES LTD.
Adult and Health Services,Public Health,Third Party Payments,460803,Contract Payments,03-Jan-2017,3226126-DWMD/00000080NRT,539.51,M & M PHARMACIES LTD.
Adult and Health Services,Public Health,Third Party Payments,460803,Contract Payments,03-Jan-2017,3226127-LKWJ/00000078NRT,875.94,M & M PHARMACIES LTD.
Adult and Health Services,Head of Adults,Supplies and Services,308013,Furniture,03-Jan-2017,3226137-16123,"2,016.00",MAYFAIR CARPETS.
Adult and Health Services,Head of Adults,Third Party Payments,478151,Purchase of Care,03-Jan-2017,3226188-1300004195,845.64,PROGRESS CARE HOUSING ASSOCIATION LTD.
Adult and Health Services,Public Health,Third Party Payments,460803,Contract Payments,03-Jan-2017,3226200-FCTK/00000075NRT,981.72,ROBERTS & ROBERTS LTD T/A HIGGINBOTTOM PHARMACY.
Adult and Health Services,Commissioning inc Supporting People,Third Party Payments,473111,Purchase of Care,03-Jan-2017,3226222-LH334,"40,953.00",ST MARGARETS CENTRE.
Adult and Health Services,Commissioning inc Supporting People,Third Party Payments,479102,Purchase of Care,03-Jan-2017,3226245-31999,"5,127.50",THE APPROPRIATE ADULT SERVICE LTD.
Adult and Health Services,Public Health,Supplies and Services,338094,Services,03-Jan-2017,3226246-4308,"2,325.00",THE DURHAM CENTRE LTD.
Adult and Health Services,Public Health,Supplies and Services,338094,Services,03-Jan-2017,3226246-4310,591.00,THE DURHAM CENTRE LTD.
Adult and Health Services,Public Health,Third Party Payments,460803,Contract Payments,03-Jan-2017,3226274-FNFV/00000048NRT,753.23,W SMITH (DURHAM) LTD.
Adult and Health Services,Public Health,Third Party Payments,460803,Contract Payments,03-Jan-2017,3226279-FRAK/00000080NRT,699.98,WG CLEMITSONS LTD.*
Children and Young Peoples Services,Childrens Services,Transport,230005,Contract Hire,03-Jan-2017,3225931-B6/ZA,"2,140.00",AABAT TAXIS.
Children and Young Peoples Services,Education,Transport,230003,Contract Hire,03-Jan-2017,3225933-21/16A,"2,672.00",ADVANCE TRAVEL.
Children and Young Peoples Services,Education,Supplies and Services,384540,Miscellaneous Expenses,03-Jan-2017,3225954-395299,"1,560.79",BAUER RADIO LTD.
Children and Young Peoples Services,Childrens Services,Supplies and Services,344033,Telephones,03-Jan-2017,3225988-NE19493805Q053DM,928.29,BRITISH TELECOMMUNICATIONS PLC.
Children and Young Peoples Services,Childrens Services,Third Party Payments,425020,Rendered by Voluntary Organisations,03-Jan-2017,3225991-250/17,740.00,BUTTERWICK HOSPICE RETAIL LTD.
Children and Young Peoples Services,Childrens Services,Third Party Payments,425020,Rendered by Voluntary Organisations,03-Jan-2017,3225991-251/17,"1,480.00",BUTTERWICK HOSPICE RETAIL LTD.
Children and Young Peoples Services,Childrens Services,Third Party Payments,425020,Rendered by Voluntary Organisations,03-Jan-2017,3225991-257/17,740.00,BUTTERWICK HOSPICE RETAIL LTD.
Children and Young Peoples Services,Childrens Services,Third Party Payments,425020,Rendered by Voluntary Organisations,03-Jan-2017,3225991-259/17,"1,110.00",BUTTERWICK HOSPICE RETAIL LTD.
Children and Young Peoples Services,Education,Third Party Payments,440999,Other Third Party Payments,03-Jan-2017,3225994-142,"1,220.92",CAPITAL 4 TRAINING LTD
Children and Young Peoples Services,Education,Third Party Payments,440999,Other Third Party Payments,03-Jan-2017,3225994-143,663.39,CAPITAL 4 TRAINING LTD
Children and Young Peoples Services,Childrens Services,Transport,230005,Contract Hire,03-Jan-2017,3226005-CLUB16041R,696.00,CLUBMAN CABS.
Children and Young Peoples Services,Childrens Services,Transport,230005,Contract Hire,03-Jan-2017,3226005-CLUB16044S,660.00,CLUBMAN CABS.
Children and Young Peoples Services,Childrens Services,Supplies and Services,338094,Services,03-Jan-2017,3226027-INV15,"1,920.00",DAWDON YOUTH & COMMUNITY CENTRE.
Children and Young Peoples Services,Childrens Services,Supplies and Services,384491,Miscellaneous Expenses,03-Jan-2017,3226047-16C/SP/467TEACHING,583.80,EMERALD NURSERY.
Children and Young Peoples Services,Childrens Services,Transport,230005,Contract Hire,03-Jan-2017,3226114-3510,937.50,LINCAB TAXIS.
Children and Young Peoples Services,Central Charges (CYPS),Creditors,952118,Creditor-criminal injuries compen,03-Jan-2017,3226146-CAS-12-2016-146,"16,507.88",REDACTED - PAYMENT TO INDIVIDUAL
Children and Young Peoples Services,Childrens Services,Third Party Payments,486046,Service Level Agreements,03-Jan-2017,3226156-39327,"1,483.93",NATIONAL YOUTH ADVOCACY SERVICE.
Dedicated Schools Grant,Dedicated Schools Grant,Transport,230010,Contract Hire,03-Jan-2017,3226201-B008-NOV16,"2,687.00",S DUNCAN PRIVATE HIRE.
Children and Young Peoples Services,Childrens Services,Third Party Payments,425041,Rendered by Voluntary Organisations,03-Jan-2017,3226228-578955,"18,000.00",STOCKTON ON TEES BOROUGH COUNCIL.
Dedicated Schools Grant,Dedicated Schools Grant,Third Party Payments,425005,Rendered by Voluntary Organisations,03-Jan-2017,3226237-435,"8,834.21",TALBOT HOUSE SCHOOL.
Children and Young Peoples Services,Education,Supplies and Services,324500,Provisions,03-Jan-2017,3226239-SI-TSW-1031364,"4,240.40",TAYLOR SHAW LTD.
Children and Young Peoples Services,Education,Supplies and Services,338094,Services,03-Jan-2017,3226246-4269,"3,177.50",THE DURHAM CENTRE LTD.
Children and Young Peoples Services,Childrens Services,Employees,080025,Agency Staff,03-Jan-2017,3226270-233367,540.00,VISION FOR EDUCATION LTD.
Children and Young Peoples Services,Childrens Services,Employees,080025,Agency Staff,03-Jan-2017,3226270-234823,540.00,VISION FOR EDUCATION LTD.
Children and Young Peoples Services,Childrens Services,Third Party Payments,425019,Rendered by Voluntary Organisations,03-Jan-2017,3226284-196,"70,609.00",WITHERSLACK CARE & EDUCATION INITIATIVES.
Children and Young Peoples Services,Childrens Services,Third Party Payments,425019,Rendered by Voluntary Organisations,03-Jan-2017,3226284-197,"70,609.00",WITHERSLACK CARE & EDUCATION INITIATIVES.
Children and Young Peoples Services,Childrens Services,Third Party Payments,425019,Rendered by Voluntary Organisations,03-Jan-2017,3226284-202,"70,609.00",WITHERSLACK CARE & EDUCATION INITIATIVES.
Dedicated Schools Grant,Dedicated Schools Grant,Third Party Payments,425005,Rendered by Voluntary Organisations,03-Jan-2017,3226284-3139,"32,470.00",WITHERSLACK CARE & EDUCATION INITIATIVES.
Regeneration and Local Services,Culture & Sport,Supplies and Services,304259,Equipment and Materials,03-Jan-2017,3225932-116298154,852.50,AC ENTERTAINMENT TECHNOLOGIES.
Regeneration and Local Services,Technical Services,Supplies and Services,304221,Equipment and Materials,03-Jan-2017,3225934-24160177,"1,248.98",AGGREGATE INDUSTRIES UK LTD.
Regeneration and Local Services,Technical Services,Supplies and Services,304221,Equipment and Materials,03-Jan-2017,3225934-24166125,"1,637.25",AGGREGATE INDUSTRIES UK LTD.
Regeneration and Local Services,Technical Services,Supplies and Services,304221,Equipment and Materials,03-Jan-2017,3225934-24166126,"1,233.94",AGGREGATE INDUSTRIES UK LTD.
Regeneration and Local Services,Technical Services,Supplies and Services,304221,Equipment and Materials,03-Jan-2017,3225934-24166129,622.40,AGGREGATE INDUSTRIES UK LTD.
Regeneration and Local Services,Technical Services,Supplies and Services,304221,Equipment and Materials,03-Jan-2017,3225934-24172280,743.86,AGGREGATE INDUSTRIES UK LTD.
Regeneration and Local Services,Technical Services,Supplies and Services,304221,Equipment and Materials,03-Jan-2017,3225962-BMPR/021/LW,750.00,BISHOP MIDDLEHAM PLANT & RECYCLING LTD.
Regeneration and Local Services,Technical Services,Supplies and Services,304221,Equipment and Materials,03-Jan-2017,3225962-BMPR/024/LW,"1,050.00",BISHOP MIDDLEHAM PLANT & RECYCLING LTD.
Regeneration and Local Services,Technical Services,Supplies and Services,304221,Equipment and Materials,03-Jan-2017,3225962-TTI,"1,800.00",BISHOP MIDDLEHAM PLANT & RECYCLING LTD.
Regeneration and Local Services,Economic Development and Housing,Supplies and Services,338027,Services,03-Jan-2017,3225968-3171275,"2,605.10",BOND DICKINSON LLP.
Regeneration and Local Services,Technical Services,Creditors,952029,Creditor-returnable bonds,03-Jan-2017,3225992-NEI-EXP-12-2016-025,"2,058.12",CALAMANDER DEVELOPMENTS LTD.
Regeneration and Local Services,Direct Services,Third Party Payments,460305,Contract Payments,03-Jan-2017,3226006-3071,"1,260.00",CO-WHEELS CAR CLUB CIC.
Regeneration and Local Services,Economic Development and Housing,Supplies and Services,384700,Miscellaneous Expenses,03-Jan-2017,3226026-RED-12-2016-275,"1,500.00",DAVID S POOLE ACCOUNTANCY SERVICES LTD.
Regeneration and Local Services,Economic Development and Housing,Supplies and Services,384700,Miscellaneous Expenses,03-Jan-2017,3226054-RED-12-2016-274,"2,000.00",FIDGEON LTD.
Regeneration and Local Services,Direct Services,Supplies and Services,304221,Equipment and Materials,03-Jan-2017,3226057-1612-053816,"3,430.00",FLAME HEATING SPARES LTD.
Regeneration and Local Services,Direct Services,Supplies and Services,304252,Equipment and Materials,03-Jan-2017,3226064-007063204,732.00,GAP GROUP LTD.
Regeneration and Local Services,Technical Services,Supplies and Services,304252,Equipment and Materials,03-Jan-2017,3226064-007063207,722.47,GAP GROUP LTD.
Regeneration and Local Services,Direct Services,Supplies and Services,304252,Equipment and Materials,03-Jan-2017,3226064-007063218,"1,315.88",GAP GROUP LTD.
Regeneration and Local Services,Technical Services,Supplies and Services,304221,Equipment and Materials,03-Jan-2017,3226077-SIN7048801,595.00,HCS DRAIN SERVICES LTD.
Regeneration and Local Services,Technical Services,Supplies and Services,338027,Services,03-Jan-2017,3226093-B225H005-021,"4,314.37",JACOBS UK LTD.
Regeneration and Local Services,Technical Services,Supplies and Services,338027,Services,03-Jan-2017,3226093-B225H007-012,"2,422.97",JACOBS UK LTD.
Regeneration and Local Services,Technical Services,Third Party Payments,430100,Rendered by Private Contractors,03-Jan-2017,3226107-1940,"78,547.96",L & G PLANT HIRE & SALES LTD.
Regeneration and Local Services,Culture & Sport,Supplies and Services,304252,Equipment and Materials,03-Jan-2017,3226136-SIN205705,561.00,MAUDESPORT LTD.
Regeneration and Local Services,Direct Services,Third Party Payments,430100,Rendered by Private Contractors,03-Jan-2017,3226157-623141,"2,045.00",NATIONWIDE CHIMNEY COMPONENTS LTD.
Regeneration and Local Services,Technical Services,Supplies and Services,384194,Miscellaneous Expenses,03-Jan-2017,3226161-74943,"2,865.00",NIRAMAX GROUP LTD.
Regeneration and Local Services,Technical Services,Third Party Payments,430100,Rendered by Private Contractors,03-Jan-2017,3226167-DI20258932,767.63,NORTHERN POWERGRID (NORTHEAST) LTD.
Regeneration and Local Services,Transport and Contracted Services,Construction Work,908201,Capital - Public Utilities - Electricity Services,03-Jan-2017,3226167-DI20259260,"10,859.41",NORTHERN POWERGRID (NORTHEAST) LTD.
Regeneration and Local Services,Direct Services,Transport,215005,Running Costs of Vehicles,03-Jan-2017,3226172-209948,"14,791.75",OIL NRG LTD.
Regeneration and Local Services,Direct Services,Transport,215022,Running Costs of Vehicles,03-Jan-2017,3226172-209949,952.00,OIL NRG LTD.
Regeneration and Local Services,Direct Services,Transport,215005,Running Costs of Vehicles,03-Jan-2017,3226173-210035,"16,269.13",OIL NRG LTD.
Regeneration and Local Services,Direct Services,Transport,215005,Running Costs of Vehicles,03-Jan-2017,3226173-210872,"33,551.58",OIL NRG LTD.
Regeneration and Local Services,Direct Services,Transport,215005,Running Costs of Vehicles,03-Jan-2017,3226173-211442,"20,778.86",OIL NRG LTD.
Regeneration and Local Services,Direct Services,Transport,215005,Running Costs of Vehicles,03-Jan-2017,3226173-211637,"16,464.87",OIL NRG LTD.
Regeneration and Local Services,Direct Services,Transport,215022,Running Costs of Vehicles,03-Jan-2017,3226173-211676,"1,039.60",OIL NRG LTD.
Regeneration and Local Services,Direct Services,Transport,215005,Running Costs of Vehicles,03-Jan-2017,3226173-211677,"4,408.32",OIL NRG LTD.
Regeneration and Local Services,Direct Services,Transport,215005,Running Costs of Vehicles,03-Jan-2017,3226173-212278,"18,891.67",OIL NRG LTD.
Regeneration and Local Services,Economic Development and Housing,Cap Exp on Grants & Other Financial Assistance (REFCUS),918401,Capital grants,03-Jan-2017,3226175-RED-12-2016-273,"3,981.60",PACT HOUSE STANLEY.
Regeneration and Local Services,Culture & Sport,Supplies and Services,384199,Miscellaneous Expenses,03-Jan-2017,3226177-GALABAND5/12/16,690.00,PAUL RICHARD EDIS.
Regeneration and Local Services,Economic Development and Housing,Supplies and Services,338066,Services,03-Jan-2017,3226183-4130,"3,465.00",PHLORUM LTD.
Regeneration and Local Services,Technical Services,Third Party Payments,430100,Rendered by Private Contractors,03-Jan-2017,3226189-93980,550.00,PROTECTOR SECURITY GROUP LTD.
Regeneration and Local Services,Technical Services,Third Party Payments,430100,Rendered by Private Contractors,03-Jan-2017,3226189-94298,550.00,PROTECTOR SECURITY GROUP LTD.
Regeneration and Local Services,Technical Services,Third Party Payments,430100,Rendered by Private Contractors,03-Jan-2017,3226189-94539,550.00,PROTECTOR SECURITY GROUP LTD.
Regeneration and Local Services,Technical Services,Supplies and Services,304221,Equipment and Materials,03-Jan-2017,3226194-9671,"2,106.30",RD KEARTON & SONS LTD.
Regeneration and Local Services,Technical Services,Supplies and Services,304221,Equipment and Materials,03-Jan-2017,3226194-9678,"5,651.80",RD KEARTON & SONS LTD.
Regeneration and Local Services,Culture & Sport,Supplies and Services,324117,Provisions,03-Jan-2017,3226197-3702,508.05,RETAIL LEISURE UK LTD T/A EMPIRE POPCORN.*
Regeneration and Local Services,Technical Services,Third Party Payments,430100,Rendered by Private Contractors,03-Jan-2017,3226220-622750,"3,230.00",SSE CONTRACTING LTD.
Regeneration and Local Services,Direct Services,Premises,108251,Service Repairs and Maintenance,03-Jan-2017,3226225-10395,570.00,STEADFAST SECURITY SOLUTIONS LTD.
Regeneration and Local Services,Culture & Sport,Income,715460,Sales,03-Jan-2017,3226227-NEI-INC-12-2016-032,830.00,STEVEN LLOYD PROMOTIONS LTD.
Regeneration and Local Services,Technical Services,Supplies and Services,304221,Equipment and Materials,03-Jan-2017,3226229-088512,"2,491.16",STONEGRAVE AGGREGATES LTD.
Regeneration and Local Services,Direct Services,Supplies and Services,384700,Miscellaneous Expenses,03-Jan-2017,3226230-D1IN/00025552,500.00,STONHAM HOUSING ASSOCIATION LTD.
Regeneration and Local Services,Economic Development and Housing,Supplies and Services,344033,Telephones,03-Jan-2017,3226250-003635794,943.38,THE PHONE CO-OP.
Regeneration and Local Services,Technical Services,Supplies and Services,304221,Equipment and Materials,03-Jan-2017,3226272-42592,"4,995.00",W MARLEY AGRICULTURAL CONTRACTORS LTD.
Regeneration and Local Services,Culture & Sport,Supplies and Services,338047,Services,03-Jan-2017,3226276-1566758,"1,099.00",WALT DISNEY CO LTD.
Regeneration and Local Services,Culture & Sport,Supplies and Services,338047,Services,03-Jan-2017,3226276-1566759,"3,286.75",WALT DISNEY CO LTD.
Resources,I.C.T. Services,Vehicles Equipment Furniture and Fittings,912701,Computer equipment,03-Jan-2017,3226030-7402331938,"17,843.24",DELL COMPUTER CORPORATION LTD.
Resources,I.C.T. Services,Supplies and Services,342051,Computers and Communications,03-Jan-2017,3226071-124878,"48,144.19",GRAITEC LTD.
Resources,Internal Audit and Insurance,Employees,040149,Recruitment Instruction and Training,03-Jan-2017,3226133-13044,990.00,MAGIQUE GALILEO SOFTWARE LTD.
Resources,I.C.T. Services,Debtors,930174,MFD - Paper Holdings,03-Jan-2017,3226234-8650618,743.60,SUPPLIES TEAM LTD NOW KNOWN AS BANNER GROUP LTD.
Adult and Health Services,Head of Adults,Transport,230005,Contract Hire,04-Jan-2017,305867-7-8,540.00,BENNETTS TAXIS.
Adult and Health Services,Planning & Service Strategy,Supplies and Services,338089,Services,04-Jan-2017,305876-16114,"1,115.00",INDEPENDENT CLINICAL INITIATIVE SERVICES LTD.
Adult and Health Services,Head of Adults,Transport,230005,Contract Hire,04-Jan-2017,3226325-6727,"1,553.60",CROFT BUSINESS SERVICES (UK) LTD T/A CROFT TAXIS.
Adult and Health Services,Commissioning inc Supporting People,Third Party Payments,479101,Purchase of Care,04-Jan-2017,3226383-7482,"11,583.33",MAIN - TAKING AUTISM PERSONALLY.
Adult and Health Services,Commissioning inc Supporting People,Third Party Payments,479101,Purchase of Care,04-Jan-2017,3226383-7483,"11,583.33",MAIN - TAKING AUTISM PERSONALLY.
Adult and Health Services,Planning & Service Strategy,Supplies and Services,384540,Miscellaneous Expenses,04-Jan-2017,3226411-18028838,"1,125.12",NEWSQUEST (YORKSHIRE & NORTH EAST) LTD.
Adult and Health Services,Head of Adults,Supplies and Services,308011,Furniture,04-Jan-2017,3226432-GLG1982,"1,299.90",RENDLES HOUSE FURNISHER.
Adult and Health Services,Planning & Service Strategy,Supplies and Services,338094,Services,04-Jan-2017,3226463-CONF/LE/OOL,"1,100.00",USHAW COLLEGE.
Children and Young Peoples Services,Education,Transport,230008,Contract Hire,04-Jan-2017,305868-M047/37,960.00,C STEWART.
Children and Young Peoples Services,Education,Transport,230006,Contract Hire,04-Jan-2017,3226289-68119,544.00,A & C TAXIS.
Children and Young Peoples Services,Education,Transport,230008,Contract Hire,04-Jan-2017,3226292-A220782,982.85,A MURRAY TRAVEL.
Children and Young Peoples Services,Education,Transport,230006,Contract Hire,04-Jan-2017,3226298-DC12/16,860.00,ANDY`S TAXIS.
Children and Young Peoples Services,Education,Transfer Payments,510026,School Children,04-Jan-2017,3226313-5/12/16,"1,123.20",BUSY BODIES CHILDCARE.
Children and Young Peoples Services,Education,Transport,230008,Contract Hire,04-Jan-2017,3226314-BIL0091,"1,072.20",CA MUSGROVE.
Children and Young Peoples Services,Education,Transport,230007,Contract Hire,04-Jan-2017,3226319-45660,900.00,CJ GRIERSON T/A GRIERSONS COACHES.
Children and Young Peoples Services,Education,Transport,230003,Contract Hire,04-Jan-2017,3226319-45661,"1,788.00",CJ GRIERSON T/A GRIERSONS COACHES.
Children and Young Peoples Services,Education,Transfer Payments,510026,School Children,04-Jan-2017,3226320-CAS-01-2017-002,"1,656.00",CLEVER CLOGS DAY NURSERIES LTD.
Children and Young Peoples Services,Education,Transport,230007,Contract Hire,04-Jan-2017,3226321-934,600.00,CLIVE HUBERY.
Children and Young Peoples Services,Education,Transport,230007,Contract Hire,04-Jan-2017,3226324-DCC/4118/DEC16,"2,832.00",COUNTY COACHES.
Children and Young Peoples Services,Education,Transport,230008,Contract Hire,04-Jan-2017,3226325-6720,"1,906.44",CROFT BUSINESS SERVICES (UK) LTD T/A CROFT TAXIS.
Children and Young Peoples Services,Education,Transport,230008,Contract Hire,04-Jan-2017,3226325-6729,682.44,CROFT BUSINESS SERVICES (UK) LTD T/A CROFT TAXIS.
Children and Young Peoples Services,Education,Transport,230008,Contract Hire,04-Jan-2017,3226325-6730,707.04,CROFT BUSINESS SERVICES (UK) LTD T/A CROFT TAXIS.
Children and Young Peoples Services,Education,Transport,230008,Contract Hire,04-Jan-2017,3226325-6731,"1,184.64",CROFT BUSINESS SERVICES (UK) LTD T/A CROFT TAXIS.
Children and Young Peoples Services,Education,Transport,230008,Contract Hire,04-Jan-2017,3226325-6732,599.22,CROFT BUSINESS SERVICES (UK) LTD T/A CROFT TAXIS.
Children and Young Peoples Services,Childrens Services,Employees,080025,Agency Staff,04-Jan-2017,3226329-335109,"55,998.04",DE POEL MANAGED SERVICES LTD.
Children and Young Peoples Services,Education,Transport,230007,Contract Hire,04-Jan-2017,3226331-23991,"1,561.92",DURHAM CITY COACHES.
Children and Young Peoples Services,Education,Transport,230003,Contract Hire,04-Jan-2017,3226331-23992,"1,620.00",DURHAM CITY COACHES.
Dedicated Schools Grant,Dedicated Schools Grant,Third Party Payments,440080,Other Third Party Payments,04-Jan-2017,3226334-1001305,"9,860.22",EDUCATION VILLAGE ACADEMY TRUST.*
Children and Young Peoples Services,Education,Transport,230007,Contract Hire,04-Jan-2017,3226340-18951,"1,917.72",GARNETTS LTD (COACHES).
Children and Young Peoples Services,Education,Transport,230003,Contract Hire,04-Jan-2017,3226340-18953,"10,080.00",GARNETTS LTD (COACHES).
Children and Young Peoples Services,Education,Transport,230007,Contract Hire,04-Jan-2017,3226340-18955,"1,416.00",GARNETTS LTD (COACHES).
Children and Young Peoples Services,Education,Transport,230007,Contract Hire,04-Jan-2017,3226340-18957,"1,428.00",GARNETTS LTD (COACHES).
Children and Young Peoples Services,Education,Transport,230003,Contract Hire,04-Jan-2017,3226340-18959,"1,908.00",GARNETTS LTD (COACHES).
Children and Young Peoples Services,Education,Transport,230008,Contract Hire,04-Jan-2017,3226341-9966,"3,159.20",GATESHEAD CENTRAL TAXIS LTD.
Children and Young Peoples Services,Education,Transport,230007,Contract Hire,04-Jan-2017,3226344-3593,684.00,GEM TRAVEL.
Children and Young Peoples Services,Education,Transport,230003,Contract Hire,04-Jan-2017,3226344-3595,"1,179.24",GEM TRAVEL.
Children and Young Peoples Services,Education,Transport,230003,Contract Hire,04-Jan-2017,3226344-3596,840.00,GEM TRAVEL.
Children and Young Peoples Services,Education,Transport,230006,Contract Hire,04-Jan-2017,3226352-HT251,960.00,HARRY`S TAXI`S.
Children and Young Peoples Services,Education,Transport,230008,Contract Hire,04-Jan-2017,3226352-HT252,"1,170.00",HARRY`S TAXI`S.
Children and Young Peoples Services,Education,Transport,230008,Contract Hire,04-Jan-2017,3226353-4-W075-DEC16,540.00,HENRY FOREMAN T/A HENRY`S TAXIS.
Children and Young Peoples Services,Education,Transport,230007,Contract Hire,04-Jan-2017,3226354-10667,867.90,HODGSONS COACH OPERATORS LTD.
Children and Young Peoples Services,Education,Transport,230007,Contract Hire,04-Jan-2017,3226354-10671,"2,186.80",HODGSONS COACH OPERATORS LTD.
Children and Young Peoples Services,Education,Transport,230007,Contract Hire,04-Jan-2017,3226354-10675,"1,302.40",HODGSONS COACH OPERATORS LTD.
Children and Young Peoples Services,Education,Transport,230007,Contract Hire,04-Jan-2017,3226354-10677,950.40,HODGSONS COACH OPERATORS LTD.
Children and Young Peoples Services,Education,Transport,230007,Contract Hire,04-Jan-2017,3226354-10679,"1,749.00",HODGSONS COACH OPERATORS LTD.
Children and Young Peoples Services,Education,Transport,230007,Contract Hire,04-Jan-2017,3226354-10683,"2,079.00",HODGSONS COACH OPERATORS LTD.
Children and Young Peoples Services,Education,Transport,230007,Contract Hire,04-Jan-2017,3226354-10685,"2,083.40",HODGSONS COACH OPERATORS LTD.
Children and Young Peoples Services,Education,Transport,230007,Contract Hire,04-Jan-2017,3226354-10687,"1,738.00",HODGSONS COACH OPERATORS LTD.
Children and Young Peoples Services,Education,Transport,230007,Contract Hire,04-Jan-2017,3226354-10689,"1,540.00",HODGSONS COACH OPERATORS LTD.
Children and Young Peoples Services,Education,Transport,230007,Contract Hire,04-Jan-2017,3226354-10691,"2,420.00",HODGSONS COACH OPERATORS LTD.
Children and Young Peoples Services,Education,Transport,230007,Contract Hire,04-Jan-2017,3226354-10693,646.80,HODGSONS COACH OPERATORS LTD.
Children and Young Peoples Services,Education,Transfer Payments,510026,School Children,04-Jan-2017,3226355-23881,864.00,HOUSE OF EDEN CHILDRENS NURSERY.
Children and Young Peoples Services,Education,Transport,230008,Contract Hire,04-Jan-2017,3226362-A116D,720.00,JAFFAS TAXIS.
Children and Young Peoples Services,Childrens Services,Supplies and Services,304259,Equipment and Materials,04-Jan-2017,3226363-SIN293128,"2,385.00",JAMES ARMSTRONG & CO LTD  T/A ARMSTRONG COMMERICAL LAUNDRY SYSTEMS.
Children and Young Peoples Services,Education,Transport,230008,Contract Hire,04-Jan-2017,3226365-2593,977.88,JEFF ANDERSON COACHES LTD.
Children and Young Peoples Services,Education,Transport,230008,Contract Hire,04-Jan-2017,3226365-2594,929.88,JEFF ANDERSON COACHES LTD.
Children and Young Peoples Services,Education,Transport,230007,Contract Hire,04-Jan-2017,3226365-2596,"1,127.88",JEFF ANDERSON COACHES LTD.
Children and Young Peoples Services,Education,Transport,230007,Contract Hire,04-Jan-2017,3226365-2597,"1,087.35",JEFF ANDERSON COACHES LTD.
Children and Young Peoples Services,Education,Transport,230003,Contract Hire,04-Jan-2017,3226366-2016/27,612.00,JM HUMBLE COACH HIRE.
Children and Young Peoples Services,Education,Transport,230003,Contract Hire,04-Jan-2017,3226366-2016/28,998.40,JM HUMBLE COACH HIRE.
Children and Young Peoples Services,Education,Transport,230008,Contract Hire,04-Jan-2017,3226368-29-31/10/16,"1,320.00",JOHN CRAKE & SONS MINI BUSES LTD.
Children and Young Peoples Services,Education,Transport,230008,Contract Hire,04-Jan-2017,3226368-30,"1,716.00",JOHN CRAKE & SONS MINI BUSES LTD.
Children and Young Peoples Services,Education,Transport,230008,Contract Hire,04-Jan-2017,3226368-31,990.00,JOHN CRAKE & SONS MINI BUSES LTD.
Children and Young Peoples Services,Education,Transport,230007,Contract Hire,04-Jan-2017,3226369-53,600.00,JOHN WARE T/A J & K TAXIS.
Children and Young Peoples Services,Education,Transport,230008,Contract Hire,04-Jan-2017,3226370-M03626,539.00,JOVIAL PRIVATE HIRE.
Children and Young Peoples Services,Education,Transport,230008,Contract Hire,04-Jan-2017,3226370-N03026,913.00,JOVIAL PRIVATE HIRE.
Children and Young Peoples Services,Education,Transport,230008,Contract Hire,04-Jan-2017,3226372-04-DEC16,576.00,KD TAXIS.
Children and Young Peoples Services,Education,Transport,230008,Contract Hire,04-Jan-2017,3226375-4C,748.00,L & R PRIVATE HIRE.
Children and Young Peoples Services,Education,Transport,230006,Contract Hire,04-Jan-2017,3226378-3521,"2,020.86",LINCAB TAXIS.
Children and Young Peoples Services,Education,Transport,230008,Contract Hire,04-Jan-2017,3226379-3032,"1,272.00",LOCAL TRANSPORT LTD.
Children and Young Peoples Services,Education,Transport,230012,Contract Hire,04-Jan-2017,3226381-48,552.00,LUMLEY TAXIS.
Children and Young Peoples Services,Education,Transport,230012,Contract Hire,04-Jan-2017,3226382-494-6/12/16,"2,090.00",MACS TAXIS DURHAM LTD.
Children and Young Peoples Services,Education,Transport,230007,Contract Hire,04-Jan-2017,3226382-496,660.00,MACS TAXIS DURHAM LTD.
Children and Young Peoples Services,Education,Transport,230008,Contract Hire,04-Jan-2017,3226384-25,840.00,MALCOLM CARR T/A CARLY CABS.
Dedicated Schools Grant,Dedicated Schools Grant,Transport,230010,Contract Hire,04-Jan-2017,3226385-121601,912.00,MARK & JOHN CHISHOLM T/A (CHEVRON).
Dedicated Schools Grant,Dedicated Schools Grant,Transport,230010,Contract Hire,04-Jan-2017,3226385-121602,912.00,MARK & JOHN CHISHOLM T/A (CHEVRON).
Children and Young Peoples Services,Education,Transport,230007,Contract Hire,04-Jan-2017,3226385-121603,900.00,MARK & JOHN CHISHOLM T/A (CHEVRON).
Children and Young Peoples Services,Education,Transport,230008,Contract Hire,04-Jan-2017,3226385-121605,960.00,MARK & JOHN CHISHOLM T/A (CHEVRON).
Children and Young Peoples Services,Education,Transport,230012,Contract Hire,04-Jan-2017,3226385-121606,762.00,MARK & JOHN CHISHOLM T/A (CHEVRON).
Children and Young Peoples Services,Education,Transport,230008,Contract Hire,04-Jan-2017,3226385-121607,858.00,MARK & JOHN CHISHOLM T/A (CHEVRON).
Children and Young Peoples Services,Education,Transport,230008,Contract Hire,04-Jan-2017,3226386-381216,869.00,MARK MUSGROVE T/A MARKS TAXIS.
Children and Young Peoples Services,Education,Transport,230012,Contract Hire,04-Jan-2017,3226386-481216,612.00,MARK MUSGROVE T/A MARKS TAXIS.
Children and Young Peoples Services,Education,Transport,230008,Contract Hire,04-Jan-2017,3226387-04-DEC16,720.00,MARK SUMMERS T/A MARK`S TAXI.
Children and Young Peoples Services,Education,Transport,230008,Contract Hire,04-Jan-2017,3226389-MCD36045,"1,020.00",MCDONALD TRAVEL.
Children and Young Peoples Services,Education,Transport,230008,Contract Hire,04-Jan-2017,3226389-MCD36048,"1,443.00",MCDONALD TRAVEL.
Children and Young Peoples Services,Education,Transport,230008,Contract Hire,04-Jan-2017,3226389-MCD36050,912.00,MCDONALD TRAVEL.
Children and Young Peoples Services,Education,Transport,230008,Contract Hire,04-Jan-2017,3226389-MCD36051,888.00,MCDONALD TRAVEL.
Children and Young Peoples Services,Education,Transport,230008,Contract Hire,04-Jan-2017,3226390-20A,"1,122.60",MICHAEL A BODDY T/A MBS TAXIS.
Children and Young Peoples Services,Education,Transport,230008,Contract Hire,04-Jan-2017,3226391-00875,"1,188.00",MICHAELS TRAVEL.
Children and Young Peoples Services,Education,Transport,230007,Contract Hire,04-Jan-2017,3226391-00876,960.00,MICHAELS TRAVEL.
Children and Young Peoples Services,Education,Transport,230007,Contract Hire,04-Jan-2017,3226393-13,960.00,MORGAN`S TRAVEL.
Children and Young Peoples Services,Education,Transport,230007,Contract Hire,04-Jan-2017,3226393-14,"1,140.00",MORGAN`S TRAVEL.
Children and Young Peoples Services,Education,Transport,230008,Contract Hire,04-Jan-2017,3226395-EL12-16,"1,008.80",MR CT WALKER T/A CW TAXIS.
Children and Young Peoples Services,Education,Transport,230008,Contract Hire,04-Jan-2017,3226395-EPN12-16,965.80,MR CT WALKER T/A CW TAXIS.
Children and Young Peoples Services,Education,Transport,230008,Contract Hire,04-Jan-2017,3226395-WAL212-16,876.00,MR CT WALKER T/A CW TAXIS.
Children and Young Peoples Services,Education,Transport,230008,Contract Hire,04-Jan-2017,3226397-0304829,"1,094.40",MR GN ROBBINS T/A GNR MINIBUS HIRE.
Children and Young Peoples Services,Education,Transport,230008,Contract Hire,04-Jan-2017,3226398-SFB/12/16,"1,008.00",MR J AGAR T/A PARK TAXIS.
Children and Young Peoples Services,Education,Transport,230007,Contract Hire,04-Jan-2017,3226399-55,612.00,MR JOHN ALLINSON T/A AALPHA TAXIS.
Children and Young Peoples Services,Education,Transport,230008,Contract Hire,04-Jan-2017,3226400-A057/12/16,"1,008.00",MR M ALLISON T/A MACBETH TAXIS/COACHES.
Children and Young Peoples Services,Education,Transport,230012,Contract Hire,04-Jan-2017,3226400-N053/12/16,"1,140.00",MR M ALLISON T/A MACBETH TAXIS/COACHES.
Children and Young Peoples Services,Education,Transport,230006,Contract Hire,04-Jan-2017,3226402-0014,618.00,MR PM MULLEN T/A CATHEDRAL TAXIS.
Children and Young Peoples Services,Education,Transport,230003,Contract Hire,04-Jan-2017,3226402-0015,600.00,MR PM MULLEN T/A CATHEDRAL TAXIS.
Children and Young Peoples Services,Education,Transport,230007,Contract Hire,04-Jan-2017,3226403-1201,720.00,MR REES WILKINSON T/A B & L MINIBUS HIRE.
Children and Young Peoples Services,Education,Transport,230003,Contract Hire,04-Jan-2017,3226403-1211,540.00,MR REES WILKINSON T/A B & L MINIBUS HIRE.
Children and Young Peoples Services,Education,Transport,230008,Contract Hire,04-Jan-2017,3226405-AA364,"1,204.92",MR T GUNN.
Children and Young Peoples Services,Education,Transport,230006,Contract Hire,04-Jan-2017,3226408-004,594.00,MT`S CABS.
Children and Young Peoples Services,Education,Transport,230008,Contract Hire,04-Jan-2017,3226409-026,660.00,NEIL PASSMOOR T/A NEIL`S TAXI.
Children and Young Peoples Services,Education,Transport,230008,Contract Hire,04-Jan-2017,3226409-26,935.00,NEIL PASSMOOR T/A NEIL`S TAXI.
Dedicated Schools Grant,Dedicated Schools Grant,Transport,230011,Contract Hire,04-Jan-2017,3226410-203,576.00,NEVILLE FORBES T/A FORBES TAXIS.
Children and Young Peoples Services,Education,Transport,230007,Contract Hire,04-Jan-2017,3226418-6772,"2,035.00",OVERLANDER LTD.
Children and Young Peoples Services,Education,Transport,230007,Contract Hire,04-Jan-2017,3226418-6837,"1,110.00",OVERLANDER LTD.
Children and Young Peoples Services,Education,Transport,230012,Contract Hire,04-Jan-2017,3226420-SC-108,960.00,PAUL BURRELL T/A PAUL BURRELL TAXIS.
Children and Young Peoples Services,Education,Transport,230008,Contract Hire,04-Jan-2017,3226421-04,905.40,PAUL ROSE T/A PAUL`S TAXIS.
Children and Young Peoples Services,Education,Transport,230008,Contract Hire,04-Jan-2017,3226422-DCC126,"1,680.00",PAUL`S TAXIS..
Children and Young Peoples Services,Education,Transport,230008,Contract Hire,04-Jan-2017,3226424-536,840.00,PETERLEE EXECUTIVE CARS.
Children and Young Peoples Services,Education,Transport,230008,Contract Hire,04-Jan-2017,3226426-0497,"1,200.00",PETER`S PRIVATE HIRE/PETER BEST.
Children and Young Peoples Services,Education,Transport,230008,Contract Hire,04-Jan-2017,3226426-0498,"1,188.00",PETER`S PRIVATE HIRE/PETER BEST.
Children and Young Peoples Services,Education,Transport,230012,Contract Hire,04-Jan-2017,3226427-1223,744.00,PODA LTD.
Children and Young Peoples Services,Education,Transport,230006,Contract Hire,04-Jan-2017,3226441-21938,993.70,STANLEY TRAVEL (NORTH EAST) LTD.
Children and Young Peoples Services,Education,Transport,230006,Contract Hire,04-Jan-2017,3226441-22407-30/11/16,"1,359.80",STANLEY TRAVEL (NORTH EAST) LTD.
Children and Young Peoples Services,Education,Transport,230007,Contract Hire,04-Jan-2017,3226442-391,816.00,STEPHEN MAUDE LTD T/A MAUDES COACHES.
Children and Young Peoples Services,Education,Transport,230007,Contract Hire,04-Jan-2017,3226442-392,816.00,STEPHEN MAUDE LTD T/A MAUDES COACHES.
Children and Young Peoples Services,Education,Transport,230013,Contract Hire,04-Jan-2017,3226443-161210,600.00,STEVEN PRATT T/A PTL TAXIS DURHAM.
Children and Young Peoples Services,Childrens Services,Transport,230007,Contract Hire,04-Jan-2017,3226449-6349,"2,628.28",SUPPORTIVE SRC LTD.
Children and Young Peoples Services,Childrens Services,Transport,230007,Contract Hire,04-Jan-2017,3226449-6561,817.43,SUPPORTIVE SRC LTD.
Children and Young Peoples Services,Childrens Services,Transport,230007,Contract Hire,04-Jan-2017,3226449-6566,542.04,SUPPORTIVE SRC LTD.
Children and Young Peoples Services,Childrens Services,Transport,230007,Contract Hire,04-Jan-2017,3226449-6570,"1,961.92",SUPPORTIVE SRC LTD.
Children and Young Peoples Services,Childrens Services,Transport,230007,Contract Hire,04-Jan-2017,3226449-6587,"1,410.63",SUPPORTIVE SRC LTD.
Children and Young Peoples Services,Childrens Services,Third Party Payments,425021,Rendered by Voluntary Organisations,04-Jan-2017,3226452-442,"81,894.24",TALBOT HOUSE SCHOOL.
Children and Young Peoples Services,Childrens Services,Employees,080025,Agency Staff,04-Jan-2017,3226454-4810008835,"6,789.75",TEES ESK & WEAR VALLEYS NHS FOUNDATION TRUST.
Children and Young Peoples Services,Education,Transfer Payments,510026,School Children,04-Jan-2017,3226457-CAS-01-2017-001,"5,040.00",THE NURSERY.
Children and Young Peoples Services,Education,Transport,230006,Contract Hire,04-Jan-2017,3226459-0001793,"1,200.00",TONY RIDLEY T/A COLORS TAXIS LTD.
Children and Young Peoples Services,Education,Transport,230008,Contract Hire,04-Jan-2017,3226461-B105,518.00,TRUDY`S.
Children and Young Peoples Services,Childrens Services,Employees,080025,Agency Staff,04-Jan-2017,3226466-234822,749.85,VISION FOR EDUCATION LTD.
Children and Young Peoples Services,Childrens Services,Supplies and Services,338099,Services,04-Jan-2017,3226472-376,539.00,WINGATE & STATION TOWN FAMILY CENTRE.
Regeneration and Local Services,Direct Services,Third Party Payments,430100,Rendered by Private Contractors,04-Jan-2017,305873-554,"11,020.00",EQUINE SUPPORT LTD.
Regeneration and Local Services,Direct Services,Third Party Payments,430100,Rendered by Private Contractors,04-Jan-2017,305873-561,"3,050.00",EQUINE SUPPORT LTD.
Regeneration and Local Services,Direct Services,Construction Work,908105,Construction work,04-Jan-2017,3226291-DEMOLITION,"7,390.50",A BUCKLER (HAULAGE) LTD.
Regeneration and Local Services,Technical Services,Supplies and Services,304221,Equipment and Materials,04-Jan-2017,3226295-24137794,"1,749.12",AGGREGATE INDUSTRIES UK LTD.
Regeneration and Local Services,Technical Services,Supplies and Services,304221,Equipment and Materials,04-Jan-2017,3226295-24153877,730.16,AGGREGATE INDUSTRIES UK LTD.
Regeneration and Local Services,Technical Services,Supplies and Services,304221,Equipment and Materials,04-Jan-2017,3226295-24160178.,608.38,AGGREGATE INDUSTRIES UK LTD.
Regeneration and Local Services,Technical Services,Supplies and Services,304221,Equipment and Materials,04-Jan-2017,3226295-24166127,743.86,AGGREGATE INDUSTRIES UK LTD.
Regeneration and Local Services,Technical Services,Supplies and Services,304221,Equipment and Materials,04-Jan-2017,3226295-24172278,607.55,AGGREGATE INDUSTRIES UK LTD.
Regeneration and Local Services,Technical Services,Supplies and Services,304221,Equipment and Materials,04-Jan-2017,3226295-24179191,960.60,AGGREGATE INDUSTRIES UK LTD.
Regeneration and Local Services,Technical Services,Supplies and Services,304221,Equipment and Materials,04-Jan-2017,3226295-24179194,766.19,AGGREGATE INDUSTRIES UK LTD.
Regeneration and Local Services,Technical Services,Supplies and Services,304221,Equipment and Materials,04-Jan-2017,3226295-24179195,533.02,AGGREGATE INDUSTRIES UK LTD.
Regeneration and Local Services,Technical Services,Supplies and Services,304221,Equipment and Materials,04-Jan-2017,3226295-24182033,"1,243.97",AGGREGATE INDUSTRIES UK LTD.
Regeneration and Local Services,Technical Services,Supplies and Services,304221,Equipment and Materials,04-Jan-2017,3226295-24182035,"1,257.44",AGGREGATE INDUSTRIES UK LTD.
Regeneration and Local Services,Technical Services,Supplies and Services,304221,Equipment and Materials,04-Jan-2017,3226295-24182040,576.28,AGGREGATE INDUSTRIES UK LTD.
Regeneration and Local Services,Technical Services,Supplies and Services,304221,Equipment and Materials,04-Jan-2017,3226295-24182041,"1,023.26",AGGREGATE INDUSTRIES UK LTD.
Regeneration and Local Services,Technical Services,Supplies and Services,304221,Equipment and Materials,04-Jan-2017,3226295-24182044,"1,776.33",AGGREGATE INDUSTRIES UK LTD.
Regeneration and Local Services,Technical Services,Supplies and Services,304221,Equipment and Materials,04-Jan-2017,3226295-24182045,"1,240.68",AGGREGATE INDUSTRIES UK LTD.
Regeneration and Local Services,Technical Services,Third Party Payments,430100,Rendered by Private Contractors,04-Jan-2017,3226303-1656001,"40,218.10",BCE NORTHERN LTD.
Regeneration and Local Services,Technical Services,Supplies and Services,304221,Equipment and Materials,04-Jan-2017,3226305-BMPR/027/LW,750.00,BISHOP MIDDLEHAM PLANT & RECYCLING LTD.
Regeneration and Local Services,Direct Services,Third Party Payments,430100,Rendered by Private Contractors,04-Jan-2017,3226308-4100544335,"1,500.00",BRIAN YOUNGER T/A B & E YOUNGER FLOORING.
Regeneration and Local Services,Direct Services,Supplies and Services,304259,Equipment and Materials,04-Jan-2017,3226311-INV202641,620.00,BROXAP LTD.
Regeneration and Local Services,Direct Services,Supplies and Services,304221,Equipment and Materials,04-Jan-2017,3226312-1660/0518967,725.02,BSS GROUP PLC.
Regeneration and Local Services,Direct Services,Supplies and Services,304221,Equipment and Materials,04-Jan-2017,3226312-1660/0531923,"3,107.26",BSS GROUP PLC.
Regeneration and Local Services,Technical Services,Supplies and Services,342051,Computers and Communications,04-Jan-2017,3226323-03325,"9,000.00",CONCERTO SUPPORT SERVICES LTD.
Regeneration and Local Services,Transport and Contracted Services,Cap Exp on Grants & Other Financial Assistance (REFCUS),918401,Capital grants,04-Jan-2017,3226330-3880,"32,401.00",DENE VALLEY COMMUNITY TRANSPORT LTD.
Regeneration and Local Services,Economic Development and Housing,Cap Exp on Grants & Other Financial Assistance (REFCUS),918401,Capital grants,04-Jan-2017,3226333-RED-12-2016-277,"5,876.50",EBCHESTER VILLAGE STORE LTD.
Regeneration and Local Services,Technical Services,Supplies and Services,304221,Equipment and Materials,04-Jan-2017,3226347-1000238,680.00,GRAB & DELIVER LTD.
Regeneration and Local Services,Technical Services,Stock,926900,Stock in hand-Inventory system,04-Jan-2017,3226349-06/627011,"2,665.16",GREENHAM TRADING LTD.
Regeneration and Local Services,Culture & Sport,Supplies and Services,304259,Equipment and Materials,04-Jan-2017,3226351-415075,"2,525.80",HARROD UK LTD.
Regeneration and Local Services,Culture & Sport,Supplies and Services,304259,Equipment and Materials,04-Jan-2017,3226351-415076,"4,319.60",HARROD UK LTD.
Regeneration and Local Services,Technical Services,Construction Work,908105,Construction work,04-Jan-2017,3226361-13103,"1,124.00",JACK COUPE & SONS LTD T/A COUPE LINE.
Regeneration and Local Services,Technical Services,Third Party Payments,430100,Rendered by Private Contractors,04-Jan-2017,3226361-20000,"24,892.71",JACK COUPE & SONS LTD T/A COUPE LINE.
Regeneration and Local Services,Direct Services,Third Party Payments,430100,Rendered by Private Contractors,04-Jan-2017,3226364-00064649,850.00,JCB FINANCE (LEASING) LTD.*
Regeneration and Local Services,Direct Services,Premises,108099,Service Repairs and Maintenance,04-Jan-2017,3226367-00327,"3,500.00",JN KEARTON.
Regeneration and Local Services,Economic Development and Housing,Supplies and Services,338027,Services,04-Jan-2017,3226376-ARINV/00233433,700.00,LAMBERT SMITH HAMPTON.
Regeneration and Local Services,Economic Development and Housing,Supplies and Services,384700,Miscellaneous Expenses,04-Jan-2017,3226388-RED-12-2016-276,"1,500.00",MARTIN CARVER (BRICKLAYER).
Regeneration and Local Services,Transport and Contracted Services,Supplies and Services,338099,Services,04-Jan-2017,3226428-142642,"1,500.00",PREMIER TRAFFIC MANAGEMENT LTD.
Regeneration and Local Services,Technical Services,Supplies and Services,384194,Miscellaneous Expenses,04-Jan-2017,3226429-20847,755.64,PREMIER WASTE RECYCLING LTD.
Regeneration and Local Services,Culture & Sport,Construction Work,908105,Construction work,04-Jan-2017,3226430-269888,"1,047.60",QUICKSILVER MOVING & STORAGE.
Regeneration and Local Services,Culture & Sport,Supplies and Services,324117,Provisions,04-Jan-2017,3226431-0000003320,861.60,RAMSIDE HALL HOTEL & GOLF CLUB.*
Regeneration and Local Services,Technical Services,Stock,926900,Stock in hand-Inventory system,04-Jan-2017,3226438-189659,"3,956.16",SNAPFAST.
Regeneration and Local Services,Transport and Contracted Services,Third Party Payments,430100,Rendered by Private Contractors,04-Jan-2017,3226439-0001045678,606.60,SRCL LTD.
Regeneration and Local Services,Transport and Contracted Services,Third Party Payments,430106,Rendered by Private Contractors,04-Jan-2017,3226441-22431-3/12/16,"13,629.91",STANLEY TRAVEL (NORTH EAST) LTD.
Regeneration and Local Services,Technical Services,Stock,926900,Stock in hand-Inventory system,04-Jan-2017,3226458-N/IN187203,905.44,THOMAS OWEN & SONS (NEWCASTLE) LTD.
Regeneration and Local Services,Direct Services,Supplies and Services,304221,Equipment and Materials,04-Jan-2017,3226460-30826,"1,540.00",TOTAL PUMP SOLUTIONS LTD.
Regeneration and Local Services,Sport & Leisure,Supplies and Services,384362,Miscellaneous Expenses,04-Jan-2017,3226471-WS/775,"35,375.00",WHEELSCAPE LTD.
Regeneration and Local Services,Direct Services,Supplies and Services,304221,Equipment and Materials,04-Jan-2017,3226474-38686213,"1,347.93",WOLSELEY UK LTD.
Resources,Legal & Democratic Services,Supplies and Services,338042,Services,04-Jan-2017,305881-232349-6/12/16,"2,280.00",MISS KATHERINE WOOD.
Resources,Corporate Services Financing,Debtors,930165,Debtor-Housing Benefit Overpaid Recovered,04-Jan-2017,305886-RES-12-2016-095,600.00,REDACTED - PAYMENT TO INDIVIDUAL
Resources,I.C.T. Services,Supplies and Services,338066,Services,04-Jan-2017,3226342-102080961,"2,806.28",GATESHEAD COUNCIL.
Resources,I.C.T. Services,Supplies and Services,338066,Services,04-Jan-2017,3226342-102080970,"56,513.00",GATESHEAD COUNCIL.
Resources,I.C.T. Services,Supplies and Services,342033,Computers and Communications,04-Jan-2017,3226358-3175496,973.38,INSIGHT DIRECT (UK) LTD.
Resources,I.C.T. Services,Supplies and Services,342051,Computers and Communications,04-Jan-2017,3226417-1574534,"10,416.00",ORACLE CORPORATION UK LTD.
Resources,Financial Services,Supplies and Services,384199,Miscellaneous Expenses,04-Jan-2017,3226444-90532317,"8,103.50",STOCKPORT MBC.
Transformation and Partnerships,Partnerships & Community Engagement Div.,Transfer Payments,525030,Other,04-Jan-2017,3226288-DCTY009SGF02,"1,000.00",234 CITY OF DURHAM SQUADRON AIR CADETS.
Transformation and Partnerships,Partnerships & Community Engagement Div.,Transfer Payments,525030,Other,04-Jan-2017,3226335-DCTY009SGF03,851.06,EXCEL ACADEMY PARTNERSHIP T/A FRAMWELLGATE SCHOOL DURHAM.
Transformation and Partnerships,Partnerships & Community Engagement Div.,Transfer Payments,525030,Other,04-Jan-2017,3226455-TEES009SGF068,855.00,TEESDALE YMCA.
Adult and Health Services,Head of Adults,Transport,230005,Contract Hire,05-Jan-2017,3226495-H6/FC,720.00,AABAT TAXIS.
Adult and Health Services,Head of Adults,Third Party Payments,478151,Purchase of Care,05-Jan-2017,3226553-421R120582,"3,887.52",COMMUNITY INTEGRATED CARE LTD.
Adult and Health Services,Head of Adults,Third Party Payments,478151,Purchase of Care,05-Jan-2017,3226553-421R120583,"3,910.68",COMMUNITY INTEGRATED CARE LTD.
Adult and Health Services,Head of Adults,Third Party Payments,478151,Purchase of Care,05-Jan-2017,3226553-421R120584,615.96,COMMUNITY INTEGRATED CARE LTD.
Adult and Health Services,Public Health,Third Party Payments,460803,Contract Payments,05-Jan-2017,3226572-TVDA00198,"10,000.00",CRUSE BEREAVEMENT CARE.
Adult and Health Services,Head of Adults,Supplies and Services,308011,Furniture,05-Jan-2017,3226612-DHANN-24/11/16,"1,057.00",ELMOLINE LTD.
Adult and Health Services,Head of Adults,Transport,230005,Contract Hire,05-Jan-2017,3226634-039,510.00,GS PEARSON.
Adult and Health Services,Head of Adults,Transport,230005,Contract Hire,05-Jan-2017,3226684-591216,780.00,MARK MUSGROVE T/A MARKS TAXIS.
Adult and Health Services,Public Health,Third Party Payments,460803,Contract Payments,05-Jan-2017,3226730-14,"5,000.00",PATRICE VAN CLEEMPUT.
Adult and Health Services,Head of Adults,Transport,230005,Contract Hire,05-Jan-2017,3226752-16095,"1,210.00",RAPID MINIBUSES.
Adult and Health Services,Head of Adults,Transfer Payments,515201,Social Services Clients,05-Jan-2017,3226773-CAS-01-2017-007,"1,800.00",REDACTED - PAYMENT TO INDIVIDUAL
Adult and Health Services,Head of Adults,Employees,080025,Agency Staff,05-Jan-2017,3226808-4810008839,"3,690.83",TEES ESK & WEAR VALLEYS NHS FOUNDATION TRUST.
Dedicated Schools Grant,Dedicated Schools Grant,Transport,230011,Contract Hire,05-Jan-2017,3226484-121603,672.00,24/7 TAXI SERVICES LTD.
Children and Young Peoples Services,Education,Transport,230008,Contract Hire,05-Jan-2017,3226484-121604,"1,176.00",24/7 TAXI SERVICES LTD.
Children and Young Peoples Services,Education,Transport,230008,Contract Hire,05-Jan-2017,3226484-121605,994.51,24/7 TAXI SERVICES LTD.
Children and Young Peoples Services,Education,Transport,230012,Contract Hire,05-Jan-2017,3226484-121606,874.44,24/7 TAXI SERVICES LTD.
Children and Young Peoples Services,Education,Transport,230006,Contract Hire,05-Jan-2017,3226484-121607,542.76,24/7 TAXI SERVICES LTD.
Children and Young Peoples Services,Education,Transport,230008,Contract Hire,05-Jan-2017,3226484-121608,"1,377.50",24/7 TAXI SERVICES LTD.
Children and Young Peoples Services,Education,Transport,230008,Contract Hire,05-Jan-2017,3226484-121609,600.00,24/7 TAXI SERVICES LTD.
Children and Young Peoples Services,Education,Transport,230006,Contract Hire,05-Jan-2017,3226484-121612,880.00,24/7 TAXI SERVICES LTD.
Children and Young Peoples Services,Education,Transport,230008,Contract Hire,05-Jan-2017,3226484-121617,"1,103.85",24/7 TAXI SERVICES LTD.
Children and Young Peoples Services,Education,Transport,230012,Contract Hire,05-Jan-2017,3226499-25MO,528.00,AJ ADAMSON (TONY`S TAXIS).
Children and Young Peoples Services,Education,Transport,230008,Contract Hire,05-Jan-2017,3226500-153904,834.00,ALAN SOUTHERN T/A ALANS TAXIS PELTON FELL.
Children and Young Peoples Services,Education,Transport,230008,Contract Hire,05-Jan-2017,3226500-388904,810.00,ALAN SOUTHERN T/A ALANS TAXIS PELTON FELL.
Children and Young Peoples Services,Childrens Services,Supplies and Services,308011,Furniture,05-Jan-2017,3226501-157391,"1,020.00",ALBANY CONTRACT FURNITURE.
Children and Young Peoples Services,Childrens Services,Transport,235073,Public Transport,05-Jan-2017,3226511-111635,685.00,ARRIVA NORTH EAST LTD.
Children and Young Peoples Services,Education,Transport,230008,Contract Hire,05-Jan-2017,3226514-1601216,939.36,AVALON TAXIS.
Children and Young Peoples Services,Central Charges (CYPS),Supplies and Services,384197,Miscellaneous Expenses,05-Jan-2017,3226528-A0011510,"1,301.92",BOX IT NORTH.
Children and Young Peoples Services,Education,Transport,235073,Public Transport,05-Jan-2017,3226544-342210-012,500.20,REDACTED - PAYMENT TO INDIVIDUAL
Children and Young Peoples Services,Education,Third Party Payments,440999,Other Third Party Payments,05-Jan-2017,3226561-16/17/158,"5,655.00",CORNFORTH PARTNERSHIP PROJECTS FUND.
Children and Young Peoples Services,Education,Transport,230008,Contract Hire,05-Jan-2017,3226567-N069/DEC/16,862.80,CRAIG RAMSHAW T/A CRAIG`S CABS.
Children and Young Peoples Services,Education,Income,740298,Other Income,05-Jan-2017,3226601-CAS-01-2017-006,"19,639.04",EASINGTON ACADEMY.
Children and Young Peoples Services,Education,Transport,230012,Contract Hire,05-Jan-2017,3226645-37,780.00,IAN SHEPLEY T/A SHEPPA`S TAXIS.
Children and Young Peoples Services,Education,Transport,230007,Contract Hire,05-Jan-2017,3226659-2595,"1,259.88",JEFF ANDERSON COACHES LTD.
Children and Young Peoples Services,Education,Supplies and Services,352001,Conference Expenses,05-Jan-2017,3226669-MWBP/7003,"1,719.91",LEANNTA EDUCATION ASSOCIATES LTD.
Children and Young Peoples Services,Education,Transport,230008,Contract Hire,05-Jan-2017,3226689-MCD36042,"1,700.00",MCDONALD TRAVEL.
Children and Young Peoples Services,Education,Transport,235073,Public Transport,05-Jan-2017,3226702-3583662-28/11-12/12/16,553.54,REDACTED - PAYMENT TO INDIVIDUAL
Children and Young Peoples Services,Education,Transport,235073,Public Transport,05-Jan-2017,3226702-3583662-7/11-21/11/16,553.54,REDACTED - PAYMENT TO INDIVIDUAL
Children and Young Peoples Services,Education,Transport,230008,Contract Hire,05-Jan-2017,3226759-779,888.00,ROAD RUNNERS (NE) LTD.
Children and Young Peoples Services,Education,Transport,230008,Contract Hire,05-Jan-2017,3226759-780,"1,416.00",ROAD RUNNERS (NE) LTD.
Children and Young Peoples Services,Education,Transport,230006,Contract Hire,05-Jan-2017,3226759-783,"1,320.00",ROAD RUNNERS (NE) LTD.
Children and Young Peoples Services,Education,Transport,230006,Contract Hire,05-Jan-2017,3226759-784,648.00,ROAD RUNNERS (NE) LTD.
Children and Young Peoples Services,Education,Transport,230008,Contract Hire,05-Jan-2017,3226759-787,"1,104.00",ROAD RUNNERS (NE) LTD.
Children and Young Peoples Services,Education,Transport,230012,Contract Hire,05-Jan-2017,3226759-789,900.00,ROAD RUNNERS (NE) LTD.
Children and Young Peoples Services,Education,Transport,230008,Contract Hire,05-Jan-2017,3226759-794,900.00,ROAD RUNNERS (NE) LTD.
Children and Young Peoples Services,Education,Transport,230008,Contract Hire,05-Jan-2017,3226759-797,922.50,ROAD RUNNERS (NE) LTD.
Children and Young Peoples Services,Education,Transport,230006,Contract Hire,05-Jan-2017,3226761-0035-DEC16,935.00,RONS TAXI (CHESTER LE ST).
Children and Young Peoples Services,Education,Transport,230006,Contract Hire,05-Jan-2017,3226762-1690,708.00,RON`S TAXIS (FISHBURN).
Children and Young Peoples Services,Education,Transport,230003,Contract Hire,05-Jan-2017,3226765-3208/04,"1,068.00",S & S TRAVEL LTD.
Children and Young Peoples Services,Education,Transport,230008,Contract Hire,05-Jan-2017,3226765-S017/04,"1,008.00",S & S TRAVEL LTD.
Children and Young Peoples Services,Education,Transport,230008,Contract Hire,05-Jan-2017,3226765-W048/04,"1,068.00",S & S TRAVEL LTD.
Children and Young Peoples Services,Education,Transport,230008,Contract Hire,05-Jan-2017,3226765-W052/04,"1,140.00",S & S TRAVEL LTD.
Children and Young Peoples Services,Education,Transport,230008,Contract Hire,05-Jan-2017,3226765-W056/04,"1,008.00",S & S TRAVEL LTD.
Children and Young Peoples Services,Education,Transport,230008,Contract Hire,05-Jan-2017,3226765-W067/15,"1,408.00",S & S TRAVEL LTD.
Children and Young Peoples Services,Education,Transport,230008,Contract Hire,05-Jan-2017,3226765-W085/15,"1,140.00",S & S TRAVEL LTD.
Children and Young Peoples Services,Education,Transport,230008,Contract Hire,05-Jan-2017,3226767-95,"1,162.50",SAZ CABS.
Children and Young Peoples Services,Education,Transport,230006,Contract Hire,05-Jan-2017,3226767-96,846.00,SAZ CABS.
Children and Young Peoples Services,Education,Transport,230008,Contract Hire,05-Jan-2017,3226774-17-16/12/16,690.00,SHARON`S TAXI.
Children and Young Peoples Services,Education,Transport,230012,Contract Hire,05-Jan-2017,3226777-72329,960.00,SHOTTON PRIVATE HIRE.
Children and Young Peoples Services,Education,Transport,230012,Contract Hire,05-Jan-2017,3226780-509,"1,254.00",SIMONS TAXIS.
Children and Young Peoples Services,Education,Transport,230012,Contract Hire,05-Jan-2017,3226782-305A,780.00,SJ MACKENZIE T/A SCOTTS TAXIS.
Children and Young Peoples Services,Education,Transport,230008,Contract Hire,05-Jan-2017,3226782-308A,925.00,SJ MACKENZIE T/A SCOTTS TAXIS.
Children and Young Peoples Services,Education,Transport,230008,Contract Hire,05-Jan-2017,3226786-941963,624.00,SPENNYMOOR TAXIS.
Children and Young Peoples Services,Education,Transport,230008,Contract Hire,05-Jan-2017,3226786-AAK09562,915.86,SPENNYMOOR TAXIS.
Children and Young Peoples Services,Education,Transport,230008,Contract Hire,05-Jan-2017,3226786-TJS84563,768.00,SPENNYMOOR TAXIS.
Children and Young Peoples Services,Education,Transport,230003,Contract Hire,05-Jan-2017,3226789-22660,"1,940.00",STANLEY TRAVEL (NORTH EAST) LTD.
Children and Young Peoples Services,Education,Transport,230003,Contract Hire,05-Jan-2017,3226789-22661-20/12/16,"1,326.72",STANLEY TRAVEL (NORTH EAST) LTD.
Children and Young Peoples Services,Education,Transport,230007,Contract Hire,05-Jan-2017,3226791-21651,731.00,STAR CABS.
Children and Young Peoples Services,Education,Transport,230008,Contract Hire,05-Jan-2017,3226791-21652,"2,092.80",STAR CABS.
Children and Young Peoples Services,Education,Transport,230008,Contract Hire,05-Jan-2017,3226791-21670,998.40,STAR CABS.
Children and Young Peoples Services,Education,Transport,230006,Contract Hire,05-Jan-2017,3226793-DCC004/A035/045,"1,848.00",STEPHEN COXON.
Children and Young Peoples Services,Education,Transport,230008,Contract Hire,05-Jan-2017,3226800-1198,663.00,TAILORMADE TRAVEL.
Children and Young Peoples Services,Education,Transport,230008,Contract Hire,05-Jan-2017,3226802-12/2016/005,720.00,TARNS TAXIS LTD.
Children and Young Peoples Services,Education,Transport,230008,Contract Hire,05-Jan-2017,3226802-12/2016/007,585.00,TARNS TAXIS LTD.
Regeneration and Local Services,Technical Services,Supplies and Services,304221,Equipment and Materials,05-Jan-2017,3226498-24166128,582.80,AGGREGATE INDUSTRIES UK LTD.
Regeneration and Local Services,Technical Services,Supplies and Services,304221,Equipment and Materials,05-Jan-2017,3226498-24167909,886.06,AGGREGATE INDUSTRIES UK LTD.
Regeneration and Local Services,Technical Services,Supplies and Services,304221,Equipment and Materials,05-Jan-2017,3226498-24187906,"1,235.19",AGGREGATE INDUSTRIES UK LTD.
Regeneration and Local Services,Technical Services,Supplies and Services,304221,Equipment and Materials,05-Jan-2017,3226498-24187907,"1,470.20",AGGREGATE INDUSTRIES UK LTD.
Regeneration and Local Services,Technical Services,Supplies and Services,304221,Equipment and Materials,05-Jan-2017,3226498-24187908,735.93,AGGREGATE INDUSTRIES UK LTD.
Regeneration and Local Services,Technical Services,Supplies and Services,304221,Equipment and Materials,05-Jan-2017,3226498-24187910,610.03,AGGREGATE INDUSTRIES UK LTD.
Regeneration and Local Services,Technical Services,Supplies and Services,304221,Equipment and Materials,05-Jan-2017,3226498-24187912,706.55,AGGREGATE INDUSTRIES UK LTD.
Regeneration and Local Services,Technical Services,Supplies and Services,338027,Services,05-Jan-2017,3226512-16030554,"3,353.33",ATKINS GLOBAL.
Regeneration and Local Services,Transport and Contracted Services,Fees,901002,Professional fees,05-Jan-2017,3226517-2103,"1,860.87",BAKER CONSULTANTS LTD.
Regeneration and Local Services,Direct Services,Third Party Payments,430100,Rendered by Private Contractors,05-Jan-2017,3226548-4879,"3,180.00",CITY FABRICATIONS LTD.
Regeneration and Local Services,Culture & Sport,Third Party Payments,430100,Rendered by Private Contractors,05-Jan-2017,3226555-PSINV01418,"27,305.22",COMPETITION LINE UK LTD.
Regeneration and Local Services,Culture & Sport,Income,720810,Fees and Charges,05-Jan-2017,3226555-PSINV01420,"12,143.71",COMPETITION LINE UK LTD.
Regeneration and Local Services,Neighbourhood central costs,Debtors,930017,Debtor-gas contract holding account,05-Jan-2017,3226562-NEI-EXP-01-2017-001,"324,128.26",CORONA ENERGY RETAIL 2 LTD.
Regeneration and Local Services,Direct Services,Third Party Payments,430100,Rendered by Private Contractors,05-Jan-2017,3226576-SIN/16-078217-TNR,"14,480.00",CYRUS RW GROUP LTD.
Regeneration and Local Services,Economic Development and Housing,Supplies and Services,338002,Services,05-Jan-2017,3226635-1514082,"2,750.00",GVA GRIMLEY LTD T/A BILFINGER GVA.
Regeneration and Local Services,Culture & Sport,Supplies and Services,304259,Equipment and Materials,05-Jan-2017,3226636-INV-2358,787.50,GYM TECH NORTH EAST.
Regeneration and Local Services,Transport and Contracted Services,Creditors,952025,Creditor-private street works,05-Jan-2017,3226640-008,"7,192.65",HEWITSON LTD.
Regeneration and Local Services,Direct Services,Third Party Payments,430100,Rendered by Private Contractors,05-Jan-2017,3226657-30988,"2,728.00",JACK TIGHE DECORATING LTD.
Regeneration and Local Services,Technical Services,Supplies and Services,304221,Equipment and Materials,05-Jan-2017,3226685-ZBB1151390,"3,186.58",MARSHALLS MONO LTD.
Regeneration and Local Services,Economic Development and Housing,Construction Work,908105,Construction work,05-Jan-2017,3226697-4481,"2,552.08",MR MJ WILLIAMS T/A MARTINS WINDOWS.
Regeneration and Local Services,Economic Development and Housing,Premises,120009,Energy Costs,05-Jan-2017,3226719-NNO7WW2B,"1,601.45",NPOWER.
Regeneration and Local Services,Transport and Contracted Services,Third Party Payments,430100,Rendered by Private Contractors,05-Jan-2017,3226720-040153,"3,087.03",NSL LTD.
Regeneration and Local Services,Direct Services,Transport,215005,Running Costs of Vehicles,05-Jan-2017,3226723-210212,"13,972.81",OIL NRG LTD.
Regeneration and Local Services,Direct Services,Transport,215022,Running Costs of Vehicles,05-Jan-2017,3226723-210214,"1,433.77",OIL NRG LTD.
Regeneration and Local Services,Direct Services,Transport,215005,Running Costs of Vehicles,05-Jan-2017,3226723-210217,"3,765.62",OIL NRG LTD.
Regeneration and Local Services,Direct Services,Transport,215022,Running Costs of Vehicles,05-Jan-2017,3226723-210218,974.20,OIL NRG LTD.
Regeneration and Local Services,Direct Services,Transport,215005,Running Costs of Vehicles,05-Jan-2017,3226723-211662,"11,432.25",OIL NRG LTD.
Regeneration and Local Services,Direct Services,Transport,215022,Running Costs of Vehicles,05-Jan-2017,3226723-211664,985.89,OIL NRG LTD.
Regeneration and Local Services,Direct Services,Transport,215005,Running Costs of Vehicles,05-Jan-2017,3226723-211666,"1,954.32",OIL NRG LTD.
Regeneration and Local Services,Direct Services,Supplies and Services,304221,Equipment and Materials,05-Jan-2017,3226729-BR559446,560.02,PARK ELECTRICAL DISTRIBUTORS LTD.
Regeneration and Local Services,Technical Services,Third Party Payments,430100,Rendered by Private Contractors,05-Jan-2017,3226745-95014,550.00,PROTECTOR SECURITY GROUP LTD.
Regeneration and Local Services,Economic Development and Housing,Fees,901002,Professional fees,05-Jan-2017,3226760-10890,650.00,ROBERTSON SIMPSON LTD.
Regeneration and Local Services,Direct Services,Debtors,930046,Debtor-leasing,05-Jan-2017,3226779-73509,"20,221.45",SIMON BAILES LTD.
Regeneration and Local Services,Direct Services,Debtors,930046,Debtor-leasing,05-Jan-2017,3226779-73510,"20,221.45",SIMON BAILES LTD.
Regeneration and Local Services,Direct Services,Debtors,930046,Debtor-leasing,05-Jan-2017,3226779-73512,"20,221.45",SIMON BAILES LTD.
Regeneration and Local Services,Direct Services,Debtors,930046,Debtor-leasing,05-Jan-2017,3226779-73513,"20,221.45",SIMON BAILES LTD.
Regeneration and Local Services,Direct Services,Debtors,930046,Debtor-leasing,05-Jan-2017,3226779-73514,"20,221.45",SIMON BAILES LTD.
Regeneration and Local Services,Direct Services,Transport,230710,Contract Hire,05-Jan-2017,3226783-011/16/6516,"1,270.00",SOCIETE GENERALE EQUIPMENT FINANCE LTD.
Regeneration and Local Services,Direct Services,Transport,230710,Contract Hire,05-Jan-2017,3226783-011/16/6666,"1,675.00",SOCIETE GENERALE EQUIPMENT FINANCE LTD.
Regeneration and Local Services,Transport and Contracted Services,Third Party Payments,430106,Rendered by Private Contractors,05-Jan-2017,3226789-22362-4/12/16,"1,632.00",STANLEY TRAVEL (NORTH EAST) LTD.
Regeneration and Local Services,Technical Services,Third Party Payments,430127,Rendered by Private Contractors,05-Jan-2017,3226833-42698,"1,886.00",W MARLEY AGRICULTURAL CONTRACTORS LTD.
Regeneration and Local Services,Technical Services,Stock,926900,Stock in hand-Inventory system,05-Jan-2017,3226840-37798568,"3,540.61",WOLSELEY UK LTD.
Resources,Financial Services,Supplies and Services,338017,Services,05-Jan-2017,3226674-120057243,"7,298.00",LLOYDS BANK PLC.
Resources,I.C.T. Services,Supplies and Services,332029,Printing Stationery and Gen Off Exps,05-Jan-2017,3226751-13896,"2,800.00",RADECAL SIGNS GRAPHICS & ADVERTISING.
Resources,I.C.T. Services,Supplies and Services,332029,Printing Stationery and Gen Off Exps,05-Jan-2017,3226751-14391,985.00,RADECAL SIGNS GRAPHICS & ADVERTISING.
Transformation and Partnerships,Partnerships & Community Engagement Div.,Supplies and Services,384086,Miscellaneous Expenses,05-Jan-2017,3226524-BASH027,"2,000.00",BISHOP AUCKLAND COMMUNITY PARTNERSHIP.
Transformation and Partnerships,Partnerships & Community Engagement Div.,Cap Exp on Grants & Other Financial Assistance (REFCUS),918004,Contributions to other bodies,05-Jan-2017,3226557-DVLY019,"2,000.00",CONSETT YMCA.
Transformation and Partnerships,Partnerships & Community Engagement Div.,Supplies and Services,384086,Miscellaneous Expenses,05-Jan-2017,3226566-MDUR019,"2,000.00",COUNTY DURHAM SOCIALIST CLOTHING BANK.
Transformation and Partnerships,Partnerships & Community Engagement Div.,Transfer Payments,525030,Other,05-Jan-2017,3226587-3TWN001,"5,180.00",DURHAM AGENCY AGAINST CRIME LTD (DAAC).
Transformation and Partnerships,Partnerships & Community Engagement Div.,Cap Exp on Grants & Other Financial Assistance (REFCUS),918004,Contributions to other bodies,05-Jan-2017,3226593-DVLY,"15,700.00",DURHAM POLICE & CRIME COMMISSIONER.
Transformation and Partnerships,Partnerships & Community Engagement Div.,Supplies and Services,384086,Miscellaneous Expenses,05-Jan-2017,3226616-4TOG024,"1,313.48",FERRYHILL STATION & CHILTON LANE RESIDENTS ASSOCIATION.
Transformation and Partnerships,Partnerships & Community Engagement Div.,Supplies and Services,384086,Miscellaneous Expenses,05-Jan-2017,3226771-EDUR076,"2,000.00",SEAHAM MUSIC ACADEMY.
Transformation and Partnerships,Partnerships & Community Engagement Div.,Cap Exp on Grants & Other Financial Assistance (REFCUS),918004,Contributions to other bodies,05-Jan-2017,3226787-EDRC026,"6,000.00",ST HELENS PCC.
Transformation and Partnerships,Partnerships & Community Engagement Div.,Cap Exp on Grants & Other Financial Assistance (REFCUS),918004,Contributions to other bodies,05-Jan-2017,3226811-EDUR050,"6,996.52",THE COMMUNITY CLUB.
Transformation and Partnerships,Partnerships & Community Engagement Div.,Cap Exp on Grants & Other Financial Assistance (REFCUS),918004,Contributions to other bodies,05-Jan-2017,3226837-STAN027,"3,900.92",WHITE LE HEAD METHODIST CHURCH.
Adult and Health Services,Head of Adults,Supplies and Services,338365,Services,06-Jan-2017,3226945-SIN061166,628.70,RNIB ENTERPRISES LTD.
Children and Young Peoples Services,Education,Supplies and Services,338027,Services,06-Jan-2017,3226862-16/17LY0010,945.00,BROOKWOOD PE & SPORT CONSULTANCY.
Children and Young Peoples Services,Education,Supplies and Services,338027,Services,06-Jan-2017,3226880-1617/29/DCCPRIMARY1,945.00,EAG CONSULTANCY SERVICES.
Dedicated Schools Grant,Dedicated Schools Grant,Central Support and Capital,615208,Support Services,06-Jan-2017,3226888-CAS-01-2017-021,"1,995.48",HERMITAGE ACADEMY.
Children and Young Peoples Services,Education,Transport,230007,Contract Hire,06-Jan-2017,3226892-1854,644.00,J YOUNG T/A VIP TAXIS.
Children and Young Peoples Services,Education,Transport,230008,Contract Hire,06-Jan-2017,3226892-1858,784.99,J YOUNG T/A VIP TAXIS.
Children and Young Peoples Services,Education,Transport,230007,Contract Hire,06-Jan-2017,3226892-1861,667.00,J YOUNG T/A VIP TAXIS.
Children and Young Peoples Services,Education,Transport,230008,Contract Hire,06-Jan-2017,3226892-1863,720.00,J YOUNG T/A VIP TAXIS.
Children and Young Peoples Services,Education,Transport,230012,Contract Hire,06-Jan-2017,3226892-1866,936.00,J YOUNG T/A VIP TAXIS.
Children and Young Peoples Services,Education,Transport,230008,Contract Hire,06-Jan-2017,3226910-20A-S037-31/12/16,780.00,MICHAEL A BODDY T/A MBS TAXIS.
Children and Young Peoples Services,Education,Supplies and Services,384199,Miscellaneous Expenses,06-Jan-2017,3226913-2441,"2,250.00",MID NITE EXPRESS.
Children and Young Peoples Services,Education,Transport,230008,Contract Hire,06-Jan-2017,3226916-HW/12/16,770.00,MR J AGAR T/A PARK TAXIS.
Children and Young Peoples Services,Education,Transport,230008,Contract Hire,06-Jan-2017,3226918-2-E056-DEC,700.00,REDACTED - PAYMENT TO INDIVIDUAL
Children and Young Peoples Services,Childrens Services,Supplies and Services,384302,Miscellaneous Expenses,06-Jan-2017,3226919-CAS-01-2017-018,505.00,REDACTED - PAYMENT TO INDIVIDUAL
Children and Young Peoples Services,Education,Transport,230009,Contract Hire,06-Jan-2017,3226930-DCC/7271/12/2016,540.00,PB PRIVATE HIRE.
Children and Young Peoples Services,Education,Transport,230008,Contract Hire,06-Jan-2017,3226930-DCC/N096/12/2016,"1,050.20",PB PRIVATE HIRE.
Children and Young Peoples Services,Education,Transport,230008,Contract Hire,06-Jan-2017,3226946-1688,"1,100.00",RON`S TAXIS (FISHBURN).
Children and Young Peoples Services,Education,Transport,230008,Contract Hire,06-Jan-2017,3226951-72328,"1,920.00",SHOTTON PRIVATE HIRE.
Children and Young Peoples Services,Education,Transport,230008,Contract Hire,06-Jan-2017,3226952-S016-12-16,"1,236.00",SIMON ELLIFF.
Children and Young Peoples Services,Education,Transport,230008,Contract Hire,06-Jan-2017,3226953-510,936.00,SIMONS TAXIS.
Children and Young Peoples Services,Education,Transport,230009,Contract Hire,06-Jan-2017,3226959-22664-20/12/16,"1,164.00",STANLEY TRAVEL (NORTH EAST) LTD.
Children and Young Peoples Services,Education,Transport,230008,Contract Hire,06-Jan-2017,3226959-22665,"1,800.00",STANLEY TRAVEL (NORTH EAST) LTD.
Children and Young Peoples Services,Education,Transport,230012,Contract Hire,06-Jan-2017,3226959-22666,802.80,STANLEY TRAVEL (NORTH EAST) LTD.
Children and Young Peoples Services,Education,Transport,230008,Contract Hire,06-Jan-2017,3226959-22667,552.00,STANLEY TRAVEL (NORTH EAST) LTD.
Children and Young Peoples Services,Education,Transport,230008,Contract Hire,06-Jan-2017,3226959-22671,"1,028.40",STANLEY TRAVEL (NORTH EAST) LTD.
Children and Young Peoples Services,Education,Transport,230008,Contract Hire,06-Jan-2017,3226959-22672,582.00,STANLEY TRAVEL (NORTH EAST) LTD.
Children and Young Peoples Services,Education,Transport,230008,Contract Hire,06-Jan-2017,3226959-22673,537.60,STANLEY TRAVEL (NORTH EAST) LTD.
Children and Young Peoples Services,Education,Transport,230008,Contract Hire,06-Jan-2017,3226959-22678,"1,032.00",STANLEY TRAVEL (NORTH EAST) LTD.
Children and Young Peoples Services,Education,Transport,230008,Contract Hire,06-Jan-2017,3226959-22679,900.00,STANLEY TRAVEL (NORTH EAST) LTD.
Children and Young Peoples Services,Education,Transport,230006,Contract Hire,06-Jan-2017,3226959-22680,608.75,STANLEY TRAVEL (NORTH EAST) LTD.
Children and Young Peoples Services,Education,Transport,230008,Contract Hire,06-Jan-2017,3226967-12/2016/006,744.00,TARNS TAXIS LTD.
Children and Young Peoples Services,Education,Transport,230003,Contract Hire,06-Jan-2017,3226969-5039/5038-16/12/16,"5,106.48",TED WILFORD COACHES.
Children and Young Peoples Services,Education,Transport,230007,Contract Hire,06-Jan-2017,3226969-6032/422-16/12/16,"1,080.00",TED WILFORD COACHES.
Children and Young Peoples Services,Education,Transport,230008,Contract Hire,06-Jan-2017,3226974-TS-15/4,576.00,TOP STAR TRAVEL.
Children and Young Peoples Services,Education,Transport,230012,Contract Hire,06-Jan-2017,3226974-TS-18/4,720.00,TOP STAR TRAVEL.
Children and Young Peoples Services,Education,Transport,230008,Contract Hire,06-Jan-2017,3226974-TS21/4,576.00,TOP STAR TRAVEL.
Children and Young Peoples Services,Education,Transport,230008,Contract Hire,06-Jan-2017,3226974-TS40/4,506.00,TOP STAR TRAVEL.
Children and Young Peoples Services,Education,Transport,230008,Contract Hire,06-Jan-2017,3226978-17,504.00,TRIDENT TAXIS.
Children and Young Peoples Services,Education,Transport,230007,Contract Hire,06-Jan-2017,3226980-74-16/12/16,576.00,WALTONS TAXIS.
Children and Young Peoples Services,Education,Transport,230008,Contract Hire,06-Jan-2017,3226982-0001395,"1,274.40",WATSON OF SPENNYMOOR.
Children and Young Peoples Services,Education,Transport,230008,Contract Hire,06-Jan-2017,3226983-1085-15/12/16,"1,440.00",WAYNE`S TAXIS.
Children and Young Peoples Services,Education,Transport,230007,Contract Hire,06-Jan-2017,3226985-1050,600.00,WE CONNOR.
Children and Young Peoples Services,Education,Transport,230012,Contract Hire,06-Jan-2017,3226988-1216,780.00,WEST AUCKLAND TOWN TRAVEL (WATT).
Children and Young Peoples Services,Education,Transport,230007,Contract Hire,06-Jan-2017,3226989-115,720.00,WHITTONSTALL TAXIS SERVICE.
Regeneration and Local Services,Technical Services,Supplies and Services,304221,Equipment and Materials,06-Jan-2017,3226847-24195051,"1,429.34",AGGREGATE INDUSTRIES UK LTD.
Regeneration and Local Services,Technical Services,Supplies and Services,304221,Equipment and Materials,06-Jan-2017,3226847-24195052,"1,217.63",AGGREGATE INDUSTRIES UK LTD.
Regeneration and Local Services,Technical Services,Supplies and Services,304221,Equipment and Materials,06-Jan-2017,3226847-24195054,696.43,AGGREGATE INDUSTRIES UK LTD.
Regeneration and Local Services,Technical Services,Supplies and Services,304221,Equipment and Materials,06-Jan-2017,3226847-24195055,629.35,AGGREGATE INDUSTRIES UK LTD.
Regeneration and Local Services,Technical Services,Supplies and Services,304221,Equipment and Materials,06-Jan-2017,3226847-24195056,"1,225.16",AGGREGATE INDUSTRIES UK LTD.
Regeneration and Local Services,Economic Development and Housing,Cap Exp on Grants & Other Financial Assistance (REFCUS),918004,Contributions to other bodies,06-Jan-2017,3226856-006,955.55,AUCKLAND CASTLE TRUST LTD.*
Regeneration and Local Services,Economic Development and Housing,Cap Exp on Grants & Other Financial Assistance (REFCUS),918401,Capital grants,06-Jan-2017,3226860-030,"5,000.00",REDACTED - PAYMENT TO INDIVIDUAL
Regeneration and Local Services,Economic Development and Housing,Cap Exp on Grants & Other Financial Assistance (REFCUS),918004,Contributions to other bodies,06-Jan-2017,3226861-005,"9,333.33",BONDGATE GALLERY.
Regeneration and Local Services,Economic Development and Housing,Cap Exp on Grants & Other Financial Assistance (REFCUS),918004,Contributions to other bodies,06-Jan-2017,3226863-007,676.00,CASTLE CARDS.
Regeneration and Local Services,Culture & Sport,Supplies and Services,338047,Services,06-Jan-2017,3226864-01PART2,"1,686.03",CHRISTOPHER BROWN.
Regeneration and Local Services,Economic Development and Housing,Cap Exp on Grants & Other Financial Assistance (REFCUS),918401,Capital grants,06-Jan-2017,3226879-031,"7,500.00",E LANGTON T/A S & E BUILDERS.
Regeneration and Local Services,Economic Development and Housing,Cap Exp on Grants & Other Financial Assistance (REFCUS),918501,Exp assets not owned by authority,06-Jan-2017,3226889-010,"22,548.00",HES GROUP UK LTD.
Regeneration and Local Services,Economic Development and Housing,Cap Exp on Grants & Other Financial Assistance (REFCUS),918401,Capital grants,06-Jan-2017,3226889-011,"7,905.00",HES GROUP UK LTD.
Regeneration and Local Services,Economic Development and Housing,Cap Exp on Grants & Other Financial Assistance (REFCUS),918401,Capital grants,06-Jan-2017,3226889-013,"3,135.00",HES GROUP UK LTD.
Regeneration and Local Services,Economic Development and Housing,Cap Exp on Grants & Other Financial Assistance (REFCUS),918401,Capital grants,06-Jan-2017,3226889-014,"3,355.00",HES GROUP UK LTD.
Regeneration and Local Services,Economic Development and Housing,Cap Exp on Grants & Other Financial Assistance (REFCUS),918401,Capital grants,06-Jan-2017,3226889-015,"1,745.00",HES GROUP UK LTD.
Regeneration and Local Services,Economic Development and Housing,Cap Exp on Grants & Other Financial Assistance (REFCUS),918401,Capital grants,06-Jan-2017,3226889-016,"6,675.00",HES GROUP UK LTD.
Regeneration and Local Services,Economic Development and Housing,Cap Exp on Grants & Other Financial Assistance (REFCUS),918401,Capital grants,06-Jan-2017,3226889-017,"4,180.00",HES GROUP UK LTD.
Regeneration and Local Services,Economic Development and Housing,Cap Exp on Grants & Other Financial Assistance (REFCUS),918401,Capital grants,06-Jan-2017,3226889-018,"3,805.00",HES GROUP UK LTD.
Regeneration and Local Services,Economic Development and Housing,Cap Exp on Grants & Other Financial Assistance (REFCUS),918401,Capital grants,06-Jan-2017,3226889-027,"4,075.00",HES GROUP UK LTD.
Regeneration and Local Services,Economic Development and Housing,Cap Exp on Grants & Other Financial Assistance (REFCUS),918401,Capital grants,06-Jan-2017,3226889-028,"2,997.00",HES GROUP UK LTD.
Regeneration and Local Services,Economic Development and Housing,Cap Exp on Grants & Other Financial Assistance (REFCUS),918401,Capital grants,06-Jan-2017,3226889-029,"2,019.55",HES GROUP UK LTD.
Regeneration and Local Services,Economic Development and Housing,Cap Exp on Grants & Other Financial Assistance (REFCUS),918401,Capital grants,06-Jan-2017,3226891-034,"4,000.00",J JACKSON PROPERTIES LTD.
Regeneration and Local Services,Economic Development and Housing,Cap Exp on Grants & Other Financial Assistance (REFCUS),918401,Capital grants,06-Jan-2017,3226891-035,"1,500.00",J JACKSON PROPERTIES LTD.
Regeneration and Local Services,Economic Development and Housing,Cap Exp on Grants & Other Financial Assistance (REFCUS),918401,Capital grants,06-Jan-2017,3226891-036,"1,500.00",J JACKSON PROPERTIES LTD.
Regeneration and Local Services,Economic Development and Housing,Cap Exp on Grants & Other Financial Assistance (REFCUS),918401,Capital grants,06-Jan-2017,3226891-037,"1,500.00",J JACKSON PROPERTIES LTD.
Regeneration and Local Services,Technical Services,Supplies and Services,338027,Services,06-Jan-2017,3226894-B225h009-003,"15,983.02",JACOBS UK LTD.
Regeneration and Local Services,Direct Services,Premises,108099,Service Repairs and Maintenance,06-Jan-2017,3226897-13905,"6,751.25",JC MAINTENANCE SERVICES LTD.
Regeneration and Local Services,Spatial Policy Planning Assets & Environment,Construction Work,908105,Construction work,06-Jan-2017,3226909-MOORSIDE,"108,485.32",MGL DEMOLITION LTD.
Regeneration and Local Services,Culture & Sport,Supplies and Services,384199,Miscellaneous Expenses,06-Jan-2017,3226913-2442,"1,500.00",MID NITE EXPRESS.
Regeneration and Local Services,Culture & Sport,Construction Work,908105,Construction work,06-Jan-2017,3226913-2443,600.00,MID NITE EXPRESS.
Regeneration and Local Services,Economic Development and Housing,Supplies and Services,384700,Miscellaneous Expenses,06-Jan-2017,3226920-022,"1,500.00",MURRAY & LAMB CHARTERED ACCOUNTANTS LTD.
Regeneration and Local Services,Technical Services,Third Party Payments,430127,Rendered by Private Contractors,06-Jan-2017,3226921-4099,"2,417.50",N FLETCHER.
Regeneration and Local Services,Technical Services,Supplies and Services,338066,Services,06-Jan-2017,3226922-3425,"46,009.97",NEPRO LTD.
Regeneration and Local Services,Spatial Policy Planning Assets & Environment,Supplies and Services,338066,Services,06-Jan-2017,3226922-3491,"49,501.78",NEPRO LTD.
Regeneration and Local Services,Economic Development and Housing,Cap Exp on Grants & Other Financial Assistance (REFCUS),918401,Capital grants,06-Jan-2017,3226923-025,"1,290.00",REDACTED - PAYMENT TO INDIVIDUAL
Regeneration and Local Services,Economic Development and Housing,Cap Exp on Grants & Other Financial Assistance (REFCUS),918401,Capital grants,06-Jan-2017,3226923-032,600.00,REDACTED - PAYMENT TO INDIVIDUAL
Regeneration and Local Services,Economic Development and Housing,Cap Exp on Grants & Other Financial Assistance (REFCUS),918401,Capital grants,06-Jan-2017,3226923-033,600.00,REDACTED - PAYMENT TO INDIVIDUAL
Regeneration and Local Services,Direct Services,Premises,135005,Water Services,06-Jan-2017,3226926-210364310102049,"5,540.57",NORTHUMBRIAN WATER LTD.
Regeneration and Local Services,Culture & Sport,Supplies and Services,338047,Services,06-Jan-2017,3226927-53030,"2,974.26",OFF THE KERB PRODUCTIONS.
Regeneration and Local Services,Technical Services,Stock,926900,Stock in hand-Inventory system,06-Jan-2017,3226929-XL182951,"1,606.50",PARK ELECTRICAL DISTRIBUTORS LTD.
Regeneration and Local Services,Economic Development and Housing,Cap Exp on Grants & Other Financial Assistance (REFCUS),918401,Capital grants,06-Jan-2017,3226931-026,"1,319.00",PEART ACCESS RAMPS.
Regeneration and Local Services,Technical Services,Supplies and Services,304221,Equipment and Materials,06-Jan-2017,3226939-95013,550.00,PROTECTOR SECURITY GROUP LTD.
Regeneration and Local Services,Economic Development and Housing,Supplies and Services,384700,Miscellaneous Expenses,06-Jan-2017,3226947-021,"2,000.00",SEAHAM SMILES.
Regeneration and Local Services,Direct Services,Supplies and Services,338013,Services,06-Jan-2017,3226949-WWB1099855,625.30,SGS UNITED KINGDOM LTD.
Regeneration and Local Services,Direct Services,Supplies and Services,304221,Equipment and Materials,06-Jan-2017,3226950-CD970441146,"1,105.00",SHERRIFF AMENITY.
Regeneration and Local Services,Direct Services,Third Party Payments,430100,Rendered by Private Contractors,06-Jan-2017,3226954-011/16/6182,"8,115.00",SOCIETE GENERALE EQUIPMENT FINANCE LTD.
Regeneration and Local Services,Technical Services,Third Party Payments,430100,Rendered by Private Contractors,06-Jan-2017,3226960-10381,"4,248.80",STEADFAST SECURITY SOLUTIONS LTD.
Regeneration and Local Services,Technical Services,Third Party Payments,430100,Rendered by Private Contractors,06-Jan-2017,3226960-10440,"4,408.60",STEADFAST SECURITY SOLUTIONS LTD.
Regeneration and Local Services,Economic Development and Housing,Cap Exp on Grants & Other Financial Assistance (REFCUS),918401,Capital grants,06-Jan-2017,3226963-012,"3,011.33",SUNTER LTD.
Regeneration and Local Services,Direct Services,Third Party Payments,430100,Rendered by Private Contractors,06-Jan-2017,3226970-C55894,"1,130.58",TH WHITE LTD.
Regeneration and Local Services,Direct Services,Third Party Payments,430100,Rendered by Private Contractors,06-Jan-2017,3226970-C56515,630.57,TH WHITE LTD.
Regeneration and Local Services,Spatial Policy Planning Assets & Environment,Cap Exp on Grants & Other Financial Assistance (REFCUS),918004,Contributions to other bodies,06-Jan-2017,3226986-009,"1,980.00",WEAR RIVERS TRUST.
Resources,I.C.T. Services,Supplies and Services,332047,Printing Stationery and Gen Off Exps,06-Jan-2017,3226871-INV-4780,"2,040.00",DATA DESIGN SERVICES LTD.
Resources,I.C.T. Services,Supplies and Services,342007,Computers and Communications,06-Jan-2017,3226871-INV-5490,"1,872.00",DATA DESIGN SERVICES LTD.
Resources,Financial Services,Supplies and Services,384999,Miscellaneous Expenses,06-Jan-2017,3226896-CAS-01-2017-017,912.84,REDACTED - PAYMENT TO INDIVIDUAL
Resources,Financial Services,Supplies and Services,384999,Miscellaneous Expenses,06-Jan-2017,3226900-CAS-01-2017-013,838.50,REDACTED - PAYMENT TO INDIVIDUAL
Resources,I.C.T. Services,Debtors,930167,Debtor-Telephone Holding Account,06-Jan-2017,3226906-107961,"25,280.03",MAINTEL EUROPE LTD.
Resources,Financial Services,Supplies and Services,384999,Miscellaneous Expenses,06-Jan-2017,3226911-CAS-01-2017-015,"5,200.25",REDACTED - PAYMENT TO INDIVIDUAL
Resources,Financial Services,Supplies and Services,384999,Miscellaneous Expenses,06-Jan-2017,3226912-CAS-01-2017-014,"1,000.00",REDACTED - PAYMENT TO INDIVIDUAL
Resources,I.C.T. Services,Stock,926900,Stock in hand-Inventory system,06-Jan-2017,3226914-0000092174,"4,412.00",MILLENNIUM BUSINESS SYSTEMS LTD.
Resources,I.C.T. Services,Supplies and Services,332029,Printing Stationery and Gen Off Exps,06-Jan-2017,3226936-638868,645.00,POTTS PRINTERS LTD.
Resources,I.C.T. Services,Supplies and Services,304245,Equipment and Materials,06-Jan-2017,3226937-8509730,517.44,PREMIER PAPER GROUP LTD.
Resources,Financial Services,Supplies and Services,384199,Miscellaneous Expenses,06-Jan-2017,3226962-90532617,853.00,STOCKPORT MBC.
Transformation and Partnerships,Partnerships & Community Engagement Div.,Supplies and Services,384086,Miscellaneous Expenses,06-Jan-2017,3226859-SPEN023,"2,500.00",BISHOP AUCKLAND TABLE TENNIS CLUB.
Transformation and Partnerships,Partnerships & Community Engagement Div.,Cap Exp on Grants & Other Financial Assistance (REFCUS),918004,Contributions to other bodies,06-Jan-2017,3226867-WEAR009,"2,000.00",COWSHILL VILLAGE HALL.
Transformation and Partnerships,Partnerships & Community Engagement Div.,Cap Exp on Grants & Other Financial Assistance (REFCUS),918004,Contributions to other bodies,06-Jan-2017,3226868-VOUCHERCCL2,"35,724.18",CROOK COMMUNITY LEISURE LTD.
Transformation and Partnerships,Partnerships & Community Engagement Div.,Supplies and Services,384085,Miscellaneous Expenses,06-Jan-2017,3226902-CONP09-16,600.00,LAUREL AVENUE COMMUNITY ASSOCIATION.
Transformation and Partnerships,Partnerships & Community Engagement Div.,Transfer Payments,525030,Other,06-Jan-2017,3226957-WEAR001SGF182,"1,220.00",STANHOPE SILVER BAND.
Transformation and Partnerships,Partnerships & Community Engagement Div.,Supplies and Services,384086,Miscellaneous Expenses,06-Jan-2017,3226977-TEES027,"2,000.00",TREES FOR TEESDALE.
Adult and Health Services,EnvironmentHealth & Consumer Protection,Supplies and Services,308011,Furniture,09-Jan-2017,3227014-157622,"1,262.00",ALBANY CONTRACT FURNITURE.
Adult and Health Services,EnvironmentHealth & Consumer Protection,Supplies and Services,384918,Miscellaneous Expenses,09-Jan-2017,3227024-RES-12-2016-054,"4,283.74",REDACTED - PAYMENT TO INDIVIDUAL
Adult and Health Services,Head of Adults,Supplies and Services,338366,Services,09-Jan-2017,3227083-37258,995.00,CARE ABILITY.
Adult and Health Services,Head of Adults,Third Party Payments,470101,Purchase of Care,09-Jan-2017,3227084-105762,"17,121.43",CARE VISIONS GROUP LTD.
Adult and Health Services,Public Health,Third Party Payments,460802,Contract Payments,09-Jan-2017,3227113-3980020713,"2,590.00",CO DURHAM & DARLINGTON NHS FOUNDATION TRUST.
Adult and Health Services,Head of Adults,Supplies and Services,304252,Equipment and Materials,09-Jan-2017,3227391-1082006/P,"1,470.00",NEVILLE LANGLEY PAINTER AND DECORATOR.
Adult and Health Services,Public Health,Supplies and Services,372009,Subscriptions,09-Jan-2017,3227394-1800008213281,"20,846.48",NEWCASTLE UPON TYNE CITY COUNCIL.
Adult and Health Services,Head of Adults,Third Party Payments,470101,Purchase of Care,09-Jan-2017,3227450-29546,"135,374.35",PERCY HEDLEY FOUNDATION.
Adult and Health Services,Head of Adults,Third Party Payments,470101,Purchase of Care,09-Jan-2017,3227450-30137,"110,058.53",PERCY HEDLEY FOUNDATION.
Adult and Health Services,Head of Adults,Supplies and Services,308013,Furniture,09-Jan-2017,3227493-CLG1981,926.26,RENDLES HOUSE FURNISHER.
Adult and Health Services,Commissioning inc Supporting People,Transport,240045,Car Allowances,09-Jan-2017,3227578-6668,"11,176.89",SUPPORTIVE SRC LTD.
Adult and Health Services,Head of Adults,Supplies and Services,338365,Services,09-Jan-2017,3227605-284442,"1,014.80",THE HELPING HAND CO (LEDBURY) LTD.
Children and Young Peoples Services,Education,Transfer Payments,510026,School Children,09-Jan-2017,3227058-DCATCHFUNDING,756.00,BLUE SKY CHILDCARE.
Children and Young Peoples Services,Education,Transfer Payments,510026,School Children,09-Jan-2017,3227074-ADDSUPPORT,"1,512.00",BUDDIES CHILDCARE CENTRE.
Dedicated Schools Grant,Dedicated Schools Grant,Third Party Payments,440080,Other Third Party Payments,09-Jan-2017,3227089-54860,"8,960.00",CATCH 22.*
Dedicated Schools Grant,Dedicated Schools Grant,Third Party Payments,440080,Other Third Party Payments,09-Jan-2017,3227089-54861,"12,385.00",CATCH 22.*
Children and Young Peoples Services,Education,Supplies and Services,338027,Services,09-Jan-2017,3227148-4100549607,"4,368.00",DAVID FIRTH T/A BARDON MILL EDUCATIONAL CONSULTANTS.
Dedicated Schools Grant,Dedicated Schools Grant,Third Party Payments,440080,Other Third Party Payments,09-Jan-2017,3227153-60000291,"25,000.00",DERWENTSIDE COLLEGE.
Children and Young Peoples Services,Childrens Services,Supplies and Services,338044,Services,09-Jan-2017,3227162-12DEC/GQ00474,943.55,DR URSULA CAWTHORNE.
Children and Young Peoples Services,Childrens Services,Supplies and Services,384871,Miscellaneous Expenses,09-Jan-2017,3227205-0118,"1,000.00",FEEL GOOD FACTORY CIC.
Children and Young Peoples Services,Education,Supplies and Services,338027,Services,09-Jan-2017,3227218-H9550,960.00,FRETWELL DOWNING HOSPITALITY.
Children and Young Peoples Services,Education,Supplies and Services,342053,Computers and Communications,09-Jan-2017,3227251-3918,"11,740.00",HANLON COMPUTER SYSTEMS LTD.
Children and Young Peoples Services,Childrens Services,Supplies and Services,384199,Miscellaneous Expenses,09-Jan-2017,3227332-2822,"6,680.00",LINK MAKER SYSTEMS LTD.
Dedicated Schools Grant,Dedicated Schools Grant,Supplies and Services,352001,Conference Expenses,09-Jan-2017,3227389-012770012771012772,"1,225.00",NATIONAL AUTISTIC SOCIETY.
Dedicated Schools Grant,Dedicated Schools Grant,Central Support and Capital,689996,Unclassified,09-Jan-2017,3227440-CAS-01-2017-029,"1,795.84",PARK VIEW ACADEMY.
Children and Young Peoples Services,Childrens Services,Supplies and Services,338094,Services,09-Jan-2017,3227442-SURESTART-17/12/16,715.00,PARKSIDE & DISTRICT COMMUNITY ASSOCIATION.
Dedicated Schools Grant,Dedicated Schools Grant,Third Party Payments,440080,Other Third Party Payments,09-Jan-2017,3227450-29409,"4,805.36",PERCY HEDLEY FOUNDATION.
Dedicated Schools Grant,Dedicated Schools Grant,Third Party Payments,425005,Rendered by Voluntary Organisations,09-Jan-2017,3227450-29444,"16,370.00",PERCY HEDLEY FOUNDATION.
Children and Young Peoples Services,Childrens Services,Employees,080025,Agency Staff,09-Jan-2017,3227463-29568,650.00,PK EDUCATION.
Children and Young Peoples Services,Education,Construction Work,908105,Construction work,09-Jan-2017,3227513-3077,848.00,SAFE STRIP UK LTD.
Children and Young Peoples Services,Education,Supplies and Services,324117,Provisions,09-Jan-2017,3227589-9411172537,713.90,TCHIBO COFFEE INTERNATIONAL LTD.
Children and Young Peoples Services,Education,Transfer Payments,510026,School Children,09-Jan-2017,3227618-16/12/16,"1,244.00",TILLY MINTS CHERUBS DAY NURSERY.
Children and Young Peoples Services,Education,Transfer Payments,510026,School Children,09-Jan-2017,3227618-DCATCHFUNDING,702.00,TILLY MINTS CHERUBS DAY NURSERY.
Children and Young Peoples Services,Childrens Services,Supplies and Services,338043,Services,09-Jan-2017,3227621-3245,500.00,TMJ LEGAL SERVICES LLP.
Children and Young Peoples Services,Childrens Services,Supplies and Services,364358,Grants to Voluntary Organisations,09-Jan-2017,3227649-CAS-01-2017-031,769.75,UNIVERSITY OF WALES TRINITY SAINT DAVID.
Children and Young Peoples Services,Childrens Services,Third Party Payments,425021,Rendered by Voluntary Organisations,09-Jan-2017,3227673-246,"12,124.63",WITHERSLACK CARE & EDUCATION INITIATIVES.
Children and Young Peoples Services,Childrens Services,Third Party Payments,425021,Rendered by Voluntary Organisations,09-Jan-2017,3227673-247,"81,553.33",WITHERSLACK CARE & EDUCATION INITIATIVES.
Regeneration and Local Services,Technical Services,Supplies and Services,304221,Equipment and Materials,09-Jan-2017,3227013-24172279,779.70,AGGREGATE INDUSTRIES UK LTD.
Regeneration and Local Services,Technical Services,Supplies and Services,304221,Equipment and Materials,09-Jan-2017,3227013-24201853,"1,246.48",AGGREGATE INDUSTRIES UK LTD.
Regeneration and Local Services,Technical Services,Supplies and Services,304221,Equipment and Materials,09-Jan-2017,3227013-24201854,"1,923.74",AGGREGATE INDUSTRIES UK LTD.
Regeneration and Local Services,Technical Services,Supplies and Services,304221,Equipment and Materials,09-Jan-2017,3227013-24201856,585.76,AGGREGATE INDUSTRIES UK LTD.
Regeneration and Local Services,Technical Services,Supplies and Services,304221,Equipment and Materials,09-Jan-2017,3227013-24201857,"1,198.82",AGGREGATE INDUSTRIES UK LTD.
Regeneration and Local Services,Technical Services,Supplies and Services,304221,Equipment and Materials,09-Jan-2017,3227013-24201858,"1,718.61",AGGREGATE INDUSTRIES UK LTD.
Regeneration and Local Services,Technical Services,Supplies and Services,304221,Equipment and Materials,09-Jan-2017,3227013-24201859,946.63,AGGREGATE INDUSTRIES UK LTD.
Regeneration and Local Services,Technical Services,Supplies and Services,304221,Equipment and Materials,09-Jan-2017,3227013-24201860,604.74,AGGREGATE INDUSTRIES UK LTD.
Regeneration and Local Services,Technical Services,Supplies and Services,304221,Equipment and Materials,09-Jan-2017,3227013-24208399,"1,245.22",AGGREGATE INDUSTRIES UK LTD.
Regeneration and Local Services,Technical Services,Supplies and Services,304221,Equipment and Materials,09-Jan-2017,3227013-24208400,"1,930.45",AGGREGATE INDUSTRIES UK LTD.
Regeneration and Local Services,Technical Services,Supplies and Services,304221,Equipment and Materials,09-Jan-2017,3227013-24208401,"1,184.44",AGGREGATE INDUSTRIES UK LTD.
Regeneration and Local Services,Direct Services,Supplies and Services,304259,Equipment and Materials,09-Jan-2017,3227014-157533,"3,806.00",ALBANY CONTRACT FURNITURE.
Regeneration and Local Services,Culture & Sport,Supplies and Services,304337,Equipment and Materials,09-Jan-2017,3227017-9035,651.65,ALISON BLACK LTD T/A SPORTMAX.
Regeneration and Local Services,Culture & Sport,Premises,106082,Centrally Controlled Rep and Maint,09-Jan-2017,3227029-27193,"1,500.00",AQUAJET DRAIN CLEANING LTD.
Regeneration and Local Services,Culture & Sport,Premises,106082,Centrally Controlled Rep and Maint,09-Jan-2017,3227029-27455,"1,190.00",AQUAJET DRAIN CLEANING LTD.
Regeneration and Local Services,Direct Services,Premises,108099,Service Repairs and Maintenance,09-Jan-2017,3227040-11361,"2,740.00",ASTRAL CONTROL SERVICES LTD.
Regeneration and Local Services,Economic Development and Housing,Premises,106082,Centrally Controlled Rep and Maint,09-Jan-2017,3227040-11373,600.00,ASTRAL CONTROL SERVICES LTD.
Regeneration and Local Services,Technical Services,Third Party Payments,430100,Rendered by Private Contractors,09-Jan-2017,3227041-16034915,"2,260.00",ATKINS GLOBAL.
Regeneration and Local Services,Technical Services,Stock,926900,Stock in hand-Inventory system,09-Jan-2017,3227046-INV111119,900.00,AZTEC CHEMICALS LTD.
Regeneration and Local Services,Direct Services,Premises,145023,Cleaning and Domestic Supplies,09-Jan-2017,3227046-INV111121,595.00,AZTEC CHEMICALS LTD.
Regeneration and Local Services,Direct Services,Third Party Payments,430100,Rendered by Private Contractors,09-Jan-2017,3227050-DCC/160040,587.51,BEACON BUILDING & ASSOCIATED SERVICES LTD.
Regeneration and Local Services,Direct Services,Third Party Payments,430100,Rendered by Private Contractors,09-Jan-2017,3227050-DCC/160041,721.92,BEACON BUILDING & ASSOCIATED SERVICES LTD.
Regeneration and Local Services,Direct Services,Premises,106082,Centrally Controlled Rep and Maint,09-Jan-2017,3227053-5656,"3,938.00",BELL CONTROL SOLUTIONS LTD.
Regeneration and Local Services,Direct Services,Premises,106082,Centrally Controlled Rep and Maint,09-Jan-2017,3227053-5689,675.00,BELL CONTROL SOLUTIONS LTD.
Regeneration and Local Services,Culture & Sport,Supplies and Services,324117,Provisions,09-Jan-2017,3227086-843359391,"1,861.25",CARLSBERG UK LTD.
Regeneration and Local Services,Direct Services,Third Party Payments,430100,Rendered by Private Contractors,09-Jan-2017,3227091-2040,"1,424.40",CATHEDRAL LOCK & SAFE SERVICES LTD.
Regeneration and Local Services,Direct Services,Third Party Payments,430100,Rendered by Private Contractors,09-Jan-2017,3227091-2045,"3,158.40",CATHEDRAL LOCK & SAFE SERVICES LTD.
Regeneration and Local Services,Direct Services,Third Party Payments,430100,Rendered by Private Contractors,09-Jan-2017,3227094-225,"1,599.05",CEILINGS DIRECT LTD.
Regeneration and Local Services,Technical Services,Supplies and Services,304221,Equipment and Materials,09-Jan-2017,3227095-3009080676,512.46,CEMEX UK MATERIALS LTD.
Regeneration and Local Services,Economic Development and Housing,Supplies and Services,338035,Services,09-Jan-2017,3227101-804366478,979.00,CITY & GUILDS OF LONDON INSTITUTE.
Regeneration and Local Services,Economic Development and Housing,Premises,120021,Energy Costs,09-Jan-2017,3227127-11680267,814.91,CORONA ENERGY RETAIL 2 LTD.
Regeneration and Local Services,Economic Development and Housing,Premises,120021,Energy Costs,09-Jan-2017,3227127-11682553,"1,196.18",CORONA ENERGY RETAIL 2 LTD.
Regeneration and Local Services,Economic Development and Housing,Premises,120021,Energy Costs,09-Jan-2017,3227127-11683544,901.32,CORONA ENERGY RETAIL 2 LTD.
Regeneration and Local Services,Economic Development and Housing,Premises,120021,Energy Costs,09-Jan-2017,3227127-11689164,"1,474.52",CORONA ENERGY RETAIL 2 LTD.
Regeneration and Local Services,Economic Development and Housing,Premises,120021,Energy Costs,09-Jan-2017,3227127-11697543,920.47,CORONA ENERGY RETAIL 2 LTD.
Regeneration and Local Services,Direct Services,Vehicles Equipment Furniture and Fittings,912529,Purchase-equipment,09-Jan-2017,3227131-3008531,918.00,CRAEMER UK LTD.
Regeneration and Local Services,Direct Services,Vehicles Equipment Furniture and Fittings,912529,Purchase-equipment,09-Jan-2017,3227131-3008532,"15,116.40",CRAEMER UK LTD.
Regeneration and Local Services,Direct Services,Third Party Payments,430101,Rendered by Private Contractors,09-Jan-2017,3227159-IV834910,"1,656.00",DIRECT TYRE MANAGEMENT (DTM).
Regeneration and Local Services,Direct Services,Third Party Payments,430101,Rendered by Private Contractors,09-Jan-2017,3227159-IV841636,818.75,DIRECT TYRE MANAGEMENT (DTM).
Regeneration and Local Services,Direct Services,Third Party Payments,430101,Rendered by Private Contractors,09-Jan-2017,3227159-IV843259,731.65,DIRECT TYRE MANAGEMENT (DTM).
Regeneration and Local Services,Direct Services,Third Party Payments,430101,Rendered by Private Contractors,09-Jan-2017,3227159-IV843262,"1,341.95",DIRECT TYRE MANAGEMENT (DTM).
Regeneration and Local Services,Direct Services,Third Party Payments,430101,Rendered by Private Contractors,09-Jan-2017,3227159-IV843982,567.90,DIRECT TYRE MANAGEMENT (DTM).
Regeneration and Local Services,Direct Services,Third Party Payments,430101,Rendered by Private Contractors,09-Jan-2017,3227159-IV843984,"1,884.25",DIRECT TYRE MANAGEMENT (DTM).
Regeneration and Local Services,Spatial Policy Planning Assets & Environment,Supplies and Services,384199,Miscellaneous Expenses,09-Jan-2017,3227172-16119,772.00,DURHAM WILDLIFE TRUST LTD.
Regeneration and Local Services,Transport and Contracted Services,Cap Exp on Grants & Other Financial Assistance (REFCUS),918401,Capital grants,09-Jan-2017,3227178-6598,"17,689.00",EAST DURHAM COMMUNITY TRANSPORT LTD.
Regeneration and Local Services,Direct Services,Supplies and Services,304259,Equipment and Materials,09-Jan-2017,3227179-6120412,"1,864.80",EAST RIDING HORTICULTURE LTD.
Regeneration and Local Services,Economic Development and Housing,Supplies and Services,384700,Miscellaneous Expenses,09-Jan-2017,3227190-040,"2,000.00",ELECTRO MECHANICAL SOLUTIONS.
Regeneration and Local Services,Strategy Programmes and Performance,Supplies and Services,372009,Subscriptions,09-Jan-2017,3227197-1010018936,500.00,ESSEX COUNTY COUNCIL.
Regeneration and Local Services,Projects and Business services,Third Party Payments,430120,Rendered by Private Contractors,09-Jan-2017,3227209-CTIN06495687,"8,374.30",FINNING (UK) LTD.
Regeneration and Local Services,Projects and Business services,Third Party Payments,430120,Rendered by Private Contractors,09-Jan-2017,3227209-CTIN06495689,"8,779.10",FINNING (UK) LTD.
Regeneration and Local Services,Direct Services,Supplies and Services,304221,Equipment and Materials,09-Jan-2017,3227211-1612-056756,907.11,FLAME HEATING SPARES LTD.
Regeneration and Local Services,Direct Services,Transfer Payments,525030,Other,09-Jan-2017,3227220-NEI-EXP-01-2017-003,500.00,FRIENDS OF WHARTON PARK.
Regeneration and Local Services,Direct Services,Premises,108099,Service Repairs and Maintenance,09-Jan-2017,3227221-9163,"2,735.56",FT LEISURE LTD.
Regeneration and Local Services,Direct Services,Premises,108099,Service Repairs and Maintenance,09-Jan-2017,3227221-9195,"1,897.42",FT LEISURE LTD.
Regeneration and Local Services,Economic Development and Housing,Cap Exp on Grants & Other Financial Assistance (REFCUS),918401,Capital grants,09-Jan-2017,3227227-RED-12-2016-265,"22,221.75",GHENT BUILDING CONTRACTORS LTD.
Regeneration and Local Services,Direct Services,Premises,145023,Cleaning and Domestic Supplies,09-Jan-2017,3227242-06/627305,704.00,GREENHAM TRADING LTD.
Regeneration and Local Services,Technical Services,Stock,926900,Stock in hand-Inventory system,09-Jan-2017,3227242-06/627657,711.87,GREENHAM TRADING LTD.
Regeneration and Local Services,Culture & Sport,Supplies and Services,338047,Services,09-Jan-2017,3227247-FBC708,600.00,GROWLING CLOWN.
Regeneration and Local Services,Culture & Sport,Supplies and Services,338047,Services,09-Jan-2017,3227259-11121,555.60,HI LIGHTS THEATRE SERVICES.
Regeneration and Local Services,Culture & Sport,Supplies and Services,338047,Services,09-Jan-2017,3227259-11122,772.00,HI LIGHTS THEATRE SERVICES.
Regeneration and Local Services,Culture & Sport,Premises,106082,Centrally Controlled Rep and Maint,09-Jan-2017,3227267-123824,961.24,HUTCHINSON ENVIRONMENTAL SOLUTIONS LTD.
Regeneration and Local Services,Technical Services,Third Party Payments,430127,Rendered by Private Contractors,09-Jan-2017,3227269-2342,"1,826.50",IAN C LIDDLE.
Regeneration and Local Services,Technical Services,Third Party Payments,430127,Rendered by Private Contractors,09-Jan-2017,3227269-2343,633.00,IAN C LIDDLE.
Regeneration and Local Services,Culture & Sport,Supplies and Services,384199,Miscellaneous Expenses,09-Jan-2017,3227277-3188,"1,145.50",INGRAM AV LTD T/A INGRAMSOUNDS.
Regeneration and Local Services,Technical Services,Stock,926900,Stock in hand-Inventory system,09-Jan-2017,3227280-562869,"2,424.80",INSTARMAC GROUP PLC.
Regeneration and Local Services,Technical Services,Stock,926900,Stock in hand-Inventory system,09-Jan-2017,3227280-562875,915.60,INSTARMAC GROUP PLC.
Regeneration and Local Services,Technical Services,Third Party Payments,430127,Rendered by Private Contractors,09-Jan-2017,3227287-0990,555.00,J & JG GILL & SONS LTD.
Regeneration and Local Services,Technical Services,Third Party Payments,430127,Rendered by Private Contractors,09-Jan-2017,3227288-5305245,650.00,JA GILSON (AGRICULTURAL CONTRACTORS) LTD.
Regeneration and Local Services,Technical Services,Construction Work,908105,Construction work,09-Jan-2017,3227289-20003,"1,177.30",JACK COUPE & SONS LTD T/A COUPE LINE.
Regeneration and Local Services,Technical Services,Construction Work,908105,Construction work,09-Jan-2017,3227289-20022,"1,329.12",JACK COUPE & SONS LTD T/A COUPE LINE.
Regeneration and Local Services,Technical Services,Construction Work,908105,Construction work,09-Jan-2017,3227289-20042,"1,050.51",JACK COUPE & SONS LTD T/A COUPE LINE.
Regeneration and Local Services,Technical Services,Construction Work,908105,Construction work,09-Jan-2017,3227289-20047,"1,406.34",JACK COUPE & SONS LTD T/A COUPE LINE.
Regeneration and Local Services,Technical Services,Supplies and Services,338027,Services,09-Jan-2017,3227290-B2107200-014,"12,399.39",JACOBS UK LTD.
Regeneration and Local Services,Technical Services,Stock,926900,Stock in hand-Inventory system,09-Jan-2017,3227294-8076,733.50,JG UNIFORMS.
Regeneration and Local Services,Direct Services,Premises,108099,Service Repairs and Maintenance,09-Jan-2017,3227297-00400,"1,135.00",JN KEARTON.
Regeneration and Local Services,Technical Services,Supplies and Services,304221,Equipment and Materials,09-Jan-2017,3227303-CNI26748/D,808.30,JT DOVE LTD.
Regeneration and Local Services,Technical Services,Stock,926900,Stock in hand-Inventory system,09-Jan-2017,3227303-STI450183,660.80,JT DOVE LTD.
Regeneration and Local Services,Direct Services,Supplies and Services,304221,Equipment and Materials,09-Jan-2017,3227325-56495,570.00,LEISURETEQ.
Regeneration and Local Services,Technical Services,Third Party Payments,430100,Rendered by Private Contractors,09-Jan-2017,3227329-900948,"12,258.00",LIGHTING & ILLUMINATION TECHNOLOGY EXPERIENCE LTD (LITE).
Regeneration and Local Services,Economic Development and Housing,Supplies and Services,384071,Miscellaneous Expenses,09-Jan-2017,3227340-292068,"1,051.00",LOW FELL REMOVALS.
Regeneration and Local Services,Technical Services,Third Party Payments,430127,Rendered by Private Contractors,09-Jan-2017,3227348-5350,"1,873.00",MAKEPEACE MOTORS.
Regeneration and Local Services,Technical Services,Third Party Payments,430127,Rendered by Private Contractors,09-Jan-2017,3227348-5351,523.00,MAKEPEACE MOTORS.
Regeneration and Local Services,Technical Services,Third Party Payments,430127,Rendered by Private Contractors,09-Jan-2017,3227348-5352,523.00,MAKEPEACE MOTORS.
Regeneration and Local Services,Technical Services,Third Party Payments,430127,Rendered by Private Contractors,09-Jan-2017,3227348-5353,626.00,MAKEPEACE MOTORS.
Regeneration and Local Services,Technical Services,Third Party Payments,430127,Rendered by Private Contractors,09-Jan-2017,3227348-5354,626.00,MAKEPEACE MOTORS.
Regeneration and Local Services,Technical Services,Supplies and Services,304221,Equipment and Materials,09-Jan-2017,3227354-ZDB0028057,500.96,MARSHALLS MONO LTD.
Regeneration and Local Services,Direct Services,Supplies and Services,304040,Equipment and Materials,09-Jan-2017,3227364-3022,896.00,MCPC SYSTEMS (UK) LTD.
Regeneration and Local Services,Direct Services,Third Party Payments,430100,Rendered by Private Contractors,09-Jan-2017,3227366-4907/1106/16,"20,200.78",MGL DEMOLITION LTD.
Regeneration and Local Services,Projects and Business services,Supplies and Services,338027,Services,09-Jan-2017,3227375-3242A,840.00,MOULDING CONTRACTS LTD.
Regeneration and Local Services,Projects and Business services,Construction Work,908105,Construction work,09-Jan-2017,3227375-3261,700.00,MOULDING CONTRACTS LTD.
Regeneration and Local Services,Economic Development and Housing,Supplies and Services,377015,County Durham Development,09-Jan-2017,3227397-193,800.00,NEWSMAKER PR & VIDEO PRODUCTION LTD.
Regeneration and Local Services,Spatial Policy Planning Assets & Environment,Supplies and Services,336005,Advertising,09-Jan-2017,3227398-17977227,553.15,NEWSQUEST (YORKSHIRE & NORTH EAST) LTD.
Regeneration and Local Services,Spatial Policy Planning Assets & Environment,Supplies and Services,336005,Advertising,09-Jan-2017,3227398-18071508,"1,206.88",NEWSQUEST (YORKSHIRE & NORTH EAST) LTD.
Regeneration and Local Services,Technical Services,Construction Work,908105,Construction work,09-Jan-2017,3227398-18071521,959.21,NEWSQUEST (YORKSHIRE & NORTH EAST) LTD.
Regeneration and Local Services,Technical Services,Third Party Payments,460351,Contract Payments,09-Jan-2017,3227412-035179,"1,119.01",NORTHERN DISPOSAL SERVICES LTD.
Regeneration and Local Services,Transport and Contracted Services,Construction Work,908105,Construction work,09-Jan-2017,3227415-18614,"3,942.00",NW SYSTEMS GROUP.
Regeneration and Local Services,Spatial Policy Planning Assets & Environment,Supplies and Services,384540,Miscellaneous Expenses,09-Jan-2017,3227419-9652,675.00,OFFSTONE PUBLISHING.
Regeneration and Local Services,Economic Development and Housing,Supplies and Services,336005,Advertising,09-Jan-2017,3227419-9653,525.00,OFFSTONE PUBLISHING.
Regeneration and Local Services,Direct Services,Transport,215022,Running Costs of Vehicles,09-Jan-2017,3227420-210219,974.20,OIL NRG LTD.
Regeneration and Local Services,Direct Services,Premises,106082,Centrally Controlled Rep and Maint,09-Jan-2017,3227424-0000650046,772.07,OPENVIEW SECURITY SOLUTIONS LTD.
Regeneration and Local Services,Technical Services,Third Party Payments,430100,Rendered by Private Contractors,09-Jan-2017,3227430-SIN200282,"10,165.29",OWEN PUGH CONTRACTS LTD.
Regeneration and Local Services,Projects and Business services,Third Party Payments,430114,Rendered by Private Contractors,09-Jan-2017,3227433-0000001573,"74,552.84",O`BRIEN WASTE RECYCLING SOLUTIONS LTD.
Regeneration and Local Services,Economic Development and Housing,Supplies and Services,384700,Miscellaneous Expenses,09-Jan-2017,3227444-039,"2,000.00",PAUL NEWTON T/A ELVET DENTAL PRACTICE.
Regeneration and Local Services,Technical Services,Third Party Payments,430100,Rendered by Private Contractors,09-Jan-2017,3227459-4685,"4,192.50",PINKNEY BUILDING CONTRACTORS LTD.
Regeneration and Local Services,Technical Services,Third Party Payments,430100,Rendered by Private Contractors,09-Jan-2017,3227459-4686,"2,078.34",PINKNEY BUILDING CONTRACTORS LTD.
Regeneration and Local Services,Technical Services,Stock,926900,Stock in hand-Inventory system,09-Jan-2017,3227470-8515389,"1,488.50",PREMIER PAPER GROUP LTD.
Regeneration and Local Services,Transport and Contracted Services,Supplies and Services,384199,Miscellaneous Expenses,09-Jan-2017,3227471-142776,760.00,PREMIER TRAFFIC MANAGEMENT LTD.
Regeneration and Local Services,Direct Services,Third Party Payments,430100,Rendered by Private Contractors,09-Jan-2017,3227482-PWG1181,"45,964.87",PWG CONNECTIONS LTD.
Regeneration and Local Services,Culture & Sport,Supplies and Services,324117,Provisions,09-Jan-2017,3227490-0000003329,"1,467.80",RAMSIDE HALL HOTEL & GOLF CLUB.*
Regeneration and Local Services,Economic Development and Housing,Supplies and Services,384071,Miscellaneous Expenses,09-Jan-2017,3227490-INV41383,"8,176.54",RAMSIDE HALL HOTEL & GOLF CLUB.*
Regeneration and Local Services,Economic Development and Housing,Supplies and Services,384700,Miscellaneous Expenses,09-Jan-2017,3227495-038,"3,500.00",RICHARD CLEAVER BUILDING SERVICES.
Regeneration and Local Services,Direct Services,Third Party Payments,430100,Rendered by Private Contractors,09-Jan-2017,3227498-40488,"8,400.00",RJ UTILITY SERVICES LTD.
Regeneration and Local Services,Direct Services,Third Party Payments,430100,Rendered by Private Contractors,09-Jan-2017,3227498-40493,"12,600.00",RJ UTILITY SERVICES LTD.
Regeneration and Local Services,Technical Services,Third Party Payments,430100,Rendered by Private Contractors,09-Jan-2017,3227523-1120,"1,495.00",SCHMUCK WHORLTON LTD.
Regeneration and Local Services,Direct Services,Supplies and Services,304221,Equipment and Materials,09-Jan-2017,3227539-714560036520,671.00,SIG TRADING LTD.
Regeneration and Local Services,Technical Services,Stock,926900,Stock in hand-Inventory system,09-Jan-2017,3227551-SI16010502,"1,635.00",SOLON SECURITY LTD.
Regeneration and Local Services,Culture & Sport,Fees,901002,Professional fees,09-Jan-2017,3227553-732/PJ1471/23,"2,365.00",SOUTHERN GREEN LTD.
Regeneration and Local Services,Direct Services,Third Party Payments,430100,Rendered by Private Contractors,09-Jan-2017,3227561-5585,"2,493.59",ST ASTIER LTD.
Regeneration and Local Services,Spatial Policy Planning Assets & Environment,Supplies and Services,384159,Miscellaneous Expenses,09-Jan-2017,3227569-10437A,"6,768.00",STEADFAST SECURITY SYSTEMS LTD.
Regeneration and Local Services,Direct Services,Supplies and Services,304221,Equipment and Materials,09-Jan-2017,3227572-43410,525.00,STORMKING WINDOWS.
Regeneration and Local Services,Culture & Sport,Supplies and Services,332029,Printing Stationery and Gen Off Exps,09-Jan-2017,3227581-485633,630.00,SWIFT INDUSTRIAL SUPPLIES LTD.
Regeneration and Local Services,Technical Services,Stock,926900,Stock in hand-Inventory system,09-Jan-2017,3227586-9035514420,"1,042.30",TARMAC TRADING LTD.
Regeneration and Local Services,Direct Services,Premises,145015,Cleaning and Domestic Supplies,09-Jan-2017,3227613-N/IN187454,"4,381.80",THOMAS OWEN & SONS (NEWCASTLE) LTD.
Regeneration and Local Services,Technical Services,Stock,926900,Stock in hand-Inventory system,09-Jan-2017,3227619-002721,976.50,TINTFIT WINDOW FILMS LTD.
Regeneration and Local Services,Direct Services,Supplies and Services,304221,Equipment and Materials,09-Jan-2017,3227623-109224,874.26,TOMMY WARDLE.
Regeneration and Local Services,Technical Services,Supplies and Services,342215,Computers and Communications,09-Jan-2017,3227629-34555,"3,786.74",TRACKYOU LTD.
Regeneration and Local Services,Transport and Contracted Services,Third Party Payments,430100,Rendered by Private Contractors,09-Jan-2017,3227631-042,"8,000.00",TRAFFIC ENFORCEMENT CENTRE (TEC).
Regeneration and Local Services,Technical Services,Third Party Payments,430127,Rendered by Private Contractors,09-Jan-2017,3227659-42716,"1,364.00",W MARLEY AGRICULTURAL CONTRACTORS LTD.
Regeneration and Local Services,Culture & Sport,Supplies and Services,338047,Services,09-Jan-2017,3227661-22427544,528.09,WARNER BROS ENTERTAINMENT UK LTD.
Regeneration and Local Services,Culture & Sport,Supplies and Services,338047,Services,09-Jan-2017,3227662-22425935,"6,010.00",WARNER BROS ENTERTAINMENT UK LTD.
Regeneration and Local Services,Culture & Sport,Supplies and Services,338047,Services,09-Jan-2017,3227662-22425947,"5,767.87",WARNER BROS ENTERTAINMENT UK LTD.
Regeneration and Local Services,Culture & Sport,Supplies and Services,338047,Services,09-Jan-2017,3227662-22425952,"1,884.44",WARNER BROS ENTERTAINMENT UK LTD.
Regeneration and Local Services,Culture & Sport,Supplies and Services,338047,Services,09-Jan-2017,3227662-22427056,"5,767.87",WARNER BROS ENTERTAINMENT UK LTD.
Regeneration and Local Services,Culture & Sport,Supplies and Services,338047,Services,09-Jan-2017,3227662-22427071,979.38,WARNER BROS ENTERTAINMENT UK LTD.
Regeneration and Local Services,Direct Services,Supplies and Services,304221,Equipment and Materials,09-Jan-2017,3227675-38901730,811.19,WOLSELEY UK LTD.
Resources,Financial Services,Supplies and Services,342053,Computers and Communications,09-Jan-2017,3227103-C/PY149163,"6,500.00",CIVICA UK LTD.
Resources,I.C.T. Services,Stock,926900,Stock in hand-Inventory system,09-Jan-2017,3227279-3183787,"3,424.95",INSIGHT DIRECT (UK) LTD.
Resources,Financial Services,Supplies and Services,384180,Miscellaneous Expenses,09-Jan-2017,3227337-0929195,"4,530.15",LOOMIS UK LTD.
Resources,Legal & Democratic Services,Supplies and Services,338042,Services,09-Jan-2017,3227381-323326/INVEMC86,540.00,MRS ELIZABETH CALLAGHAN.
Resources,Corporate Finance,Supplies and Services,342051,Computers and Communications,09-Jan-2017,3227414-94526483,"2,475.00",NORTHGATE ARINSO UK LTD.
Resources,I.C.T. Services,Supplies and Services,342051,Computers and Communications,09-Jan-2017,3227423-16071,"4,866.20",OPEN REALITY LTD.
Resources,I.C.T. Services,Supplies and Services,332029,Printing Stationery and Gen Off Exps,09-Jan-2017,3227488-14402,650.00,RADECAL SIGNS GRAPHICS & ADVERTISING.
Resources,I.C.T. Services,Supplies and Services,332029,Printing Stationery and Gen Off Exps,09-Jan-2017,3227488-14404,"2,090.00",RADECAL SIGNS GRAPHICS & ADVERTISING.
Resources,I.C.T. Services,Supplies and Services,332029,Printing Stationery and Gen Off Exps,09-Jan-2017,3227488-14406,"1,580.00",RADECAL SIGNS GRAPHICS & ADVERTISING.
Resources,Legal & Democratic Services,Supplies and Services,338042,Services,09-Jan-2017,3227564-137184A,"1,500.00",ST PAULS CHAMBERS.
Adult and Health Services,Head of Adults,Third Party Payments,470101,Purchase of Care,10-Jan-2017,3228425-255/17,960.00,BUTTERWICK HOSPICE RETAIL LTD.
Adult and Health Services,Planning & Service Strategy,Supplies and Services,338089,Services,10-Jan-2017,3228561-DPSW9,"2,603.40",MAG
Adult and Health Services,Head of Adults,Supplies and Services,338066,Services,10-Jan-2017,3228611-021116-061216,"3,186.25",SHAN MEDICAL SERVICES LTD.
Adult and Health Services,Planning & Service Strategy,Supplies and Services,338089,Services,10-Jan-2017,3228618-3248,"1,092.50",SIGNIS LTD.
Adult and Health Services,Head of Adults,Supplies and Services,338099,Services,10-Jan-2017,3228663-SLINV/00000295,"1,645.70",WESTFIRST LTD.
Children and Young Peoples Services,Childrens Services,Third Party Payments,440021,Other Third Party Payments,10-Jan-2017,3227816-1158308,680.00,REDACTED - PAYMENT TO INDIVIDUAL
Children and Young Peoples Services,Childrens Services,Third Party Payments,440027,Other Third Party Payments,10-Jan-2017,3227864-1158776,"1,420.11",REDACTED - PAYMENT TO INDIVIDUAL
Children and Young Peoples Services,Childrens Services,Third Party Payments,440027,Other Third Party Payments,10-Jan-2017,3227864-1158777,"1,420.11",REDACTED - PAYMENT TO INDIVIDUAL
Children and Young Peoples Services,Childrens Services,Third Party Payments,440035,Other Third Party Payments,10-Jan-2017,3227960-1158667,604.50,REDACTED - PAYMENT TO INDIVIDUAL
Children and Young Peoples Services,Childrens Services,Third Party Payments,440032,Other Third Party Payments,10-Jan-2017,3227964-1158744,863.57,REDACTED - PAYMENT TO INDIVIDUAL
Children and Young Peoples Services,Childrens Services,Third Party Payments,440001,Other Third Party Payments,10-Jan-2017,3228143-1157728,754.68,REDACTED - PAYMENT TO INDIVIDUAL
Children and Young Peoples Services,Childrens Services,Third Party Payments,440001,Other Third Party Payments,10-Jan-2017,3228143-1157729,684.00,REDACTED - PAYMENT TO INDIVIDUAL
Children and Young Peoples Services,Childrens Services,Third Party Payments,440027,Other Third Party Payments,10-Jan-2017,3228143-1158791,874.38,REDACTED - PAYMENT TO INDIVIDUAL
Children and Young Peoples Services,Childrens Services,Third Party Payments,440027,Other Third Party Payments,10-Jan-2017,3228143-1158792,807.12,REDACTED - PAYMENT TO INDIVIDUAL
Children and Young Peoples Services,Childrens Services,Third Party Payments,440027,Other Third Party Payments,10-Jan-2017,3228143-1158793,807.12,REDACTED - PAYMENT TO INDIVIDUAL
Children and Young Peoples Services,Childrens Services,Third Party Payments,440001,Other Third Party Payments,10-Jan-2017,3228143-1158794,590.72,REDACTED - PAYMENT TO INDIVIDUAL
Children and Young Peoples Services,Childrens Services,Third Party Payments,440027,Other Third Party Payments,10-Jan-2017,3228189-1158783,"1,614.24",REDACTED - PAYMENT TO INDIVIDUAL
Children and Young Peoples Services,Education,Transport,230008,Contract Hire,10-Jan-2017,3228380-DEC16,"1,012.50",A & P TAXIS.
Children and Young Peoples Services,Education,Transport,230008,Contract Hire,10-Jan-2017,3228381-EA220778,828.00,A MURRAY TRAVEL.
Children and Young Peoples Services,Education,Transport,230008,Contract Hire,10-Jan-2017,3228382-AA1298,944.90,AA MINIBUS HIRE.
Children and Young Peoples Services,Education,Transport,230012,Contract Hire,10-Jan-2017,3228382-AA1301,904.56,AA MINIBUS HIRE.
Children and Young Peoples Services,Education,Transport,230008,Contract Hire,10-Jan-2017,3228382-AA1302,585.60,AA MINIBUS HIRE.
Children and Young Peoples Services,Education,Transport,230008,Contract Hire,10-Jan-2017,3228383-F38/SB,882.00,AABAT TAXIS.
Children and Young Peoples Services,Education,Transport,230008,Contract Hire,10-Jan-2017,3228383-F39/SC,"1,140.00",AABAT TAXIS.
Children and Young Peoples Services,Education,Transport,230008,Contract Hire,10-Jan-2017,3228383-F40/SF,588.00,AABAT TAXIS.
Children and Young Peoples Services,Education,Transport,230008,Contract Hire,10-Jan-2017,3228383-F42/SH,"1,050.00",AABAT TAXIS.
Children and Young Peoples Services,Education,Transport,230008,Contract Hire,10-Jan-2017,3228383-F43/SA-16/12/16,"1,440.00",AABAT TAXIS.
Children and Young Peoples Services,Education,Transport,230008,Contract Hire,10-Jan-2017,3228383-F45/SP,"1,440.00",AABAT TAXIS.
Children and Young Peoples Services,Education,Transport,230012,Contract Hire,10-Jan-2017,3228383-H1/SS,534.00,AABAT TAXIS.
Children and Young Peoples Services,Education,Transport,230008,Contract Hire,10-Jan-2017,3228383-H12/SR,"1,090.20",AABAT TAXIS.
Children and Young Peoples Services,Education,Transport,230006,Contract Hire,10-Jan-2017,3228383-H2/ST,"1,428.00",AABAT TAXIS.
Children and Young Peoples Services,Education,Transport,230008,Contract Hire,10-Jan-2017,3228383-H3/SV,588.00,AABAT TAXIS.
Children and Young Peoples Services,Education,Transport,230012,Contract Hire,10-Jan-2017,3228384-1/12/16-16/12/16,855.60,ABA TAXIS.
Children and Young Peoples Services,Education,Transport,230012,Contract Hire,10-Jan-2017,3228385-O334,"1,008.00",ABC & OUSTON CABS.
Children and Young Peoples Services,Education,Transport,230012,Contract Hire,10-Jan-2017,3228385-O335,"1,540.00",ABC & OUSTON CABS.
Children and Young Peoples Services,Education,Transport,230008,Contract Hire,10-Jan-2017,3228385-O336,684.00,ABC & OUSTON CABS.
Children and Young Peoples Services,Education,Transport,230008,Contract Hire,10-Jan-2017,3228386-11-16/12/16,600.00,ABLE NOVAK TAXIS.
Children and Young Peoples Services,Education,Transport,230007,Contract Hire,10-Jan-2017,3228386-12-16/12/16,708.00,ABLE NOVAK TAXIS.
Children and Young Peoples Services,Education,Third Party Payments,440999,Other Third Party Payments,10-Jan-2017,3228387-INV02136,"6,400.00",ACUMEN COMMUNITY ENTERPRISE DEVELOPMENT TRUST LTD.
Children and Young Peoples Services,Education,Transport,230008,Contract Hire,10-Jan-2017,3228398-0021,780.00,ANDREW SIMPSON T/A ANDY`S CABS.
Children and Young Peoples Services,Education,Transport,230007,Contract Hire,10-Jan-2017,3228400-561,594.00,AT TAXIS LTD.
Children and Young Peoples Services,Education,Transport,230012,Contract Hire,10-Jan-2017,3228400-562,828.00,AT TAXIS LTD.
Children and Young Peoples Services,Education,Transport,230007,Contract Hire,10-Jan-2017,3228400-563,576.00,AT TAXIS LTD.
Children and Young Peoples Services,Education,Transport,230008,Contract Hire,10-Jan-2017,3228408-602,931.20,BEELINE MINI BUSES.
Children and Young Peoples Services,Education,Transport,230007,Contract Hire,10-Jan-2017,3228408-603,617.16,BEELINE MINI BUSES.
Children and Young Peoples Services,Education,Transport,230006,Contract Hire,10-Jan-2017,3228408-604,891.16,BEELINE MINI BUSES.
Children and Young Peoples Services,Education,Transport,230012,Contract Hire,10-Jan-2017,3228409-10DECEMBER16,"1,024.92",BEELINE TAXIS.
Children and Young Peoples Services,Education,Transport,230006,Contract Hire,10-Jan-2017,3228409-DECEMBER16,773.63,BEELINE TAXIS.
Children and Young Peoples Services,Education,Transport,230003,Contract Hire,10-Jan-2017,3228411-STJOHNS3003051216,"5,264.00",BELL BROTHERS TRAVEL.
Children and Young Peoples Services,Education,Transport,230006,Contract Hire,10-Jan-2017,3228413-F689-DEC,800.00,BIG MAMMA`S EXPRESS.
Children and Young Peoples Services,Education,Transport,230006,Contract Hire,10-Jan-2017,3228415-41,"1,126.00",BILL SCOTT TAXIS LTD.
Children and Young Peoples Services,Education,Transport,230006,Contract Hire,10-Jan-2017,3228416-06988,"1,088.00",BIRDS TAXIS.
Children and Young Peoples Services,Education,Transport,230008,Contract Hire,10-Jan-2017,3228416-06998,"1,416.00",BIRDS TAXIS.
Children and Young Peoples Services,Education,Transport,230008,Contract Hire,10-Jan-2017,3228416-07000,"1,160.00",BIRDS TAXIS.
Children and Young Peoples Services,Education,Transport,230008,Contract Hire,10-Jan-2017,3228416-07001,864.00,BIRDS TAXIS.
Children and Young Peoples Services,Education,Transport,230006,Contract Hire,10-Jan-2017,3228416-07002,640.00,BIRDS TAXIS.
Children and Young Peoples Services,Education,Transport,230008,Contract Hire,10-Jan-2017,3228420-BZ00210,972.00,BREZ`S TAXIS.
Children and Young Peoples Services,Education,Transport,230006,Contract Hire,10-Jan-2017,3228426-F67704,588.00,C & R TAXIS.
Children and Young Peoples Services,Education,Transport,230008,Contract Hire,10-Jan-2017,3228426-M10804,"1,030.00",C & R TAXIS.
Children and Young Peoples Services,Education,Transport,230008,Contract Hire,10-Jan-2017,3228426-W15304,618.00,C & R TAXIS.
Children and Young Peoples Services,Education,Third Party Payments,440999,Other Third Party Payments,10-Jan-2017,3228429-137,"1,048.73",CAPITAL 4 TRAINING LTD
Children and Young Peoples Services,Childrens Services,Supplies and Services,338365,Services,10-Jan-2017,3228430-37102,"2,525.00",CARE ABILITY.
Children and Young Peoples Services,Education,Transport,230008,Contract Hire,10-Jan-2017,3228442-CW4,511.50,CHIPPERS TAXIS.
Dedicated Schools Grant,Dedicated Schools Grant,Transport,230010,Contract Hire,10-Jan-2017,3228444-65/16,600.00,CLARKS TAXIS LTD.
Children and Young Peoples Services,Education,Transport,230008,Contract Hire,10-Jan-2017,3228453-TOW004,600.00,D IRVING T/A BJ TAXIS.
Children and Young Peoples Services,Education,Transport,230007,Contract Hire,10-Jan-2017,3228454-187,552.00,D MCDONNELL.
Children and Young Peoples Services,Education,Transport,230008,Contract Hire,10-Jan-2017,3228458-A10,900.00,DAVES TAXIS.
Children and Young Peoples Services,Education,Transport,230012,Contract Hire,10-Jan-2017,3228458-A9,"1,080.00",DAVES TAXIS.
Children and Young Peoples Services,Education,Transport,230007,Contract Hire,10-Jan-2017,3228459-259,"2,750.00",DAVID DOVE TRAVEL LTD.
Children and Young Peoples Services,Childrens Services,Employees,080025,Agency Staff,10-Jan-2017,3228460-335221,"86,317.89",DE POEL MANAGED SERVICES LTD.
Children and Young Peoples Services,Education,Transport,230003,Contract Hire,10-Jan-2017,3228469-7442,"12,664.00",DURHAM CITY COACHES.
Children and Young Peoples Services,Education,Transport,230008,Contract Hire,10-Jan-2017,3228482-9161,852.00,G & P JOHNSON LTD T/A NIGHTINGALE COACHES.
Children and Young Peoples Services,Education,Transport,230008,Contract Hire,10-Jan-2017,3228482-9162,888.00,G & P JOHNSON LTD T/A NIGHTINGALE COACHES.
Dedicated Schools Grant,Dedicated Schools Grant,Transport,230007,Contract Hire,10-Jan-2017,3228485-003,600.00,GAVIN ELLIOTT T/A LOCATION TAXIS.
Children and Young Peoples Services,Education,Transport,230008,Contract Hire,10-Jan-2017,3228488-003,"1,968.20",GMC TAXIS NORTH EAST.
Children and Young Peoples Services,Education,Transport,230008,Contract Hire,10-Jan-2017,3228520-A069-DEC16,725.20,K & R TAXIS.
Children and Young Peoples Services,Education,Transport,230006,Contract Hire,10-Jan-2017,3228521-04-F671,576.00,KD TAXIS.
Children and Young Peoples Services,Education,Transport,230008,Contract Hire,10-Jan-2017,3228523-0101216,"1,296.00",KEVIN EDMUNDSON.
Children and Young Peoples Services,Education,Transport,230007,Contract Hire,10-Jan-2017,3228525-2-16/12/16,560.00,KT TAXIS.
Children and Young Peoples Services,Education,Transport,230008,Contract Hire,10-Jan-2017,3228526-KW678,720.00,KWIK CABS.
Children and Young Peoples Services,Education,Transport,230008,Contract Hire,10-Jan-2017,3228526-KW680,660.00,KWIK CABS.
Children and Young Peoples Services,Education,Transport,230008,Contract Hire,10-Jan-2017,3228526-KW681,600.00,KWIK CABS.
Children and Young Peoples Services,Education,Transport,230008,Contract Hire,10-Jan-2017,3228527-4C-A046,725.00,L & R PRIVATE HIRE.
Children and Young Peoples Services,Education,Transport,230006,Contract Hire,10-Jan-2017,3228529-1097,"1,140.00",LD TAXIS.
Children and Young Peoples Services,Education,Transport,230007,Contract Hire,10-Jan-2017,3228532-2963,"1,621.56",LEE`S COACHES LTD.
Children and Young Peoples Services,Education,Transport,230008,Contract Hire,10-Jan-2017,3228533-161,"1,273.27",LEE`S TAXIS (SACRISTON).
Children and Young Peoples Services,Education,Transport,230008,Contract Hire,10-Jan-2017,3228533-162,871.00,LEE`S TAXIS (SACRISTON).
Children and Young Peoples Services,Education,Transport,230012,Contract Hire,10-Jan-2017,3228536-3516,"1,375.40",LINCAB TAXIS.
Children and Young Peoples Services,Education,Transport,230008,Contract Hire,10-Jan-2017,3228536-3518,"1,963.80",LINCAB TAXIS.
Children and Young Peoples Services,Education,Transport,230012,Contract Hire,10-Jan-2017,3228536-3519,"1,514.00",LINCAB TAXIS.
Children and Young Peoples Services,Education,Transport,230004,Contract Hire,10-Jan-2017,3228536-3523,679.80,LINCAB TAXIS.
Children and Young Peoples Services,Education,Transport,230007,Contract Hire,10-Jan-2017,3228544-70-2059,600.00,LORRAINES TAXIS.
Children and Young Peoples Services,Education,Transport,230006,Contract Hire,10-Jan-2017,3228547-76,856.80,M BUTCHER T/A M & M`S TAXIS.
Children and Young Peoples Services,Education,Transport,230008,Contract Hire,10-Jan-2017,3228551-KDC-011216,"1,914.25",MJ TIMNEY T/A KDC & C&M TAXIS.
Dedicated Schools Grant,Dedicated Schools Grant,Transport,230010,Contract Hire,10-Jan-2017,3228552-697,"1,128.00",MOLLYS TAXIS.
Children and Young Peoples Services,Education,Transport,230008,Contract Hire,10-Jan-2017,3228552-699,946.00,MOLLYS TAXIS.
Children and Young Peoples Services,Education,Transport,230008,Contract Hire,10-Jan-2017,3228552-700,"1,560.00",MOLLYS TAXIS.
Children and Young Peoples Services,Education,Transport,230008,Contract Hire,10-Jan-2017,3228552-702,"1,392.00",MOLLYS TAXIS.
Children and Young Peoples Services,Education,Transport,230012,Contract Hire,10-Jan-2017,3228555-BCR12-16,597.60,MR CT WALKER T/A CW TAXIS.
Children and Young Peoples Services,Education,Transport,230007,Contract Hire,10-Jan-2017,3228555-HLA12-16,681.60,MR CT WALKER T/A CW TAXIS.
Children and Young Peoples Services,Education,Transport,230008,Contract Hire,10-Jan-2017,3228555-TDW12-16,585.60,MR CT WALKER T/A CW TAXIS.
Children and Young Peoples Services,Education,Transport,230008,Contract Hire,10-Jan-2017,3228555-VLR12-16,573.60,MR CT WALKER T/A CW TAXIS.
Children and Young Peoples Services,Education,Transport,230008,Contract Hire,10-Jan-2017,3228557-0128,"2,816.00",MR P CAHILL T/A KILEYS TAXIS.
Children and Young Peoples Services,Education,Transport,230008,Contract Hire,10-Jan-2017,3228557-0129,"1,536.00",MR P CAHILL T/A KILEYS TAXIS.
Children and Young Peoples Services,Education,Transport,230012,Contract Hire,10-Jan-2017,3228558-1561,708.00,MR PETER YOUNG.
Children and Young Peoples Services,Education,Transport,230008,Contract Hire,10-Jan-2017,3228559-23B,804.00,MR RAYMOND RENWICK.
Children and Young Peoples Services,Education,Transport,230008,Contract Hire,10-Jan-2017,3228559-24A,864.00,MR RAYMOND RENWICK.
Children and Young Peoples Services,Education,Transport,230012,Contract Hire,10-Jan-2017,3228560-825,792.00,MR S BALL T/A ABBIE`S TAXIS..
Children and Young Peoples Services,Childrens Services,Supplies and Services,384540,Miscellaneous Expenses,10-Jan-2017,3228568-18047246,"1,650.00",NEWSQUEST (YORKSHIRE & NORTH EAST) LTD.
Children and Young Peoples Services,Childrens Services,Supplies and Services,384540,Miscellaneous Expenses,10-Jan-2017,3228568-18071648,"1,950.00",NEWSQUEST (YORKSHIRE & NORTH EAST) LTD.
Children and Young Peoples Services,Childrens Services,Supplies and Services,384540,Miscellaneous Expenses,10-Jan-2017,3228568-18071665,"1,170.00",NEWSQUEST (YORKSHIRE & NORTH EAST) LTD.
Children and Young Peoples Services,Education,Transport,230008,Contract Hire,10-Jan-2017,3228571-6838,"1,072.80",OVERLANDER LTD.
Children and Young Peoples Services,Education,Transport,230008,Contract Hire,10-Jan-2017,3228577-SC-107,"1,080.00",PAUL BURRELL T/A PAUL BURRELL TAXIS.
Children and Young Peoples Services,Education,Transport,230007,Contract Hire,10-Jan-2017,3228578-1526,720.00,PAUL WATSON TRAVEL.
Children and Young Peoples Services,Education,Transport,230007,Contract Hire,10-Jan-2017,3228578-1527,960.00,PAUL WATSON TRAVEL.
Children and Young Peoples Services,Education,Transport,230007,Contract Hire,10-Jan-2017,3228578-1528,"1,440.00",PAUL WATSON TRAVEL.
Children and Young Peoples Services,Education,Transport,230007,Contract Hire,10-Jan-2017,3228578-1529,"1,210.00",PAUL WATSON TRAVEL.
Children and Young Peoples Services,Education,Transport,230009,Contract Hire,10-Jan-2017,3228587-16105,"1,218.00",RAPID MINIBUSES.
Children and Young Peoples Services,Education,Transport,230009,Contract Hire,10-Jan-2017,3228587-16106,696.00,RAPID MINIBUSES.
Children and Young Peoples Services,Education,Transport,230006,Contract Hire,10-Jan-2017,3228587-16109,"1,017.96",RAPID MINIBUSES.
Children and Young Peoples Services,Education,Transport,230008,Contract Hire,10-Jan-2017,3228587-16111,900.00,RAPID MINIBUSES.
Children and Young Peoples Services,Education,Transport,230008,Contract Hire,10-Jan-2017,3228587-16112,569.10,RAPID MINIBUSES.
Children and Young Peoples Services,Education,Transport,230007,Contract Hire,10-Jan-2017,3228589-46C,"3,618.36",RAYNERS COACHES.
Children and Young Peoples Services,Education,Transport,230008,Contract Hire,10-Jan-2017,3228593-3068,814.00,RICHIES TAXIS.
Children and Young Peoples Services,Education,Transport,230008,Contract Hire,10-Jan-2017,3228597-180,"1,545.40",ROBBIE`S PRIVATE HIRE.
Dedicated Schools Grant,Dedicated Schools Grant,Transfer Payments,510034,School Children,10-Jan-2017,3228613-LACPP1617,600.00,SHIELD ROW ACADEMY.
Children and Young Peoples Services,Education,Transport,230008,Contract Hire,10-Jan-2017,3228620-306A,742.50,SJ MACKENZIE T/A SCOTTS TAXIS.
Children and Young Peoples Services,Education,Transport,230008,Contract Hire,10-Jan-2017,3228620-311A,826.00,SJ MACKENZIE T/A SCOTTS TAXIS.
Dedicated Schools Grant,Dedicated Schools Grant,Transport,230010,Contract Hire,10-Jan-2017,3228620-312A,715.00,SJ MACKENZIE T/A SCOTTS TAXIS.
Children and Young Peoples Services,Education,Transport,230008,Contract Hire,10-Jan-2017,3228622-113,742.40,SODA TAXIS.
Children and Young Peoples Services,Education,Transport,230008,Contract Hire,10-Jan-2017,3228622-123-16/12/16,611.00,SODA TAXIS.
Children and Young Peoples Services,Education,Transport,230006,Contract Hire,10-Jan-2017,3228622-153,660.80,SODA TAXIS.
Children and Young Peoples Services,Education,Transport,230008,Contract Hire,10-Jan-2017,3228627-21945,533.50,STANLEY TRAVEL (NORTH EAST) LTD.
Children and Young Peoples Services,Education,Transport,230008,Contract Hire,10-Jan-2017,3228633-21112OS,953.40,T MOORE & SON.
Children and Young Peoples Services,Education,Transport,230007,Contract Hire,10-Jan-2017,3228633-21412SB,960.00,T MOORE & SON.
Children and Young Peoples Services,Education,Transport,230007,Contract Hire,10-Jan-2017,3228633-21712SL,"2,209.26",T MOORE & SON.
Dedicated Schools Grant,Dedicated Schools Grant,Transport,230010,Contract Hire,10-Jan-2017,3228635-1386,648.00,TALBOTS TAXIS.
Children and Young Peoples Services,Education,Transport,230008,Contract Hire,10-Jan-2017,3228635-1387,"1,012.00",TALBOTS TAXIS.
Children and Young Peoples Services,Education,Transport,230008,Contract Hire,10-Jan-2017,3228636-B849,840.00,TALBOTS TRAVEL LTD.
Children and Young Peoples Services,Education,Transport,230008,Contract Hire,10-Jan-2017,3228639-DCC/2016/125-16/12/16,936.00,TAYLOR`S TAXIS.
Children and Young Peoples Services,Education,Transport,230008,Contract Hire,10-Jan-2017,3228639-DCC/2016/126,"1,113.60",TAYLOR`S TAXIS.
Children and Young Peoples Services,Education,Transport,230008,Contract Hire,10-Jan-2017,3228639-DCC/2016/127,984.00,TAYLOR`S TAXIS.
Children and Young Peoples Services,Education,Transport,230008,Contract Hire,10-Jan-2017,3228639-DCC/2016/128,912.00,TAYLOR`S TAXIS.
Children and Young Peoples Services,Education,Transport,230008,Contract Hire,10-Jan-2017,3228639-DCC/2016/129,948.00,TAYLOR`S TAXIS.
Children and Young Peoples Services,Education,Supplies and Services,352001,Conference Expenses,10-Jan-2017,3228645-4284,957.50,THE DURHAM CENTRE LTD.
Children and Young Peoples Services,Education,Transport,230008,Contract Hire,10-Jan-2017,3228648-04-16/12/16,"1,515.00",TRIDENT TAXIS.
Children and Young Peoples Services,Education,Transport,230007,Contract Hire,10-Jan-2017,3228660-4336-3,925.00,WE AR CABS.
Regeneration and Local Services,Technical Services,Supplies and Services,304221,Equipment and Materials,10-Jan-2017,3228390-24214730,639.27,AGGREGATE INDUSTRIES UK LTD.
Regeneration and Local Services,Direct Services,Supplies and Services,304221,Equipment and Materials,10-Jan-2017,3228395-15983,"3,525.00",AMBIC LTD.
Regeneration and Local Services,Culture & Sport,Supplies and Services,338047,Services,10-Jan-2017,3228397-17-019,802.81,REDACTED - PAYMENT TO INDIVIDUAL
Regeneration and Local Services,Transport and Contracted Services,Third Party Payments,430106,Rendered by Private Contractors,10-Jan-2017,3228399-111661,"44,918.47",ARRIVA NORTH EAST LTD.
Regeneration and Local Services,Direct Services,Third Party Payments,430100,Rendered by Private Contractors,10-Jan-2017,3228433-1896,543.92,CATHEDRAL LOCK & SAFE SERVICES LTD.
Regeneration and Local Services,Direct Services,Supplies and Services,304221,Equipment and Materials,10-Jan-2017,3228433-1966,"1,182.40",CATHEDRAL LOCK & SAFE SERVICES LTD.
Regeneration and Local Services,Direct Services,Supplies and Services,304221,Equipment and Materials,10-Jan-2017,3228433-1982,"1,988.00",CATHEDRAL LOCK & SAFE SERVICES LTD.
Regeneration and Local Services,Direct Services,Third Party Payments,430100,Rendered by Private Contractors,10-Jan-2017,3228435-220,"1,760.40",CEILINGS DIRECT LTD.
Regeneration and Local Services,Direct Services,Transport,210057,Repair and Maintenance of Vehicles,10-Jan-2017,3228439-345463,"1,572.50",CHATFIELDS.
Regeneration and Local Services,Direct Services,Vehicles Equipment Furniture and Fittings,912529,Purchase-equipment,10-Jan-2017,3228450-3008340,"1,269.90",CRAEMER UK LTD.
Regeneration and Local Services,Technical Services,Third Party Payments,430100,Rendered by Private Contractors,10-Jan-2017,3228456-N520434.,"2,640.00",D-DRILL (MASTER DRILLERS) LTD.
Regeneration and Local Services,Projects and Business services,Supplies and Services,304259,Equipment and Materials,10-Jan-2017,3228463-1790,"1,395.00",DIGITAL HEARING CARE SOLUTIONS LTD.
Regeneration and Local Services,Direct Services,Third Party Payments,430101,Rendered by Private Contractors,10-Jan-2017,3228464-IV839996,992.75,DIRECT TYRE MANAGEMENT (DTM).
Regeneration and Local Services,Direct Services,Third Party Payments,430101,Rendered by Private Contractors,10-Jan-2017,3228464-IV839997,"1,819.00",DIRECT TYRE MANAGEMENT (DTM).
Regeneration and Local Services,Direct Services,Third Party Payments,430100,Rendered by Private Contractors,10-Jan-2017,3228466-0000067297,"39,930.00",DORMA UK LTD.
Regeneration and Local Services,Technical Services,Stock,926900,Stock in hand-Inventory system,10-Jan-2017,3228493-06/619460,"2,217.54",GREENHAM TRADING LTD.
Regeneration and Local Services,Technical Services,Stock,926900,Stock in hand-Inventory system,10-Jan-2017,3228493-06/620010,800.84,GREENHAM TRADING LTD.
Regeneration and Local Services,Technical Services,Stock,926900,Stock in hand-Inventory system,10-Jan-2017,3228493-06/622823,"4,533.50",GREENHAM TRADING LTD.
Regeneration and Local Services,Transport and Contracted Services,Third Party Payments,430106,Rendered by Private Contractors,10-Jan-2017,3228500-10703,"4,668.51",HODGSONS COACH OPERATORS LTD.
Regeneration and Local Services,Direct Services,Third Party Payments,430100,Rendered by Private Contractors,10-Jan-2017,3228508-4611,"1,312.00",JAMES INGLEFORD SCAFFOLDING LTD.
Regeneration and Local Services,Technical Services,Third Party Payments,430100,Rendered by Private Contractors,10-Jan-2017,3228514-S/01440,"163,129.42",JN BENTLEY.
Regeneration and Local Services,Technical Services,Supplies and Services,304358,Equipment and Materials,10-Jan-2017,3228515-26074,678.75,JOHN R BUTTERFIELD LTD.
Regeneration and Local Services,Technical Services,Supplies and Services,304358,Equipment and Materials,10-Jan-2017,3228515-26109,717.00,JOHN R BUTTERFIELD LTD.
Regeneration and Local Services,Technical Services,Supplies and Services,304358,Equipment and Materials,10-Jan-2017,3228515-26144,"1,696.50",JOHN R BUTTERFIELD LTD.
Regeneration and Local Services,Technical Services,Supplies and Services,304358,Equipment and Materials,10-Jan-2017,3228515-26149,929.00,JOHN R BUTTERFIELD LTD.
Regeneration and Local Services,Technical Services,Supplies and Services,304358,Equipment and Materials,10-Jan-2017,3228515-26150,898.00,JOHN R BUTTERFIELD LTD.
Regeneration and Local Services,Technical Services,Supplies and Services,304358,Equipment and Materials,10-Jan-2017,3228515-26153,879.50,JOHN R BUTTERFIELD LTD.
Regeneration and Local Services,Technical Services,Supplies and Services,304358,Equipment and Materials,10-Jan-2017,3228515-26190,725.40,JOHN R BUTTERFIELD LTD.
Regeneration and Local Services,Technical Services,Supplies and Services,304358,Equipment and Materials,10-Jan-2017,3228515-26191,741.00,JOHN R BUTTERFIELD LTD.
Regeneration and Local Services,Technical Services,Supplies and Services,304358,Equipment and Materials,10-Jan-2017,3228515-26192,899.80,JOHN R BUTTERFIELD LTD.
Regeneration and Local Services,Technical Services,Supplies and Services,304358,Equipment and Materials,10-Jan-2017,3228515-26194,"1,105.50",JOHN R BUTTERFIELD LTD.
Regeneration and Local Services,Technical Services,Supplies and Services,304358,Equipment and Materials,10-Jan-2017,3228515-26199,594.50,JOHN R BUTTERFIELD LTD.
Regeneration and Local Services,Technical Services,Supplies and Services,304358,Equipment and Materials,10-Jan-2017,3228515-26200,868.00,JOHN R BUTTERFIELD LTD.
Regeneration and Local Services,Technical Services,Supplies and Services,304358,Equipment and Materials,10-Jan-2017,3228516-0000080570,697.50,JOHN WADE (HAULAGE) LTD.
Regeneration and Local Services,Direct Services,Supplies and Services,304221,Equipment and Materials,10-Jan-2017,3228519-BAI276751,"2,420.00",JT DOVE LTD.
Regeneration and Local Services,Direct Services,Supplies and Services,304221,Equipment and Materials,10-Jan-2017,3228519-BAI277314,"1,909.00",JT DOVE LTD.
Regeneration and Local Services,Technical Services,Supplies and Services,304358,Equipment and Materials,10-Jan-2017,3228524-1440,872.25,KEVIN SNOWDON GROUNDWORKS LTD.
Regeneration and Local Services,Technical Services,Supplies and Services,304358,Equipment and Materials,10-Jan-2017,3228524-1446,"2,539.50",KEVIN SNOWDON GROUNDWORKS LTD.
Regeneration and Local Services,Technical Services,Supplies and Services,304358,Equipment and Materials,10-Jan-2017,3228524-1455,"3,058.00",KEVIN SNOWDON GROUNDWORKS LTD.
Regeneration and Local Services,Technical Services,Supplies and Services,304358,Equipment and Materials,10-Jan-2017,3228546-55A,"2,616.25",M & E & MR WALTON.
Regeneration and Local Services,Technical Services,Supplies and Services,304358,Equipment and Materials,10-Jan-2017,3228546-56A,"2,838.50",M & E & MR WALTON.
Regeneration and Local Services,Projects and Business services,Supplies and Services,304357,Equipment and Materials,10-Jan-2017,3228550-19484,"3,000.00",MJ HICKEY PLANT HIRE & CONTRACTS LTD.
Regeneration and Local Services,Economic Development and Housing,Supplies and Services,384700,Miscellaneous Expenses,10-Jan-2017,3228562-060,"1,000.00",REDACTED - PAYMENT TO INDIVIDUAL
Regeneration and Local Services,Technical Services,Supplies and Services,304221,Equipment and Materials,10-Jan-2017,3228565-NC38/C443/BW,"4,300.00",NEDCO CONTRACTS (NE) LTD.
Regeneration and Local Services,Technical Services,Supplies and Services,304221,Equipment and Materials,10-Jan-2017,3228565-NC39/C443/BW,"2,000.00",NEDCO CONTRACTS (NE) LTD.
Regeneration and Local Services,Technical Services,Third Party Payments,430100,Rendered by Private Contractors,10-Jan-2017,3228569-DI20259865,"6,609.05",NORTHERN POWERGRID (NORTHEAST) LTD.
Regeneration and Local Services,Technical Services,Third Party Payments,430100,Rendered by Private Contractors,10-Jan-2017,3228569-DI20259870,"1,132.98",NORTHERN POWERGRID (NORTHEAST) LTD.
Regeneration and Local Services,Direct Services,Supplies and Services,304259,Equipment and Materials,10-Jan-2017,3228570-2192409,"2,654.00",NORTHERN TOOLS & ACCESSORIES.
Regeneration and Local Services,Direct Services,Supplies and Services,304259,Equipment and Materials,10-Jan-2017,3228570-2193980,"1,188.00",NORTHERN TOOLS & ACCESSORIES.
Regeneration and Local Services,Direct Services,Third Party Payments,430100,Rendered by Private Contractors,10-Jan-2017,3228596-39956,985.00,RJ UTILITY SERVICES LTD.
Regeneration and Local Services,Spatial Policy Planning Assets & Environment,Supplies and Services,338027,Services,10-Jan-2017,3228598-INV-0320,950.00,ROBSON & LIDDLE CHARTERED SURVEYORS.
Regeneration and Local Services,Spatial Policy Planning Assets & Environment,Supplies and Services,338027,Services,10-Jan-2017,3228598-INV-0423,950.00,ROBSON & LIDDLE CHARTERED SURVEYORS.
Regeneration and Local Services,Projects and Business services,Supplies and Services,340001,Postages,10-Jan-2017,3228600-9053489260,"1,361.18",ROYAL MAIL GROUP PLC.
Regeneration and Local Services,Transport and Contracted Services,Third Party Payments,430106,Rendered by Private Contractors,10-Jan-2017,3228606-122,"3,445.31",SB TRAVEL.
Regeneration and Local Services,Transport and Contracted Services,Third Party Payments,430106,Rendered by Private Contractors,10-Jan-2017,3228607-2302,"114,626.66",SCARLET BAND BUS & COACH LTD.
Regeneration and Local Services,Technical Services,Supplies and Services,304358,Equipment and Materials,10-Jan-2017,3228614-2016 066,767.40,SHIREHAVEN LTD.
Regeneration and Local Services,Technical Services,Supplies and Services,304358,Equipment and Materials,10-Jan-2017,3228614-2016 068,"1,111.20",SHIREHAVEN LTD.
Regeneration and Local Services,Direct Services,Third Party Payments,430100,Rendered by Private Contractors,10-Jan-2017,3228625-5586,675.00,ST ASTIER LTD.
Regeneration and Local Services,Direct Services,Third Party Payments,430100,Rendered by Private Contractors,10-Jan-2017,3228625-5598,"17,045.50",ST ASTIER LTD.
Regeneration and Local Services,Transport and Contracted Services,Third Party Payments,430106,Rendered by Private Contractors,10-Jan-2017,3228627-22645,"2,585.42",STANLEY TRAVEL (NORTH EAST) LTD.
Regeneration and Local Services,Direct Services,Supplies and Services,304221,Equipment and Materials,10-Jan-2017,3228634-0000096638,907.13,TA PLASTIC SUPPLIES LTD.
Regeneration and Local Services,Technical Services,Supplies and Services,304221,Equipment and Materials,10-Jan-2017,3228638-9035514421,613.83,TARMAC TRADING LTD.
Regeneration and Local Services,Technical Services,Third Party Payments,430100,Rendered by Private Contractors,10-Jan-2017,3228638-J035/03482,"66,129.92",TARMAC TRADING LTD.
Regeneration and Local Services,Direct Services,Transport,210057,Repair and Maintenance of Vehicles,10-Jan-2017,3228643-96335698,572.02,TERBERG MATEC (UK) LTD.
Regeneration and Local Services,Technical Services,Supplies and Services,304358,Equipment and Materials,10-Jan-2017,3228655-42761,"2,250.00",W MARLEY AGRICULTURAL CONTRACTORS LTD.
Regeneration and Local Services,Culture & Sport,Supplies and Services,338047,Services,10-Jan-2017,3228656-22427067,"2,765.01",WARNER BROS ENTERTAINMENT UK LTD.
Regeneration and Local Services,Transport and Contracted Services,Third Party Payments,430106,Rendered by Private Contractors,10-Jan-2017,3228661-1853,"32,892.68",WEARDALE MOTOR SERVICES LTD.
Resources,I.C.T. Services,Stock,926900,Stock in hand-Inventory system,10-Jan-2017,3228461-7402332304,"3,463.68",DELL COMPUTER CORPORATION LTD.
Resources,Financial Services,Supplies and Services,384197,Miscellaneous Expenses,10-Jan-2017,3228503-1482,"1,392.00",INGRAMS REMOVERS & STORERS.
Resources - C A C,Centrally Administered costs,Supplies and Services,338013,Services,10-Jan-2017,3228549-1237258,"25,068.00",MAZARS LLP.
Resources,Legal & Democratic Services,Supplies and Services,338042,Services,10-Jan-2017,3228554-326262/INVCSM247,750.00,MR CHARLES MCCAIN.
Transformation and Partnerships,Partnerships & Community Engagement Div.,Cap Exp on Grants & Other Financial Assistance (REFCUS),918004,Contributions to other bodies,10-Jan-2017,3228441-CHES057,"3,862.00",CHESTER LE STREET TOWN FC.
Transformation and Partnerships,Partnerships & Community Engagement Div.,Cap Exp on Grants & Other Financial Assistance (REFCUS),918004,Contributions to other bodies,10-Jan-2017,3228471-CHES008DPCC,"1,000.00",DURHAM POLICE & CRIME COMMISSIONER.
Transformation and Partnerships,Partnerships & Community Engagement Div.,Cap Exp on Grants & Other Financial Assistance (REFCUS),918004,Contributions to other bodies,10-Jan-2017,3228478-CHES059,"2,000.00",FENCE HOUSES COMMUNITY ASSOCIATION.
Transformation and Partnerships,Partnerships & Community Engagement Div.,Cap Exp on Grants & Other Financial Assistance (REFCUS),918004,Contributions to other bodies,10-Jan-2017,3228501-EDUR068,"4,000.00",HORDEN PARISH COUNCIL.
Transformation and Partnerships,Partnerships & Community Engagement Div.,Cap Exp on Grants & Other Financial Assistance (REFCUS),918004,Contributions to other bodies,10-Jan-2017,3228538-GAMP013,"10,801.00",LIVIN HOUSING LTD.
Transformation and Partnerships,Partnerships & Community Engagement Div.,Cap Exp on Grants & Other Financial Assistance (REFCUS),918004,Contributions to other bodies,10-Jan-2017,3228575-CHES058,"8,000.00",PARK VIEW COMMUNITY ASSOCIATION.
Transformation and Partnerships,Partnerships & Community Engagement Div.,Cap Exp on Grants & Other Financial Assistance (REFCUS),918004,Contributions to other bodies,10-Jan-2017,3228615-DVLY012,"2,000.00",SHOTLEY BRIDGE CRICKET CLUB.
Transformation and Partnerships,Partnerships & Community Engagement Div.,Cap Exp on Grants & Other Financial Assistance (REFCUS),918004,Contributions to other bodies,10-Jan-2017,3228616-EDUR071,"7,000.00",SHOTTON PARISH COUNCIL.
Adult and Health Services,Head of Adults,Transport,230005,Contract Hire,11-Jan-2017,305904-3-4,"1,050.00",BENNETTS TAXIS.
Adult and Health Services,EnvironmentHealth & Consumer Protection,Supplies and Services,338027,Services,11-Jan-2017,305915-SAC/CC/58216,525.00,CSN CONSULTING.*
Adult and Health Services,EnvironmentHealth & Consumer Protection,Third Party Payments,430100,Rendered by Private Contractors,11-Jan-2017,305969-4100559642,"1,330.80",O`CONNOR ROOFING SERVICES.
Adult and Health Services,Commissioning inc Supporting People,Third Party Payments,479111,Purchase of Care,11-Jan-2017,3228712-5008,"13,496.00",ASPIRE LEARNING SUPPORT & WELLBEING CIC.
Adult and Health Services,Head of Adults,Supplies and Services,304516,Equipment and Materials,11-Jan-2017,3228724-44/HALL01,982.00,BILL SCOTT TAXIS LTD.
Adult and Health Services,Head of Adults,Transport,230005,Contract Hire,11-Jan-2017,3228769-6723,503.88,CROFT BUSINESS SERVICES (UK) LTD T/A CROFT TAXIS.
Adult and Health Services,Head of Adults,Transport,230005,Contract Hire,11-Jan-2017,3228769-6724,"1,138.44",CROFT BUSINESS SERVICES (UK) LTD T/A CROFT TAXIS.
Adult and Health Services,Head of Adults,Third Party Payments,478151,Purchase of Care,11-Jan-2017,3228784-11-31,"1,282.15",DEACONSTAR LTD.
Adult and Health Services,Head of Adults,Third Party Payments,478151,Purchase of Care,11-Jan-2017,3228784-6-8,"2,137.96",DEACONSTAR LTD.
Adult and Health Services,Head of Adults,Transport,230005,Contract Hire,11-Jan-2017,3228890-DM1474,511.00,JOVIAL PRIVATE HIRE.
Adult and Health Services,Head of Adults,Transport,230005,Contract Hire,11-Jan-2017,3228900-KW684,510.00,KWIK CABS.
Adult and Health Services,Head of Adults,Transport,230005,Contract Hire,11-Jan-2017,3228948-826,780.00,MR S BALL T/A ABBIE`S TAXIS..
Adult and Health Services,Planning & Service Strategy,Supplies and Services,338091,Services,11-Jan-2017,3228955-832,"3,190.00",NECC TRAINING & ASSESSMENT CENTRE LTD.
Adult and Health Services,Public Health,Third Party Payments,460802,Contract Payments,11-Jan-2017,3228968-7510138402,"1,380.00",NORTHUMBRIA HEALTHCARE NHS FOUNDATION TRUST.
Adult and Health Services,Planning & Service Strategy,Supplies and Services,338094,Services,11-Jan-2017,3229045-380,"3,245.00",ST CUTHBERTS HOSPICE.
Children and Young Peoples Services,Education,Transport,230007,Contract Hire,11-Jan-2017,305910-6020-DEC16,600.00,CCC SAMUEL KINGS SCHOOL.
Children and Young Peoples Services,Education,Transport,230007,Contract Hire,11-Jan-2017,305916-31,672.00,DAVID WILKINSON...
Children and Young Peoples Services,Education,Transport,235073,Public Transport,11-Jan-2017,305924-349717-013,505.70,REDACTED - PAYMENT TO INDIVIDUAL
Children and Young Peoples Services,Education,Transport,235073,Public Transport,11-Jan-2017,305975-RED-01-2017-024,"1,110.74",REDACTED - PAYMENT TO INDIVIDUAL
Children and Young Peoples Services,Education,Supplies and Services,338099,Services,11-Jan-2017,305977-CAS-01-2017-016,588.89,SADBERGE BOARDING KENNELS & CATTERY.
Children and Young Peoples Services,Education,Transport,230006,Contract Hire,11-Jan-2017,3228688-HA220784,768.00,A MURRAY TRAVEL.
Children and Young Peoples Services,Education,Transport,230007,Contract Hire,11-Jan-2017,3228691-602,600.00,AC TAXIS.
Children and Young Peoples Services,Education,Transport,230004,Contract Hire,11-Jan-2017,3228691-603,552.00,AC TAXIS.
Children and Young Peoples Services,Education,Transport,230007,Contract Hire,11-Jan-2017,3228699-106,"1,672.00",ALANS TAXIS BARNARD CASTLE.
Children and Young Peoples Services,Education,Transport,230007,Contract Hire,11-Jan-2017,3228699-107,"1,628.00",ALANS TAXIS BARNARD CASTLE.
Children and Young Peoples Services,Education,Transport,230007,Contract Hire,11-Jan-2017,3228699-108,"1,936.00",ALANS TAXIS BARNARD CASTLE.
Children and Young Peoples Services,Childrens Services,Supplies and Services,308011,Furniture,11-Jan-2017,3228700-157628,580.00,ALBANY CONTRACT FURNITURE.
Children and Young Peoples Services,Education,Transport,230008,Contract Hire,11-Jan-2017,3228703-105,720.00,ANDY CABS.
Children and Young Peoples Services,Education,Transport,230008,Contract Hire,11-Jan-2017,3228709-DEC2016-1,"1,008.00",ARMSTRONG`S TAXIS.
Children and Young Peoples Services,Education,Transport,230012,Contract Hire,11-Jan-2017,3228709-DEC2016-2,531.60,ARMSTRONG`S TAXIS.
Children and Young Peoples Services,Education,Transport,230006,Contract Hire,11-Jan-2017,3228713-DCC12DEC16,630.00,ATLAS TAXIS BISHOP AUCKLAND.
Children and Young Peoples Services,Education,Transport,230008,Contract Hire,11-Jan-2017,3228713-DCC1DEC16,960.00,ATLAS TAXIS BISHOP AUCKLAND.
Children and Young Peoples Services,Education,Transport,230008,Contract Hire,11-Jan-2017,3228713-DCC8DEC16,"1,080.00",ATLAS TAXIS BISHOP AUCKLAND.
Children and Young Peoples Services,Education,Transport,230013,Contract Hire,11-Jan-2017,3228714-03518,624.00,ATLAS TAXIS CONSETT.
Children and Young Peoples Services,Education,Transport,230006,Contract Hire,11-Jan-2017,3228714-03519,628.80,ATLAS TAXIS CONSETT.
Children and Young Peoples Services,Education,Transport,230012,Contract Hire,11-Jan-2017,3228718-10DECEMBER16,"1,024.92",BEELINE PRIVATE HIRE.
Children and Young Peoples Services,Education,Transport,230008,Contract Hire,11-Jan-2017,3228718-DECEMBER16,773.63,BEELINE PRIVATE HIRE.
Children and Young Peoples Services,Education,Transport,230008,Contract Hire,11-Jan-2017,3228735-PS0151,758.40,BURNDALE PRIVATE HIRE.
Children and Young Peoples Services,Education,Transport,230003,Contract Hire,11-Jan-2017,3228751-45662,"4,464.00",CJ GRIERSON T/A GRIERSONS COACHES.
Children and Young Peoples Services,Education,Transport,230007,Contract Hire,11-Jan-2017,3228751-45663,924.00,CJ GRIERSON T/A GRIERSONS COACHES.
Children and Young Peoples Services,Education,Transport,230003,Contract Hire,11-Jan-2017,3228751-45664,"1,680.00",CJ GRIERSON T/A GRIERSONS COACHES.
Children and Young Peoples Services,Education,Transport,230003,Contract Hire,11-Jan-2017,3228751-45665,"1,500.00",CJ GRIERSON T/A GRIERSONS COACHES.
Children and Young Peoples Services,Education,Transport,230003,Contract Hire,11-Jan-2017,3228751-45666,"1,560.00",CJ GRIERSON T/A GRIERSONS COACHES.
Children and Young Peoples Services,Childrens Services,Transport,230005,Contract Hire,11-Jan-2017,3228753-CLUB16047P,510.00,CLUBMAN CABS.
Children and Young Peoples Services,Childrens Services,Transport,230005,Contract Hire,11-Jan-2017,3228753-CLUB16049Q,632.00,CLUBMAN CABS.
Children and Young Peoples Services,Childrens Services,Transport,230005,Contract Hire,11-Jan-2017,3228753-CLUB16049R,516.00,CLUBMAN CABS.
Children and Young Peoples Services,Childrens Services,Transport,230005,Contract Hire,11-Jan-2017,3228753-CLUB16049S,660.00,CLUBMAN CABS.
Children and Young Peoples Services,Education,Transport,230006,Contract Hire,11-Jan-2017,3228757-1100,"1,128.00",CONNORS MINI BUSES.*
Children and Young Peoples Services,Education,Transport,230008,Contract Hire,11-Jan-2017,3228757-1102,"1,040.00",CONNORS MINI BUSES.*
Children and Young Peoples Services,Education,Transport,230008,Contract Hire,11-Jan-2017,3228757-1103,"1,032.00",CONNORS MINI BUSES.*
Children and Young Peoples Services,Education,Transport,230008,Contract Hire,11-Jan-2017,3228757-1104,"1,032.00",CONNORS MINI BUSES.*
Children and Young Peoples Services,Childrens Services,Employees,080025,Agency Staff,11-Jan-2017,3228804-0000039842,937.50,EAST DURHAM COLLEGE.
Children and Young Peoples Services,Education,Transport,230007,Contract Hire,11-Jan-2017,3228812-5182/1216,502.80,ELLIOTTS OF TRIMDON.
Children and Young Peoples Services,Education,Transport,230008,Contract Hire,11-Jan-2017,3228812-E014/1216,958.80,ELLIOTTS OF TRIMDON.
Children and Young Peoples Services,Education,Transport,230006,Contract Hire,11-Jan-2017,3228812-E122/1216,778.00,ELLIOTTS OF TRIMDON.
Children and Young Peoples Services,Education,Transport,230007,Contract Hire,11-Jan-2017,3228816-0704,542.76,EN ROUTE TRAVEL.
Children and Young Peoples Services,Education,Transport,230008,Contract Hire,11-Jan-2017,3228816-0705,964.56,EN ROUTE TRAVEL.
Children and Young Peoples Services,Education,Transport,230008,Contract Hire,11-Jan-2017,3228818-44,917.00,EXTREME TAXI`S.
Children and Young Peoples Services,Education,Transport,230008,Contract Hire,11-Jan-2017,3228818-45,591.00,EXTREME TAXI`S.
Children and Young Peoples Services,Education,Transport,230008,Contract Hire,11-Jan-2017,3228821-E046-026,"1,524.00",FERRYHILL VILLAGE TRAVEL.
Dedicated Schools Grant,Dedicated Schools Grant,Transport,230010,Contract Hire,11-Jan-2017,3228821-PF006-002,648.00,FERRYHILL VILLAGE TRAVEL.
Children and Young Peoples Services,Education,Transport,230008,Contract Hire,11-Jan-2017,3228821-S033-004,"1,020.00",FERRYHILL VILLAGE TRAVEL.
Children and Young Peoples Services,Education,Transport,230008,Contract Hire,11-Jan-2017,3228821-W053-004,903.00,FERRYHILL VILLAGE TRAVEL.
Children and Young Peoples Services,Education,Transport,230008,Contract Hire,11-Jan-2017,3228826-1612,"1,080.00",FRANK ATKINSON T/A FJ MINIBUS TRAVEL.
Children and Young Peoples Services,Education,Transport,230008,Contract Hire,11-Jan-2017,3228828-9158,780.00,G & P JOHNSON LTD T/A NIGHTINGALE COACHES.
Children and Young Peoples Services,Education,Transport,230008,Contract Hire,11-Jan-2017,3228828-9159,780.00,G & P JOHNSON LTD T/A NIGHTINGALE COACHES.
Children and Young Peoples Services,Education,Transport,230008,Contract Hire,11-Jan-2017,3228828-9160,"1,020.00",G & P JOHNSON LTD T/A NIGHTINGALE COACHES.
Children and Young Peoples Services,Education,Transport,230008,Contract Hire,11-Jan-2017,3228828-9163,984.00,G & P JOHNSON LTD T/A NIGHTINGALE COACHES.
Children and Young Peoples Services,Education,Transport,230003,Contract Hire,11-Jan-2017,3228828-9164,"1,567.92",G & P JOHNSON LTD T/A NIGHTINGALE COACHES.
Children and Young Peoples Services,Education,Transport,230008,Contract Hire,11-Jan-2017,3228830-18874,"5,150.00",GARNETTS LTD (COACHES).
Children and Young Peoples Services,Education,Transport,230003,Contract Hire,11-Jan-2017,3228830-18878,"18,312.00",GARNETTS LTD (COACHES).
Children and Young Peoples Services,Education,Transport,230007,Contract Hire,11-Jan-2017,3228830-18880,"9,878.00",GARNETTS LTD (COACHES).
Children and Young Peoples Services,Education,Transport,230008,Contract Hire,11-Jan-2017,3228830-18949,"3,000.00",GARNETTS LTD (COACHES).
Children and Young Peoples Services,Education,Transport,230007,Contract Hire,11-Jan-2017,3228830-18950,"1,404.00",GARNETTS LTD (COACHES).
Children and Young Peoples Services,Education,Transport,230007,Contract Hire,11-Jan-2017,3228830-18952,"8,964.36",GARNETTS LTD (COACHES).
Children and Young Peoples Services,Education,Transport,230007,Contract Hire,11-Jan-2017,3228830-18954,"4,944.50",GARNETTS LTD (COACHES).
Children and Young Peoples Services,Education,Transport,230007,Contract Hire,11-Jan-2017,3228830-18956,"1,668.00",GARNETTS LTD (COACHES).
Children and Young Peoples Services,Education,Transport,230003,Contract Hire,11-Jan-2017,3228830-18958,"3,816.00",GARNETTS LTD (COACHES).
Children and Young Peoples Services,Education,Transport,230003,Contract Hire,11-Jan-2017,3228830-18967,"5,978.00",GARNETTS LTD (COACHES).
Children and Young Peoples Services,Education,Transport,230006,Contract Hire,11-Jan-2017,3228839-4/2016,708.00,GLEN`S TAXI.
Children and Young Peoples Services,Education,Transport,230008,Contract Hire,11-Jan-2017,3228842-047,908.00,GMC TAXIS NORTH EAST.
Children and Young Peoples Services,Education,Transport,230008,Contract Hire,11-Jan-2017,3228846-000027,880.00,GP TAXIS.
Children and Young Peoples Services,Childrens Services,Supplies and Services,364301,Grants to Voluntary Organisations,11-Jan-2017,3228857-CAS-01-2017-041,"1,187.94",REDACTED - PAYMENT TO INDIVIDUAL
Children and Young Peoples Services,Childrens Services,Transport,235073,Public Transport,11-Jan-2017,3228863-100025,900.00,HORNDALE TAXIS LTD.
Children and Young Peoples Services,Childrens Services,Supplies and Services,324500,Provisions,11-Jan-2017,3228877-32899,961.80,JAMES FLETCHER LTD T/A JAMES FLETCHER MARQUEES.
Children and Young Peoples Services,Education,Transport,230008,Contract Hire,11-Jan-2017,3228883-30/11/16B,"1,812.80",JL EBDON. T/A DIAL-A-CAB.
Children and Young Peoples Services,Education,Transport,230008,Contract Hire,11-Jan-2017,3228884-2016/28-W050,806.40,JM HUMBLE COACH HIRE.
Children and Young Peoples Services,Education,Transport,230008,Contract Hire,11-Jan-2017,3228919-77,"1,503.60",M BUTCHER T/A M & M`S TAXIS.
Children and Young Peoples Services,Childrens Services,Third Party Payments,425041,Rendered by Voluntary Organisations,11-Jan-2017,3228933-5040444,"1,451.00",MIDDLESBROUGH BOROUGH COUNCIL.
Children and Young Peoples Services,Education,Transport,230008,Contract Hire,11-Jan-2017,3228943-0304828,"1,383.24",MR GN ROBBINS T/A GNR MINIBUS HIRE.
Children and Young Peoples Services,Childrens Services,Third Party Payments,440036,Other Third Party Payments,11-Jan-2017,3228950-CAS-01-2017-035,796.65,REDACTED - PAYMENT TO INDIVIDUAL
Children and Young Peoples Services,Education,Transport,230008,Contract Hire,11-Jan-2017,3228956-202,"1,038.40",NEVILLE FORBES T/A FORBES TAXIS.
Children and Young Peoples Services,Education,Income,740298,Other Income,11-Jan-2017,3228957-CAS-01-2017-036,"12,532.25",NEW COLLEGE ACADEMIES TRUST - CONSETT ACADEMY.
Children and Young Peoples Services,Childrens Services,Supplies and Services,338365,Services,11-Jan-2017,3228974-0000121564,694.16,ONLINE ERGONOMICS LTD.
Children and Young Peoples Services,Education,Transport,230008,Contract Hire,11-Jan-2017,3228986-535,627.20,PETERLEE EXECUTIVE CARS.
Children and Young Peoples Services,Childrens Services,Transport,230005,Contract Hire,11-Jan-2017,3229014-761,720.00,ROAD RUNNERS (NE) LTD.
Children and Young Peoples Services,Childrens Services,Transport,230005,Contract Hire,11-Jan-2017,3229014-774,"1,090.00",ROAD RUNNERS (NE) LTD.
Children and Young Peoples Services,Education,Transport,230008,Contract Hire,11-Jan-2017,3229034-003-N080,504.00,SODA TAXIS.
Children and Young Peoples Services,Education,Transport,230008,Contract Hire,11-Jan-2017,3229034-143,660.00,SODA TAXIS.
Children and Young Peoples Services,Childrens Services,Supplies and Services,384199,Miscellaneous Expenses,11-Jan-2017,3229037-9NBOP2Q16NLMNF,550.00,SOUL PURPOSE LEARNING & LIFE MANAGEMENT LTD.
Children and Young Peoples Services,Childrens Services,Supplies and Services,364310,Grants to Voluntary Organisations,11-Jan-2017,3229055-CAS-01-2017-038,636.16,REDACTED - PAYMENT TO INDIVIDUAL
Children and Young Peoples Services,Childrens Services,Transport,235073,Public Transport,11-Jan-2017,3229060-6677,616.67,SUPPORTIVE SRC LTD.
Children and Young Peoples Services,Childrens Services,Third Party Payments,425040,Rendered by Voluntary Organisations,11-Jan-2017,3229063-194243,819.98,SWIIS FOSTER CARE LTD.
Children and Young Peoples Services,Childrens Services,Third Party Payments,425040,Rendered by Voluntary Organisations,11-Jan-2017,3229063-194244,730.03,SWIIS FOSTER CARE LTD.
Children and Young Peoples Services,Education,Premises,125009,Rents,11-Jan-2017,3229075-4932,700.00,THE WORK PLACE (AYCLIFFE) LTD.
Children and Young Peoples Services,Education,Transport,230008,Contract Hire,11-Jan-2017,3229085-4-16/12/16,599.20,TW TINKLER T/A TT TAXIS.
Regeneration and Local Services,Spatial Policy Planning Assets & Environment,Supplies and Services,384918,Miscellaneous Expenses,11-Jan-2017,305961-050,"5,404.45",REDACTED - PAYMENT TO INDIVIDUAL
Regeneration and Local Services,Transport and Contracted Services,Premises,120009,Energy Costs,11-Jan-2017,305968-043,586.00,NORTHERN POWERGRID (NORTHEAST) LTD.
Regeneration and Local Services,Spatial Policy Planning Assets & Environment,Supplies and Services,384199,Miscellaneous Expenses,11-Jan-2017,305980-THP/NP/005/16,"8,340.65",TERRY HESELTON PLANNING.
Regeneration and Local Services,Direct Services,Third Party Payments,430100,Rendered by Private Contractors,11-Jan-2017,3228696-34292147-61,789.00,ADT FIRE & SECURITY PLC.
Regeneration and Local Services,Direct Services,Third Party Payments,430100,Rendered by Private Contractors,11-Jan-2017,3228715-5752,760.00,ATLAS WASHROOM SYSTEMS LTD.
Regeneration and Local Services,Transport and Contracted Services,Construction Work,908105,Construction work,11-Jan-2017,3228736-23629,"2,684.02",BUS SHELTERS LTD.
Regeneration and Local Services,Economic Development and Housing,Supplies and Services,384700,Miscellaneous Expenses,11-Jan-2017,3228738-083,"1,500.00",BYERS GROUNDWORK LTD.
Regeneration and Local Services,Economic Development and Housing,Supplies and Services,384700,Miscellaneous Expenses,11-Jan-2017,3228742-063,"1,000.00",CAROL HARRIS T/A CONSETT PET & AQUATIC CENTRE.
Regeneration and Local Services,Direct Services,Third Party Payments,430100,Rendered by Private Contractors,11-Jan-2017,3228745-2016,942.36,CATHEDRAL LOCK & SAFE SERVICES LTD.
Regeneration and Local Services,Culture & Sport,Supplies and Services,384199,Miscellaneous Expenses,11-Jan-2017,3228807-1748,"1,800.00",ECONOMIC RESEARCH SERVICES LTD.
Regeneration and Local Services,Technical Services,Supplies and Services,304357,Equipment and Materials,11-Jan-2017,3228829-DCC111216,"16,801.16",GAP GROUP LTD.
Regeneration and Local Services,Technical Services,Stock,926900,Stock in hand-Inventory system,11-Jan-2017,3228850-06/623086,"1,907.37",GREENHAM TRADING LTD.
Regeneration and Local Services,Direct Services,Third Party Payments,430100,Rendered by Private Contractors,11-Jan-2017,3228866-2334,"8,780.99",IAN C LIDDLE.
Regeneration and Local Services,Technical Services,Stock,926900,Stock in hand-Inventory system,11-Jan-2017,3228872-563339,"3,136.00",INSTARMAC GROUP PLC.
Regeneration and Local Services,Technical Services,Supplies and Services,304221,Equipment and Materials,11-Jan-2017,3228886-NI032317,923.60,JOHN MACLEAN & SONS ELECTRICAL (DINGWALL) LTD.
Regeneration and Local Services,Technical Services,Supplies and Services,304221,Equipment and Materials,11-Jan-2017,3228893-B11211976,592.10,JT DOVE LTD.
Regeneration and Local Services,Technical Services,Supplies and Services,304221,Equipment and Materials,11-Jan-2017,3228893-BI1211975,"1,377.10",JT DOVE LTD.
Regeneration and Local Services,Technical Services,Third Party Payments,430100,Rendered by Private Contractors,11-Jan-2017,3228894-18550,"1,997.00",KAEFER LTD.
Regeneration and Local Services,Technical Services,Third Party Payments,430100,Rendered by Private Contractors,11-Jan-2017,3228894-18551,"1,100.00",KAEFER LTD.
Regeneration and Local Services,Direct Services,Third Party Payments,430100,Rendered by Private Contractors,11-Jan-2017,3228925-48151,525.00,MARIAN DOORS & SHUTTERS.
Regeneration and Local Services,Direct Services,Supplies and Services,304040,Equipment and Materials,11-Jan-2017,3228931-1019088,"1,746.00",METALWASH LTD.
Regeneration and Local Services,Spatial Policy Planning Assets & Environment,Third Party Payments,440999,Other Third Party Payments,11-Jan-2017,3228932-4220,"8,553.92",MICROCOPY SYSTEMS LTD.
Regeneration and Local Services,Technical Services,Third Party Payments,430100,Rendered by Private Contractors,11-Jan-2017,3228966-DI20258831,742.12,NORTHERN POWERGRID (NORTHEAST) LTD.
Regeneration and Local Services,Transport and Contracted Services,Third Party Payments,430100,Rendered by Private Contractors,11-Jan-2017,3228969-041147,"18,262.80",NSL LTD.
Regeneration and Local Services,Transport and Contracted Services,Third Party Payments,430100,Rendered by Private Contractors,11-Jan-2017,3228969-042040,"25,243.29",NSL LTD.
Regeneration and Local Services,Transport and Contracted Services,Third Party Payments,430100,Rendered by Private Contractors,11-Jan-2017,3228969-042041,"1,050.47",NSL LTD.
Regeneration and Local Services,Transport and Contracted Services,Third Party Payments,430100,Rendered by Private Contractors,11-Jan-2017,3228969-042042,"45,958.74",NSL LTD.
Regeneration and Local Services,Transport and Contracted Services,Third Party Payments,430100,Rendered by Private Contractors,11-Jan-2017,3228969-042043,"3,020.58",NSL LTD.
Regeneration and Local Services,Transport and Contracted Services,Third Party Payments,430100,Rendered by Private Contractors,11-Jan-2017,3228969-042044,"6,622.46",NSL LTD.
Regeneration and Local Services,Transport and Contracted Services,Third Party Payments,430100,Rendered by Private Contractors,11-Jan-2017,3228969-042046,"16,224.88",NSL LTD.
Regeneration and Local Services,Transport and Contracted Services,Third Party Payments,430100,Rendered by Private Contractors,11-Jan-2017,3228969-042065,"7,680.73",NSL LTD.
Regeneration and Local Services,Transport and Contracted Services,Third Party Payments,430100,Rendered by Private Contractors,11-Jan-2017,3228969-042066,"10,148.53",NSL LTD.
Regeneration and Local Services,Transport and Contracted Services,Third Party Payments,430100,Rendered by Private Contractors,11-Jan-2017,3228969-042067,"3,327.32",NSL LTD.
Regeneration and Local Services,Direct Services,Transport,215005,Running Costs of Vehicles,11-Jan-2017,3228973-212785,"7,613.39",OIL NRG LTD.
Regeneration and Local Services,Direct Services,Transport,215005,Running Costs of Vehicles,11-Jan-2017,3228973-212788,"1,932.60",OIL NRG LTD.
Regeneration and Local Services,Direct Services,Transport,215005,Running Costs of Vehicles,11-Jan-2017,3228973-212810,"3,841.35",OIL NRG LTD.
Regeneration and Local Services,Direct Services,Transport,215005,Running Costs of Vehicles,11-Jan-2017,3228973-214346,"16,350.20",OIL NRG LTD.
Regeneration and Local Services,Direct Services,Transport,215022,Running Costs of Vehicles,11-Jan-2017,3228973-214351,"2,496.90",OIL NRG LTD.
Regeneration and Local Services,Direct Services,Third Party Payments,430100,Rendered by Private Contractors,11-Jan-2017,3228975-7028-09,"3,190.00",OPUS BUILDING SERVICES LTD.
Regeneration and Local Services,Technical Services,Employees,040149,Recruitment Instruction and Training,11-Jan-2017,3228978-SIN5002014,"1,550.00",OWEN PUGH & CO LTD.
Regeneration and Local Services,Technical Services,Stock,926900,Stock in hand-Inventory system,11-Jan-2017,3228981-XL186054,"2,540.16",PARK ELECTRICAL DISTRIBUTORS LTD.
Regeneration and Local Services,Direct Services,Supplies and Services,304221,Equipment and Materials,11-Jan-2017,3228981-XL188510,"3,294.75",PARK ELECTRICAL DISTRIBUTORS LTD.
Regeneration and Local Services,Direct Services,Supplies and Services,304221,Equipment and Materials,11-Jan-2017,3228981-XL188511,511.50,PARK ELECTRICAL DISTRIBUTORS LTD.
Regeneration and Local Services,Technical Services,Stock,926900,Stock in hand-Inventory system,11-Jan-2017,3228981-XL188512,"2,840.40",PARK ELECTRICAL DISTRIBUTORS LTD.
Regeneration and Local Services,Technical Services,Income,720413,Fees and Charges,11-Jan-2017,3228985-RES-11-2016-056,"44,800.00",PERSIMMON HOMES DURHAM.
Regeneration and Local Services,Technical Services,Third Party Payments,430100,Rendered by Private Contractors,11-Jan-2017,3228997-95232,550.00,PROTECTOR SECURITY GROUP LTD.
Regeneration and Local Services,Technical Services,Third Party Payments,430100,Rendered by Private Contractors,11-Jan-2017,3228997-95233,550.00,PROTECTOR SECURITY GROUP LTD.
Regeneration and Local Services,Technical Services,Third Party Payments,430100,Rendered by Private Contractors,11-Jan-2017,3228997-95234,550.00,PROTECTOR SECURITY GROUP LTD.
Regeneration and Local Services,Direct Services,Supplies and Services,338078,Services,11-Jan-2017,3229003-60065,"2,958.83",QW SECURITY LTD.
Regeneration and Local Services,Direct Services,Supplies and Services,304259,Equipment and Materials,11-Jan-2017,3229009-RSIN0203972,"4,828.50",RIGBY TAYLOR LTD.
Regeneration and Local Services,Projects and Business services,Supplies and Services,340001,Postages,11-Jan-2017,3229015-9053530342,"1,365.41",ROYAL MAIL GROUP PLC.
Regeneration and Local Services,Economic Development and Housing,Supplies and Services,384700,Miscellaneous Expenses,11-Jan-2017,3229026-084,"2,000.00",SHOTTON PARTNERSHIP 2000 LTD.
Regeneration and Local Services,Technical Services,Supplies and Services,304221,Equipment and Materials,11-Jan-2017,3229028-714560036845,691.40,SIG TRADING LTD.
Regeneration and Local Services,Economic Development and Housing,Supplies and Services,384700,Miscellaneous Expenses,11-Jan-2017,3229031-081,"1,500.00",SMAILES CONSTRUCTION LTD.
Regeneration and Local Services,Technical Services,Stock,926900,Stock in hand-Inventory system,11-Jan-2017,3229033-189699,"3,188.64",SNAPFAST.
Regeneration and Local Services,Technical Services,Stock,926900,Stock in hand-Inventory system,11-Jan-2017,3229033-189717,"9,475.20",SNAPFAST.
Regeneration and Local Services,Technical Services,Stock,926900,Stock in hand-Inventory system,11-Jan-2017,3229033-189718,"5,625.60",SNAPFAST.
Regeneration and Local Services,Economic Development and Housing,Supplies and Services,384700,Miscellaneous Expenses,11-Jan-2017,3229043-082,"1,500.00",SPRAYTECH JOINERY LTD.
Regeneration and Local Services,Culture & Sport,Supplies and Services,332029,Printing Stationery and Gen Off Exps,11-Jan-2017,3229050-4517,"2,240.00",STARK HARTLEY ATKINSON LTD.
Regeneration and Local Services,Culture & Sport,Supplies and Services,332029,Printing Stationery and Gen Off Exps,11-Jan-2017,3229054-INV-2942,850.00,STEVE DAVIDSON ADVERTISING LTD T/A SD ADVERTISING LTD.
Regeneration and Local Services,Direct Services,Supplies and Services,304221,Equipment and Materials,11-Jan-2017,3229074-0000096547,854.75,THE SEKURA GROUP.
Regeneration and Local Services,Technical Services,Stock,926900,Stock in hand-Inventory system,11-Jan-2017,3229078-002733,976.50,TINTFIT WINDOW FILMS LTD.
Regeneration and Local Services,Technical Services,Supplies and Services,304221,Equipment and Materials,11-Jan-2017,3229088-168717,614.80,TYNEDALE ROADSTONE LTD.
Regeneration and Local Services,Technical Services,Supplies and Services,304221,Equipment and Materials,11-Jan-2017,3229088-168805,"1,058.76",TYNEDALE ROADSTONE LTD.
Regeneration and Local Services,Technical Services,Supplies and Services,304221,Equipment and Materials,11-Jan-2017,3229088-168806,831.67,TYNEDALE ROADSTONE LTD.
Regeneration and Local Services,Technical Services,Supplies and Services,304221,Equipment and Materials,11-Jan-2017,3229088-168869,"1,151.15",TYNEDALE ROADSTONE LTD.
Regeneration and Local Services,Technical Services,Supplies and Services,304221,Equipment and Materials,11-Jan-2017,3229088-169055,614.41,TYNEDALE ROADSTONE LTD.
Regeneration and Local Services,Technical Services,Employees,040149,Recruitment Instruction and Training,11-Jan-2017,3229089-60009570,"7,000.00",TYNESIDE TRAINING SERVICES LTD.
Regeneration and Local Services,Direct Services,Third Party Payments,430100,Rendered by Private Contractors,11-Jan-2017,3229092-INV-0014,584.00,UK VENTILATION LTD.
Regeneration and Local Services,Direct Services,Supplies and Services,304221,Equipment and Materials,11-Jan-2017,3229092-INV-0099,"1,979.00",UK VENTILATION LTD.
Regeneration and Local Services,Technical Services,Stock,926900,Stock in hand-Inventory system,11-Jan-2017,3229106-36691874,"1,180.20",WOLSELEY UK LTD.
Regeneration and Local Services,Spatial Policy Planning Assets & Environment,Supplies and Services,384199,Miscellaneous Expenses,11-Jan-2017,3229110-64278858,953.74,WSP UK LTD.
Resources,Legal & Democratic Services,Supplies and Services,338042,Services,11-Jan-2017,305930-INV/JEM9,"2,195.00",MR JOHN MYERS.
Resources,Legal & Democratic Services,Supplies and Services,340001,Postages,11-Jan-2017,3228695-PSI0003060,"3,842.39",ADARE INSPIRED COMMUNICATIONS.
Resources,I.C.T. Services,Supplies and Services,308011,Furniture,11-Jan-2017,3228700-157648,910.00,ALBANY CONTRACT FURNITURE.
Resources,I.C.T. Services,Supplies and Services,304245,Equipment and Materials,11-Jan-2017,3228705-6211347,"1,860.00",ANTALIS LTD.
Resources,I.C.T. Services,Supplies and Services,304999,Equipment and Materials,11-Jan-2017,3228746-86663,"50,496.10",CENTRAL POWER SERVICES LTD.
Resources,Corporate Finance,Supplies and Services,338221,Services,11-Jan-2017,3228856-1928,"1,204.16",HEALTH ASSURED LTD.
Resources,Legal & Democratic Services,Supplies and Services,338042,Services,11-Jan-2017,3228941-326541/INVDR387,"1,020.00",MR DAVID ROWLANDS.
Resources,I.C.T. Services,Supplies and Services,340001,Postages,11-Jan-2017,3229015-9053483197,"10,964.49",ROYAL MAIL GROUP PLC.
Resources,I.C.T. Services,Intangible Assets,917001,Software capitalised licence fees,11-Jan-2017,3229035-INV01521579,"3,883.50",SOFTCAT LTD.
Resources,Legal & Democratic Services,Supplies and Services,338042,Services,11-Jan-2017,3229046-137028-19/12/16,"6,120.00",ST PAULS CHAMBERS.
Transformation and Partnerships,Partnerships & Community Engagement Div.,Cap Exp on Grants & Other Financial Assistance (REFCUS),918004,Contributions to other bodies,11-Jan-2017,305905-DVLY018,"5,200.00",BLACKFYNE ALLOTMENT ASSOCIATION.
Transformation and Partnerships,Policy & Communications Division,Employees,040149,Recruitment Instruction and Training,11-Jan-2017,305908-704341,"1,528.00",CATALYST CONSULTING LTD.
Adult and Health Services,Head of Adults,Supplies and Services,338045,Services,12-Jan-2017,3229129-194401MP,"6,920.20",39 ESSEX CHAMBERS.
Adult and Health Services,Head of Adults,Transport,230005,Contract Hire,12-Jan-2017,3229157-DCC6DEC16,"1,977.00",ATLAS TAXIS BISHOP AUCKLAND.
Adult and Health Services,Public Health,Third Party Payments,460802,Contract Payments,12-Jan-2017,3229212-3980020989,"41,774.00",CO DURHAM & DARLINGTON NHS FOUNDATION TRUST.
Adult and Health Services,Head of Adults,Supplies and Services,338045,Services,12-Jan-2017,3229251-321456/INVCSM242,"1,020.00",DERE STREET BARRISTERS.
Adult and Health Services,Head of Adults,Third Party Payments,473101,Purchase of Care,12-Jan-2017,3229301-CAS-01-2017-051,"25,275.34",GAPPS DAY SERVICES LTD.
Adult and Health Services,Head of Adults,Supplies and Services,338045,Services,12-Jan-2017,3229419-232566-18/10/2016,"1,560.00",MR JUSTIN GRAY.
Adult and Health Services,Planning & Service Strategy,Supplies and Services,338094,Services,12-Jan-2017,3229531-352,"1,690.00",ST CUTHBERTS HOSPICE.
Children and Young Peoples Services,Childrens Services,Transport,230005,Contract Hire,12-Jan-2017,3229134-B12/ZA,720.00,AABAT TAXIS.
Children and Young Peoples Services,Childrens Services,Transport,230005,Contract Hire,12-Jan-2017,3229134-B13/ZC,500.00,AABAT TAXIS.
Children and Young Peoples Services,Childrens Services,Transport,230005,Contract Hire,12-Jan-2017,3229134-B15/ZA,600.00,AABAT TAXIS.
Children and Young Peoples Services,Childrens Services,Transport,230005,Contract Hire,12-Jan-2017,3229134-B17/ZC,500.00,AABAT TAXIS.
Children and Young Peoples Services,Childrens Services,Transport,230005,Contract Hire,12-Jan-2017,3229134-B18/ZJ,780.00,AABAT TAXIS.
Children and Young Peoples Services,Childrens Services,Transport,230005,Contract Hire,12-Jan-2017,3229134-B20/ZA,720.00,AABAT TAXIS.
Children and Young Peoples Services,Childrens Services,Transport,230005,Contract Hire,12-Jan-2017,3229134-B25/ZC,500.00,AABAT TAXIS.
Children and Young Peoples Services,Education,Third Party Payments,440999,Other Third Party Payments,12-Jan-2017,3229136-INV02137,"6,400.00",ACUMEN COMMUNITY ENTERPRISE DEVELOPMENT TRUST LTD.
Children and Young Peoples Services,Childrens Services,Supplies and Services,324117,Provisions,12-Jan-2017,3229141-11951,742.50,AJ`S CATERING LTD.
Children and Young Peoples Services,Education,Transport,235005,Public Transport,12-Jan-2017,3229152-111541,"2,393.60",ARRIVA NORTH EAST LTD.
Children and Young Peoples Services,Childrens Services,Premises,120021,Energy Costs,12-Jan-2017,3229178-952225725,"1,630.06",BRITISH GAS BUSINESS.
Children and Young Peoples Services,Childrens Services,Supplies and Services,308013,Furniture,12-Jan-2017,3229192-39677,"1,039.87",CARPETTIME LTD.
Children and Young Peoples Services,Childrens Services,Third Party Payments,486044,Service Level Agreements,12-Jan-2017,3229212-3980021300,"3,003.00",CO DURHAM & DARLINGTON NHS FOUNDATION TRUST.
Children and Young Peoples Services,Education,Transport,230003,Contract Hire,12-Jan-2017,3229215-C/9576,"1,542.00",COCHRANES T/A KELVIN TRAVEL.
Children and Young Peoples Services,Education,Transport,230003,Contract Hire,12-Jan-2017,3229215-C/9577,"1,038.75",COCHRANES T/A KELVIN TRAVEL.
Children and Young Peoples Services,Education,Transport,230008,Contract Hire,12-Jan-2017,3229216-11/16087,"1,958.00",COLLINS TAXIS.
Children and Young Peoples Services,Education,Transport,230008,Contract Hire,12-Jan-2017,3229216-12/16087,"1,023.50",COLLINS TAXIS.
Children and Young Peoples Services,Education,Transport,230008,Contract Hire,12-Jan-2017,3229233-6556,"2,541.92",CROFT BUSINESS SERVICES (UK) LTD T/A CROFT TAXIS.
Children and Young Peoples Services,Childrens Services,Transport,230005,Contract Hire,12-Jan-2017,3229233-6606,516.62,CROFT BUSINESS SERVICES (UK) LTD T/A CROFT TAXIS.
Children and Young Peoples Services,Childrens Services,Transport,230005,Contract Hire,12-Jan-2017,3229233-6608,759.48,CROFT BUSINESS SERVICES (UK) LTD T/A CROFT TAXIS.
Children and Young Peoples Services,Childrens Services,Transport,230005,Contract Hire,12-Jan-2017,3229233-6656,556.36,CROFT BUSINESS SERVICES (UK) LTD T/A CROFT TAXIS.
Children and Young Peoples Services,Education,Transport,230008,Contract Hire,12-Jan-2017,3229233-6673,"1,211.20",CROFT BUSINESS SERVICES (UK) LTD T/A CROFT TAXIS.
Children and Young Peoples Services,Childrens Services,Transport,230005,Contract Hire,12-Jan-2017,3229233-6679,737.10,CROFT BUSINESS SERVICES (UK) LTD T/A CROFT TAXIS.
Children and Young Peoples Services,Childrens Services,Transport,230005,Contract Hire,12-Jan-2017,3229233-6697,571.25,CROFT BUSINESS SERVICES (UK) LTD T/A CROFT TAXIS.
Children and Young Peoples Services,Childrens Services,Transport,230005,Contract Hire,12-Jan-2017,3229233-6788,536.67,CROFT BUSINESS SERVICES (UK) LTD T/A CROFT TAXIS.
Children and Young Peoples Services,Education,Transport,230013,Contract Hire,12-Jan-2017,3229239-94,575.00,D CROOK T/A CK TAXIS.
Children and Young Peoples Services,Education,Transport,230008,Contract Hire,12-Jan-2017,3229240-1495,649.00,DA TAXIS.
Children and Young Peoples Services,Education,Transport,230008,Contract Hire,12-Jan-2017,3229240-1496,828.00,DA TAXIS.
Children and Young Peoples Services,Education,Transport,230007,Contract Hire,12-Jan-2017,3229240-1497,600.00,DA TAXIS.
Children and Young Peoples Services,Education,Transport,230008,Contract Hire,12-Jan-2017,3229240-1498,860.00,DA TAXIS.
Children and Young Peoples Services,Education,Transport,230006,Contract Hire,12-Jan-2017,3229241-205,621.50,DA TRAVEL.
Children and Young Peoples Services,Education,Transport,230008,Contract Hire,12-Jan-2017,3229241-206,"1,030.00",DA TRAVEL.
Children and Young Peoples Services,Education,Transport,230008,Contract Hire,12-Jan-2017,3229241-207,"1,152.00",DA TRAVEL.
Children and Young Peoples Services,Education,Transport,230008,Contract Hire,12-Jan-2017,3229244-3011,"1,025.16",DAVES MINIBUSES.
Children and Young Peoples Services,Education,Transport,230008,Contract Hire,12-Jan-2017,3229244-3012,916.68,DAVES MINIBUSES.
Children and Young Peoples Services,Education,Transport,230008,Contract Hire,12-Jan-2017,3229244-3013,"1,356.00",DAVES MINIBUSES.
Children and Young Peoples Services,Education,Transport,230008,Contract Hire,12-Jan-2017,3229244-3014,"1,200.00",DAVES MINIBUSES.
Children and Young Peoples Services,Education,Transport,230008,Contract Hire,12-Jan-2017,3229244-3015,810.00,DAVES MINIBUSES.
Children and Young Peoples Services,Education,Transport,230007,Contract Hire,12-Jan-2017,3229246-320,"1,500.00",DAVID DOVE TRAVEL LTD.
Children and Young Peoples Services,Education,Transport,230007,Contract Hire,12-Jan-2017,3229246-321,649.00,DAVID DOVE TRAVEL LTD.
Children and Young Peoples Services,Education,Transport,230006,Contract Hire,12-Jan-2017,3229256-16/19,544.00,DMG PRIVATE HIRE.
Children and Young Peoples Services,Education,Transport,230012,Contract Hire,12-Jan-2017,3229256-16/20,840.00,DMG PRIVATE HIRE.
Children and Young Peoples Services,Childrens Services,Supplies and Services,338044,Services,12-Jan-2017,3229260-12DEC/GQ00484,602.04,DR URSULA CAWTHORNE.
Children and Young Peoples Services,Childrens Services,Third Party Payments,486029,Service Level Agreements,12-Jan-2017,3229286-20847,"18,940.08",FAMILY ACTION.
Children and Young Peoples Services,Education,Transport,230007,Contract Hire,12-Jan-2017,3229313-GT006-16/12/16,528.00,GORDON`S TAXIS.
Children and Young Peoples Services,Education,Transport,230006,Contract Hire,12-Jan-2017,3229324-004,"1,038.00",HARDIP SINGH MAHIL T/A AMBER CARS.
Children and Young Peoples Services,Education,Transport,230008,Contract Hire,12-Jan-2017,3229326-HT253,"1,040.00",HARRY`S TAXI`S.
Children and Young Peoples Services,Education,Transport,230008,Contract Hire,12-Jan-2017,3229326-HT254,"1,034.00",HARRY`S TAXI`S.
Children and Young Peoples Services,Education,Transport,230004,Contract Hire,12-Jan-2017,3229336-10665,600.00,HODGSONS COACH OPERATORS LTD.
Children and Young Peoples Services,Education,Transport,230007,Contract Hire,12-Jan-2017,3229336-10672,"3,080.00",HODGSONS COACH OPERATORS LTD.
Children and Young Peoples Services,Education,Transport,230007,Contract Hire,12-Jan-2017,3229336-10673,"1,680.00",HODGSONS COACH OPERATORS LTD.
Children and Young Peoples Services,Education,Transport,230007,Contract Hire,12-Jan-2017,3229336-10676,710.40,HODGSONS COACH OPERATORS LTD.
Children and Young Peoples Services,Education,Transport,230007,Contract Hire,12-Jan-2017,3229336-10678,518.40,HODGSONS COACH OPERATORS LTD.
Children and Young Peoples Services,Education,Transport,230007,Contract Hire,12-Jan-2017,3229336-10680,954.00,HODGSONS COACH OPERATORS LTD.
Children and Young Peoples Services,Education,Transport,230007,Contract Hire,12-Jan-2017,3229336-10698,"2,879.00",HODGSONS COACH OPERATORS LTD.
Children and Young Peoples Services,Education,Transport,230008,Contract Hire,12-Jan-2017,3229356-1035,954.61,JDS PRIVATE HIRE DURHAM.
Children and Young Peoples Services,Education,Transport,230008,Contract Hire,12-Jan-2017,3229356-1036,748.76,JDS PRIVATE HIRE DURHAM.
Children and Young Peoples Services,Education,Transport,230008,Contract Hire,12-Jan-2017,3229356-1037,933.23,JDS PRIVATE HIRE DURHAM.
Children and Young Peoples Services,Education,Transport,230008,Contract Hire,12-Jan-2017,3229356-1038,626.40,JDS PRIVATE HIRE DURHAM.
Children and Young Peoples Services,Education,Transport,230008,Contract Hire,12-Jan-2017,3229356-1039,861.40,JDS PRIVATE HIRE DURHAM.
Children and Young Peoples Services,Education,Transport,230007,Contract Hire,12-Jan-2017,3229356-1040,552.00,JDS PRIVATE HIRE DURHAM.
Children and Young Peoples Services,Education,Transport,230008,Contract Hire,12-Jan-2017,3229356-1042,"1,440.00",JDS PRIVATE HIRE DURHAM.
Children and Young Peoples Services,Education,Transport,230006,Contract Hire,12-Jan-2017,3229356-1043,"1,290.00",JDS PRIVATE HIRE DURHAM.
Children and Young Peoples Services,Education,Transport,230006,Contract Hire,12-Jan-2017,3229356-1044,"1,560.00",JDS PRIVATE HIRE DURHAM.
Children and Young Peoples Services,Education,Transport,230008,Contract Hire,12-Jan-2017,3229356-1045,"1,560.00",JDS PRIVATE HIRE DURHAM.
Children and Young Peoples Services,Education,Transport,230008,Contract Hire,12-Jan-2017,3229356-1048,"1,132.80",JDS PRIVATE HIRE DURHAM.
Children and Young Peoples Services,Childrens Services,Supplies and Services,384302,Miscellaneous Expenses,12-Jan-2017,3229359-WW6,540.00,JILL WILKINSON T/A WIGGLES & WOBBLES.
Children and Young Peoples Services,Education,Transport,230008,Contract Hire,12-Jan-2017,3229361-16/12/16A,636.00,JL EBDON. T/A DIAL-A-CAB.
Children and Young Peoples Services,Education,Transport,230008,Contract Hire,12-Jan-2017,3229361-16/12/16B,"1,056.00",JL EBDON. T/A DIAL-A-CAB.
Children and Young Peoples Services,Education,Transport,230008,Contract Hire,12-Jan-2017,3229361-16/12/16C,876.00,JL EBDON. T/A DIAL-A-CAB.
Children and Young Peoples Services,Education,Transport,230012,Contract Hire,12-Jan-2017,3229361-16/12/16D,864.00,JL EBDON. T/A DIAL-A-CAB.
Children and Young Peoples Services,Education,Transport,230008,Contract Hire,12-Jan-2017,3229361-16/12/16E,816.00,JL EBDON. T/A DIAL-A-CAB.
Children and Young Peoples Services,Education,Transport,230008,Contract Hire,12-Jan-2017,3229361-16/12/16F,"1,176.00",JL EBDON. T/A DIAL-A-CAB.
Children and Young Peoples Services,Education,Transport,230008,Contract Hire,12-Jan-2017,3229361-16/12/16G,720.00,JL EBDON. T/A DIAL-A-CAB.
Children and Young Peoples Services,Childrens Services,Supplies and Services,308011,Furniture,12-Jan-2017,3229377-6443,"3,770.00",KINDERKEY HEALTHCARE LTD.
Children and Young Peoples Services,Education,Transport,230008,Contract Hire,12-Jan-2017,3229381-1092,920.00,LD TAXIS.
Dedicated Schools Grant,Dedicated Schools Grant,Transport,230010,Contract Hire,12-Jan-2017,3229390-3517,"1,838.10",LINCAB TAXIS.
Children and Young Peoples Services,Childrens Services,Transport,230005,Contract Hire,12-Jan-2017,3229394-2972,770.00,LOCAL TRANSPORT LTD.
Children and Young Peoples Services,Childrens Services,Transport,230005,Contract Hire,12-Jan-2017,3229394-2973,"2,620.00",LOCAL TRANSPORT LTD.
Children and Young Peoples Services,Childrens Services,Transport,230005,Contract Hire,12-Jan-2017,3229394-2974,720.00,LOCAL TRANSPORT LTD.
Children and Young Peoples Services,Childrens Services,Transport,230005,Contract Hire,12-Jan-2017,3229394-2975,672.00,LOCAL TRANSPORT LTD.
Children and Young Peoples Services,Childrens Services,Transport,230005,Contract Hire,12-Jan-2017,3229394-2980,"2,020.00",LOCAL TRANSPORT LTD.
Children and Young Peoples Services,Childrens Services,Transport,230005,Contract Hire,12-Jan-2017,3229394-2981,"2,105.00",LOCAL TRANSPORT LTD.
Children and Young Peoples Services,Childrens Services,Transport,230005,Contract Hire,12-Jan-2017,3229394-2996,"1,150.00",LOCAL TRANSPORT LTD.
Children and Young Peoples Services,Childrens Services,Transport,230005,Contract Hire,12-Jan-2017,3229394-3007,"1,772.00",LOCAL TRANSPORT LTD.
Children and Young Peoples Services,Education,Transport,230006,Contract Hire,12-Jan-2017,3229394-3031,"1,102.00",LOCAL TRANSPORT LTD.
Children and Young Peoples Services,Education,Transport,230008,Contract Hire,12-Jan-2017,3229394-3033,870.00,LOCAL TRANSPORT LTD.
Children and Young Peoples Services,Childrens Services,Transport,230005,Contract Hire,12-Jan-2017,3229394-3043,"1,470.00",LOCAL TRANSPORT LTD.
Children and Young Peoples Services,Childrens Services,Transport,230005,Contract Hire,12-Jan-2017,3229394-3060,"1,260.00",LOCAL TRANSPORT LTD.
Children and Young Peoples Services,Education,Transport,230006,Contract Hire,12-Jan-2017,3229398-49,632.00,LUMLEY TAXIS.
Dedicated Schools Grant,Dedicated Schools Grant,Supplies and Services,304259,Equipment and Materials,12-Jan-2017,3229399-6610,"1,130.00",LYNCH HEALTHCARE LTD.
Dedicated Schools Grant,Dedicated Schools Grant,Transport,230010,Contract Hire,12-Jan-2017,3229403-121604,"1,265.00",MARK & JOHN CHISHOLM T/A (CHEVRON).
Children and Young Peoples Services,Childrens Services,Supplies and Services,384540,Miscellaneous Expenses,12-Jan-2017,3229413-137621,935.00,MORGARD COURT LTD T/A GARDNERS.
Children and Young Peoples Services,Education,Transport,230008,Contract Hire,12-Jan-2017,3229417-121-M68-93,"1,150.08",MR GS ANDERSON.
Children and Young Peoples Services,Education,Transport,230006,Contract Hire,12-Jan-2017,3229418-KDKWOL/4,833.25,MR I KELSEY.
Children and Young Peoples Services,Central Charges (CYPS),Employees,005001,Pay,12-Jan-2017,3229423-RES-01-2017-013,"10,500.00",REDACTED - PAYMENT TO INDIVIDUAL
Children and Young Peoples Services,Education,Transport,230008,Contract Hire,12-Jan-2017,3229424-2936,"1,215.06",MR S BOWERS T/A DH7 TAXIS.
Children and Young Peoples Services,Education,Transport,235073,Public Transport,12-Jan-2017,3229428-383029-013,591.20,REDACTED - PAYMENT TO INDIVIDUAL
Children and Young Peoples Services,Education,Transport,230008,Contract Hire,12-Jan-2017,3229457-DCC127,980.92,PAUL`S TAXIS..
Children and Young Peoples Services,Education,Transport,230008,Contract Hire,12-Jan-2017,3229462-0496,"1,236.00",PETER`S PRIVATE HIRE/PETER BEST.
Children and Young Peoples Services,Education,Transport,230007,Contract Hire,12-Jan-2017,3229483-46A,"1,029.28",RAYNERS COACHES.
Children and Young Peoples Services,Childrens Services,Supplies and Services,364340,Grants to Voluntary Organisations,12-Jan-2017,3229484-CAS-01-2017-042,624.00,REACH OUT CARE SUPPORT SERVICES LTD.
Children and Young Peoples Services,Education,Transport,230008,Contract Hire,12-Jan-2017,3229496-781,"1,632.00",ROAD RUNNERS (NE) LTD.
Children and Young Peoples Services,Education,Transport,230008,Contract Hire,12-Jan-2017,3229496-786,792.00,ROAD RUNNERS (NE) LTD.
Children and Young Peoples Services,Education,Transport,230008,Contract Hire,12-Jan-2017,3229496-788,816.00,ROAD RUNNERS (NE) LTD.
Dedicated Schools Grant,Dedicated Schools Grant,Transport,230010,Contract Hire,12-Jan-2017,3229496-795,748.80,ROAD RUNNERS (NE) LTD.
Children and Young Peoples Services,Education,Transport,230008,Contract Hire,12-Jan-2017,3229498-1689,812.00,RON`S TAXIS (FISHBURN).
Dedicated Schools Grant,Dedicated Schools Grant,Transport,230010,Contract Hire,12-Jan-2017,3229504-B008/495,"2,535.00",S DUNCAN PRIVATE HIRE.
Dedicated Schools Grant,Dedicated Schools Grant,Transport,230010,Contract Hire,12-Jan-2017,3229508-PL004-16/12/16,"1,155.00",SAVILLES TAXIS.
Children and Young Peoples Services,Education,Transport,230008,Contract Hire,12-Jan-2017,3229529-DR00214,532.00,SPENNYMOOR TAXIS.
Children and Young Peoples Services,Education,Transport,230008,Contract Hire,12-Jan-2017,3229535-22669,"1,643.49",STANLEY TRAVEL (NORTH EAST) LTD.
Children and Young Peoples Services,Education,Transport,230006,Contract Hire,12-Jan-2017,3229535-22670,"1,464.40",STANLEY TRAVEL (NORTH EAST) LTD.
Children and Young Peoples Services,Education,Transport,230008,Contract Hire,12-Jan-2017,3229537-4-16/12/16,686.00,STEELYS TAXIS.
Dedicated Schools Grant,Dedicated Schools Grant,Transport,230010,Contract Hire,12-Jan-2017,3229538-0004,"1,296.00",STEPHEN REED T/A STEVE`S TAXIS.
Children and Young Peoples Services,Education,Transport,230008,Contract Hire,12-Jan-2017,3229540-08,"1,188.00",STEVEN HENDERSON T/A HENDYS TAXIS.
Children and Young Peoples Services,Childrens Services,Supplies and Services,364352,Grants to Voluntary Organisations,12-Jan-2017,3229541-259,541.59,STONHAM HOUSING ASSOCIATION LTD.
Children and Young Peoples Services,Childrens Services,Supplies and Services,364352,Grants to Voluntary Organisations,12-Jan-2017,3229541-260,"1,039.00",STONHAM HOUSING ASSOCIATION LTD.
